Workbook

Sheet Model Description
B2: Tab | C2: Description
B3: Summary | C3: This tab allows the user to input the year, baseline region, and other assumptions. Includes outputs of average bills for current and inputted year.
C4: Bundled represents customers that we procure gas for. System refers to all customer classes combined. Total System for a customer class includes Bundled + Unbundled.
B5: Authorized Rev Req | C5: This tab shows the authorized revenue requirement for each line item that is in existing rates.
B6: Incremental Rev Req | C6: This tab contains several sections: (i) Approved Application(s), (ii) Pending Application(s) Not Yet Approved, and (iii) Applications Projected to be Filed.
C7: The Approved Application(s) section shows the authorized revenue requirement for each line item forecasted out by year.
C8: The Pending Application(s) Not Yet Approved section includes pending advice letters or applications for new proceedings and any pending increases or decreases to current line items.
B9: SAR and RAR | C9: This tab shows the total revenue and the allocated revenue used to calculate Residential rates for the inputted year.
C10: The Residential percent allocations for the Revenue Recovery Mechanisms are estimated using the detailed Cost Allocation and Rate Design Model.
B11: Res Bill Impact | C11: This tab shows the calculation for Residential rates and average monthly bills.
B12: Hypothetical Tabs | C12: These tabs allow the user to estimate rate impacts from hypothetical revenue requirement changes relative to current rates.
B14: *IMPORTANT NOTE: | C14: CRT model uses current year CRT-calculated rates for comparison with future rates. For Hypothetical tabs, CRT uses current rates.

Sheet Summary
B1: Inputs: | G1: Assumptions:
C2: =CONCATENATE("Rate Impact for Year (",SetUp!J5,"-",SetUp!J9,")") -> Rate Impact for Year (2025-2029) | D2: 2025 | G2: Current Effective Rates | I2: =CurrentEffectiveRateDate -> 2025-06-01
C3: Baseline Region - (Residential bill) | D3: SDG&E | G3: Sales Forecast | I3: 2024
G4: Residential bill calculated using | I4: Schedule GR, Basic, Bundled, Single Family
G5: Non-CARE bill impact calculated with average summer usage of | K5: =IF($D$3="ALL",SUMPRODUCT('Res Bill Impact'!Q22:Q25,'Res Bill Impact'!U22:U25),VLOOKUP($D$3,'Res Bill Impact'!$P$22:$T$25,2,FALSE)) -> 15.16666667 | L5: therms per month
B6: Pending Proceedings | D6: Include in Impact (Y) | E6: Applicable Year(s) | G6: Non-CARE bill impact calculated with average winter usage of | K6: =IF($D$3="ALL",SUMPRODUCT('Res Bill Impact'!R22:R25,'Res Bill Impact'!U22:U25),VLOOKUP(D$3,'Res Bill Impact'!$P$22:$T$25,3,FALSE)) -> 30.33333333 | L6: therms per month
B7: ='Incremental Rev Req'!A99 -> Natural Gas Leak Abatement | D7: Y | E7: 2026-2027 | G7: CARE bill impact calculated with average summer usage of | K7: =IF($D$3="ALL",SUMPRODUCT('Res Bill Impact'!S22:S25,'Res Bill Impact'!V22:V25),VLOOKUP($D$3,'Res Bill Impact'!$P$22:$T$25,4,FALSE)) -> 14.62474328 | L7: therms per month
B8: ='Incremental Rev Req'!A100 -> GRC 2024 Track 2-Wildfire Mitigation Plan Memo Acct | D8: Y | E8: 2025-2027 | G8: CARE bill impact calculated with average winter usage of | K8: =IF($D$3="ALL",SUMPRODUCT('Res Bill Impact'!T22:T25,'Res Bill Impact'!V22:V25),VLOOKUP($D$3,'Res Bill Impact'!$P$22:$T$25,5,FALSE)) -> 26.16666667 | L8: therms per month
B9: ='Incremental Rev Req'!A101 -> 2026 Cost of Capital | D9: Y | E9: 2026 | G9: Average monthly usage is for all customers (Non-CARE and CARE) based on seasonal usage in | L9: 2024
B10: ='Incremental Rev Req'!A102 -> 2024 GRC Track 3 (PSEP and WMPMA) | D10: Y | E10: 2026 | G10: Summer season | I10: 6 | J10: months
B11: ='Incremental Rev Req'!A103 -> TIMPBA | D11: Y | E11: 2026 | G11: Winter Season | I11: =12-I10 -> 6 | J11: months
B23: Outputs:
D24: (A) | E24: (B) | F24: (C) | G24: (D) | H24: (D)/(A) | I24: (D)/(B) | J24: (D)/(C) | N24: (A) | O24: (B) | P24: (C) | Q24: (D) | R24: (D)/(A) | S24: (D)/(B) | T24: (D)/(C)
B25: Bundled Average Rates - ¢/therm | L25: Total System (Bundled and Unbundled) Average Rates - ¢/th
B26: Customer Group | D26: =BOYEffectiveRateDate -> 2025-01-01 | E26: =CurrentEffectiveRateDate -> 2025-06-01 | F26: =$D$2&" Authorized" -> 2025 Authorized | G26: =$D$2&" w/Pending" -> 2025 w/Pending | H26: =CONCATENATE("% Change over ",TEXT(BOYEffectiveRateDate,"m/d/yyyy")) -> % Change over 1/1/2025 | I26: =CONCATENATE("% Change over ",TEXT(CurrentEffectiveRateDate,"m/d/yyyy")) -> % Change over 6/1/2025 | J26: % Change over Authorized | L26: Customer Group | N26: =$D$26 -> 2025-01-01 | O26: =$E$26 -> 2025-06-01 | P26: =$D$2&" Authorized" -> 2025 Authorized | Q26: =$D$2&" w/Pending" -> 2025 w/Pending | R26: =$H$26 -> % Change over 1/1/2025 | S26: =$I$26 -> % Change over 6/1/2025 | T26: % Change over Authorized
B27: Residential | D27: 217.6490614 | E27: ='SAR and RAR'!G28 -> 262.2217112 | F27: ='SAR and RAR'!H28 -> 262.2217112 | G27: ='SAR and RAR'!I28 -> 265.9243832 | H27: =$G27/D27-1 -> 0.2218034919 | I27: 0.01412038683 | J27: 0.01412038683 | L27: Total Residential (RAR) | N27: 217.4258384 | O27: ='SAR and RAR'!R28 -> 261.9798385 | P27: ='SAR and RAR'!S28 -> 261.9798385 | Q27: ='SAR and RAR'!T28 -> 265.6825105 | R27: =$Q27/N27-1 -> 0.2219454339 | S27: =$Q27/O27-1 -> 0.01413342347 | T27: 0.01413342347
B28: System | D28: 109.7260525 | E28: ='SAR and RAR'!G29 -> 142.5908038 | F28: ='SAR and RAR'!H29 -> 142.5908038 | G28: ='SAR and RAR'!I29 -> 144.0880024 | H28: 0.3131612694 | I28: 0.01049996597 | J28: 0.01049996597 | L28: Total System (SAR) | N28: 89.85993059 | O28: ='SAR and RAR'!R29 -> 126.2957532 | P28: ='SAR and RAR'!S29 -> 126.2957532 | Q28: ='SAR and RAR'!T29 -> 127.7929518 | R28: 0.4221349929 | S28: 0.01185470255 | T28: 0.01185470255
B31: Basic Bundled Residential Monthly Average Bills
D32: =BOYEffectiveRateDate -> 2025-01-01 | E32: =CurrentEffectiveRateDate -> 2025-06-01 | F32: =$D$2&" Authorized" -> 2025 Authorized | G32: =$D$2&" w/Pending" -> 2025 w/Pending | H32: =CONCATENATE("% Change over ",TEXT(BOYEffectiveRateDate,"m/d/yyyy")) -> % Change over 1/1/2025 | I32: =CONCATENATE("% Change over ",TEXT(CurrentEffectiveRateDate,"m/d/yyyy")) -> % Change over 6/1/2025 | J32: % Change over Authorized
B33: Non-CARE | D33: =((D39*$I$10)+(D45*$I$11))/12 -> 49.96669884 | E33: =((E39*$I$10)+(E45*$I$11))/12 -> 52.00151727 | F33: 52.00151727 | G33: 52.7356729 | H33: =$G33/D33-1 -> 0.0554163898 | I33: 0.01411796549 | J33: 0.01411796549
B34: CARE | D34: =((D40*$I$10)+(D46*$I$11))/12 -> 35.41722963 | E34: 36.82133135 | F34: 36.85604337 | G34: 37.37622478 | H34: 0.05531192519 | I34: 0.01506989063 | J34: 0.01411387029
B35: Total | D35: =((D41*$I$10)+(D47*$I$11))/12 -> 47.32847345 | E35: 49.24892532 | F35: 49.25521958 | G35: 49.9505757 | H35: 0.05540221471 | I35: 0.01424701913 | J35: 0.01411740985 | M35: ='Res Bill Impact'!P18 -> Basic Bundled
M36: ='Res Bill Impact'!P19 -> 2024 Recorded Data - Average Monthly Usage - ALL-BASIC th
B37: Basic Bundled Residential Monthly Average Bills - Summer | M37: Climate Zone | N37: Summer | O37: Winter | P37: Summer | Q37: Winter
D38: =BOYEffectiveRateDate -> 2025-01-01 | E38: =CurrentEffectiveRateDate -> 2025-06-01 | F38: =$D$2&" Authorized" -> 2025 Authorized | G38: =$D$2&" w/Pending" -> 2025 w/Pending | H38: =CONCATENATE("% Change over ",TEXT(BOYEffectiveRateDate,"m/d/yyyy")) -> % Change over 1/1/2025 | I38: =CONCATENATE("% Change over ",TEXT(CurrentEffectiveRateDate,"m/d/yyyy")) -> % Change over 6/1/2025 | J38: % Change over Authorized | N38: Non-CARE | P38: CARE
B39: Non-CARE | D39: =IF($D$3="All",'Res Bill Impact'!$C$47,(VLOOKUP($D$3,'Res Bill Impact'!$B$43:$J$46,2,FALSE))) -> 34.03372757 | E39: =IF($D$3="All",'Res Bill Impact'!$E$47,(VLOOKUP($D$3,'Res Bill Impact'!$B$43:$J$46,4,FALSE))) -> 35.42488671 | F39: =IF($D$3="All",'Res Bill Impact'!$G$47,(VLOOKUP($D$3,'Res Bill Impact'!$B$43:$J$46,6,FALSE))) -> 35.42488671 | G39: =IF($D$3="All",'Res Bill Impact'!$I$47,(VLOOKUP($D$3,'Res Bill Impact'!$B$43:$J$46,8,FALSE))) -> 35.92502575 | H39: =$G39/D39-1 -> 0.05557129097 | I39: =$G39/E39-1 -> 0.0141182959 | J39: =$G39/F39-1 -> 0.0141182959 | M39: =Zones -> SDG&E | N39: ='Res Bill Impact'!Q22 -> 15.16666667 | O39: ='Res Bill Impact'!R22 -> 30.33333333 | P39: ='Res Bill Impact'!S22 -> 14.62474328 | Q39: ='Res Bill Impact'!T22 -> 26.16666667
B40: CARE | D40: =IF($D$3="All",'Res Bill Impact'!$C$57,(VLOOKUP($D$3,'Res Bill Impact'!$B$53:$J$56,2,FALSE))) -> 25.97198629 | E40: =IF($D$3="All",'Res Bill Impact'!$E$57,(VLOOKUP($D$3,'Res Bill Impact'!$B$53:$J$56,4,FALSE))) -> 27.03128198 | F40: =IF($D$3="All",'Res Bill Impact'!$G$57,(VLOOKUP($D$3,'Res Bill Impact'!$B$53:$J$56,6,FALSE))) -> 27.03128198 | G40: =IF($D$3="All",'Res Bill Impact'!$I$57,(VLOOKUP($D$3,'Res Bill Impact'!$B$53:$J$56,8,FALSE))) -> 27.41280979 | H40: =$G40/D40-1 -> 0.05547606108 | I40: =$G40/E40-1 -> 0.01411430694 | J40: 0.01411430694 | M40: 0 | N40: ='Res Bill Impact'!Q23 -> 0 | O40: ='Res Bill Impact'!R23 -> 0 | P40: ='Res Bill Impact'!S23 -> 0 | Q40: ='Res Bill Impact'!T23 -> 0
B41: Total | D41: =D39*(1-'SAR and RAR'!$AC$15)+D40*'SAR and RAR'!$AC$15 -> 32.57190857 | E41: =E39*(1-'SAR and RAR'!$AC$15)+E40*'SAR and RAR'!$AC$15 -> 33.9028916 | F41: =F39*(1-'SAR and RAR'!$AC$15)+F40*'SAR and RAR'!$AC$15 -> 33.9028916 | G41: =G39*(1-'SAR and RAR'!$AC$15)+G40*'SAR and RAR'!$AC$15 -> 34.3815231 | H41: =$G41/D41-1 -> 0.05555752205 | I41: 0.0141177192 | J41: 0.0141177192 | M41: 0 | N41: ='Res Bill Impact'!Q24 -> 0 | O41: ='Res Bill Impact'!R24 -> 0 | P41: ='Res Bill Impact'!S24 -> 0 | Q41: ='Res Bill Impact'!T24 -> 0
M42: 0 | N42: ='Res Bill Impact'!Q25 -> 0 | O42: ='Res Bill Impact'!R25 -> 0 | P42: ='Res Bill Impact'!S25 -> 0 | Q42: ='Res Bill Impact'!T25 -> 0
B43: Basic Bundled Residential Monthly Average Bills - Winter
D44: =BOYEffectiveRateDate -> 2025-01-01 | E44: =CurrentEffectiveRateDate -> 2025-06-01 | F44: =$D$2&" Authorized" -> 2025 Authorized | G44: =$D$2&" w/Pending" -> 2025 w/Pending | H44: =CONCATENATE("% Change over ",TEXT(BOYEffectiveRateDate,"m/d/yyyy")) -> % Change over 1/1/2025 | I44: =CONCATENATE("% Change over ",TEXT(CurrentEffectiveRateDate,"m/d/yyyy")) -> % Change over 6/1/2025 | J44: % Change over Authorized
B45: Non-CARE | D45: =IF($D$3="All",'Res Bill Impact'!$D$47,(VLOOKUP($D$3,'Res Bill Impact'!$B$43:$J$46,3,FALSE))) -> 65.8996701 | E45: =IF($D$3="All",'Res Bill Impact'!$F$47,(VLOOKUP($D$3,'Res Bill Impact'!$B$43:$J$46,5,FALSE))) -> 68.57814782 | F45: =IF($D$3="All",'Res Bill Impact'!$H$47,(VLOOKUP($D$3,'Res Bill Impact'!$B$43:$J$46,7,FALSE))) -> 68.57814782 | G45: =IF($D$3="All",'Res Bill Impact'!$J$47,(VLOOKUP($D$3,'Res Bill Impact'!$B$43:$J$46,9,FALSE))) -> 69.54632004 | H45: =$G45/D45-1 -> 0.05533639147 | I45: =$G45/E45-1 -> 0.01411779481 | J45: 0.01411779481
B46: CARE | D46: =IF($D$3="All",'Res Bill Impact'!$D$57,(VLOOKUP($D$3,'Res Bill Impact'!$B$53:$J$56,3,FALSE))) -> 44.86247297 | E46: =IF($D$3="All",'Res Bill Impact'!$F$57,(VLOOKUP($D$3,'Res Bill Impact'!$B$53:$J$56,5,FALSE))) -> 46.61138072 | F46: =IF($D$3="All",'Res Bill Impact'!$H$57,(VLOOKUP($D$3,'Res Bill Impact'!$B$53:$J$56,7,FALSE))) -> 46.68080476 | G46: =IF($D$3="All",'Res Bill Impact'!$J$57,(VLOOKUP($D$3,'Res Bill Impact'!$B$53:$J$56,9,FALSE))) -> 47.33963978 | H46: 0.05521690289 | I46: 0.01562406113 | J46: 0.01411361744
B47: Total | D47: =D45*(1-'SAR and RAR'!$AC$15)+D46*'SAR and RAR'!$AC$15 -> 62.08503833 | E47: =E45*(1-'SAR and RAR'!$AC$15)+E46*'SAR and RAR'!$AC$15 -> 64.59495904 | F47: =F45*(1-'SAR and RAR'!$AC$15)+F46*'SAR and RAR'!$AC$15 -> 64.60754756 | G47: =G45*(1-'SAR and RAR'!$AC$15)+G46*'SAR and RAR'!$AC$15 -> 65.5196283 | H47: 0.05532073523 | I47: 0.01431488266 | J47: 0.01411724751
B50: Basic Bundled Essential Use Residential Monthly Average Bills
D51: =BOYEffectiveRateDate -> 2025-01-01 | E51: =CurrentEffectiveRateDate -> 2025-06-01 | F51: =$D$2&" Authorized" -> 2025 Authorized | G51: =$D$2&" w/Pending" -> 2025 w/Pending | H51: =CONCATENATE("% Change over ",TEXT(BOYEffectiveRateDate,"m/d/yyyy")) -> % Change over 1/1/2025 | I51: =CONCATENATE("% Change over ",TEXT(CurrentEffectiveRateDate,"m/d/yyyy")) -> % Change over 6/1/2025 | J51: % Change over Authorized
B52: Essential Use - Non-CARE | D52: =((D58*$I$10)+(D64*$I$11))/12 -> 43.17808264 | E52: =((E58*$I$10)+(E64*$I$11))/12 -> 44.9310707 | F52: 44.9310707 | G52: 45.56539388 | H52: =$G52/D52-1 -> 0.05528988548 | I52: 0.01411769558 | J52: 0.01411769558
B53: Essential Use - CARE | D53: =((D59*$I$10)+(D65*$I$11))/12 -> 34.28978825 | E53: 35.64112535 | F53: 35.67959599 | G53: 36.18316416 | H53: 0.05521690289 | I53: 0.01520824077 | J53: 0.01411361744
B54: Total | D54: =D52*(1-'SAR and RAR'!$AC$15)+D53*'SAR and RAR'!$AC$15 -> 41.56638646 | E54: =E52*(1-'SAR and RAR'!$AC$15)+E53*'SAR and RAR'!$AC$15 -> 43.24654398 | F54: =F52*(1-'SAR and RAR'!$AC$15)+F53*'SAR and RAR'!$AC$15 -> 43.25351979 | G54: =G52*(1-'SAR and RAR'!$AC$15)+G53*'SAR and RAR'!$AC$15 -> 43.86413343 | H54: =$G54/D54-1 -> 0.0552789684 | I54: =$G54/E54-1 -> 0.01428066586 | J54: 0.01411708558
B56: Basic Bundled Essential Use Residential Monthly Average Bills - Summer | M56: Monthly Tier 1 Baseline Allowance -BASIC (th)
D57: =BOYEffectiveRateDate -> 2025-01-01 | E57: =CurrentEffectiveRateDate -> 2025-06-01 | F57: =$D$2&" Authorized" -> 2025 Authorized | G57: =$D$2&" w/Pending" -> 2025 w/Pending | H57: =CONCATENATE("% Change over ",TEXT(BOYEffectiveRateDate,"m/d/yyyy")) -> % Change over 1/1/2025 | I57: =CONCATENATE("% Change over ",TEXT(CurrentEffectiveRateDate,"m/d/yyyy")) -> % Change over 6/1/2025 | J57: % Change over Authorized | M57: Climate Zone | N57: Summer 2021 | O57: Winter 2021
B58: Essential Use - Non-CARE | D58: =IF($D$3="All",'Res Bill Impact'!C67,(VLOOKUP($D$3,'Res Bill Impact'!$B$63:$J$66,2,FALSE))) -> 23.74794545 | E58: =IF($D$3="All",'Res Bill Impact'!E67,(VLOOKUP($D$3,'Res Bill Impact'!$B$63:$J$66,4,FALSE))) -> 24.71208889 | F58: =IF($D$3="All",'Res Bill Impact'!G67,(VLOOKUP($D$3,'Res Bill Impact'!$B$63:$J$66,6,FALSE))) -> 24.71208889 | G58: =IF($D$3="All",'Res Bill Impact'!I67,(VLOOKUP($D$3,'Res Bill Impact'!$B$63:$J$66,8,FALSE))) -> 25.06096663 | H58: =$G58/D58-1 -> 0.05528988548 | I58: =$G58/E58-1 -> 0.01411769558 | J58: =$G58/F58-1 -> 0.01411769558 | M58: =Zones -> SDG&E | N58: ='Res Bill Impact'!I22 -> 11 | O58: ='Res Bill Impact'!J22 -> 29
B59: Essential Use - CARE | D59: =IF($D$3="All",'Res Bill Impact'!C77,(VLOOKUP($D$3,'Res Bill Impact'!$B$73:$J$76,2,FALSE))) -> 18.85938354 | E59: =IF($D$3="All",'Res Bill Impact'!E77,(VLOOKUP($D$3,'Res Bill Impact'!$B$73:$J$76,4,FALSE))) -> 19.6237778 | F59: =IF($D$3="All",'Res Bill Impact'!G77,(VLOOKUP($D$3,'Res Bill Impact'!$B$73:$J$76,6,FALSE))) -> 19.6237778 | G59: =IF($D$3="All",'Res Bill Impact'!I77,(VLOOKUP($D$3,'Res Bill Impact'!$B$73:$J$76,8,FALSE))) -> 19.90074029 | H59: =$G59/D59-1 -> 0.05521690289 | I59: 0.01411361744 | J59: 0.01411361744 | M59: 0 | N59: ='Res Bill Impact'!I23 -> 0 | O59: ='Res Bill Impact'!J23 -> 0
B60: Total | D60: =D58*(1-'SAR and RAR'!$AC$15)+D59*'SAR and RAR'!$AC$15 -> 22.86151256 | E60: =E58*(1-'SAR and RAR'!$AC$15)+E59*'SAR and RAR'!$AC$15 -> 23.78943588 | F60: =F58*(1-'SAR and RAR'!$AC$15)+F59*'SAR and RAR'!$AC$15 -> 23.78943588 | G60: =G58*(1-'SAR and RAR'!$AC$15)+G59*'SAR and RAR'!$AC$15 -> 24.12527339 | H60: =$G60/D60-1 -> 0.0552789684 | I60: =$G60/E60-1 -> 0.01411708558 | J60: 0.01411708558 | M60: 0 | N60: ='Res Bill Impact'!I24 -> 0 | O60: ='Res Bill Impact'!J24 -> 0
M61: 0 | N61: ='Res Bill Impact'!I25 -> 0 | O61: ='Res Bill Impact'!J25 -> 0
B62: Basic Bundled Essential Use Residential Monthly Average Bills - Winter
D63: =BOYEffectiveRateDate -> 2025-01-01 | E63: =CurrentEffectiveRateDate -> 2025-06-01 | F63: =$D$2&" Authorized" -> 2025 Authorized | G63: =$D$2&" w/Pending" -> 2025 w/Pending | H63: =CONCATENATE("% Change over ",TEXT(BOYEffectiveRateDate,"m/d/yyyy")) -> % Change over 1/1/2025 | I63: =CONCATENATE("% Change over ",TEXT(CurrentEffectiveRateDate,"m/d/yyyy")) -> % Change over 6/1/2025 | J63: % Change over Authorized
B64: Essential Use - Non-CARE | D64: =IF($D$3="All",'Res Bill Impact'!D67,(VLOOKUP($D$3,'Res Bill Impact'!$B$63:$J$66,3,FALSE))) -> 62.60821982 | E64: =IF($D$3="All",'Res Bill Impact'!F67,(VLOOKUP($D$3,'Res Bill Impact'!$B$63:$J$66,5,FALSE))) -> 65.15005252 | F64: =IF($D$3="All",'Res Bill Impact'!H67,(VLOOKUP($D$3,'Res Bill Impact'!$B$63:$J$66,7,FALSE))) -> 65.15005252 | G64: =IF($D$3="All",'Res Bill Impact'!J67,(VLOOKUP($D$3,'Res Bill Impact'!$B$63:$J$66,9,FALSE))) -> 66.06982113 | H64: =$G64/D64-1 -> 0.05528988548 | I64: =$G64/E64-1 -> 0.01411769558 | J64: =$G64/F64-1 -> 0.01411769558
B65: Essential Use - CARE | D65: =IF($D$3="All",'Res Bill Impact'!D77,(VLOOKUP($D$3,'Res Bill Impact'!$B$73:$J$76,3,FALSE))) -> 49.72019297 | E65: =IF($D$3="All",'Res Bill Impact'!F77,(VLOOKUP($D$3,'Res Bill Impact'!$B$73:$J$76,5,FALSE))) -> 51.6584729 | F65: =IF($D$3="All",'Res Bill Impact'!H77,(VLOOKUP($D$3,'Res Bill Impact'!$B$73:$J$76,7,FALSE))) -> 51.73541419 | G65: =IF($D$3="All",'Res Bill Impact'!J77,(VLOOKUP($D$3,'Res Bill Impact'!$B$73:$J$76,9,FALSE))) -> 52.46558804 | H65: =$G65/D65-1 -> 0.05521690289 | I65: 0.01562406113 | J65: 0.01411361744
B66: Total | D66: =D64*(1-'SAR and RAR'!$AC$15)+D65*'SAR and RAR'!$AC$15 -> 60.27126037 | E66: =E64*(1-'SAR and RAR'!$AC$15)+E65*'SAR and RAR'!$AC$15 -> 62.70365208 | F66: =F64*(1-'SAR and RAR'!$AC$15)+F65*'SAR and RAR'!$AC$15 -> 62.71760369 | G66: =G64*(1-'SAR and RAR'!$AC$15)+G65*'SAR and RAR'!$AC$15 -> 63.60299347 | H66: 0.0552789684 | I66: 0.01434272735 | J66: 0.01411708558
B69: Basic Bundled Typical Residential Monthly Average Bills
D70: =BOYEffectiveRateDate -> 2025-01-01 | E70: =CurrentEffectiveRateDate -> 2025-06-01 | F70: =$D$2&" Authorized" -> 2025 Authorized | G70: =$D$2&" w/Pending" -> 2025 w/Pending | H70: =CONCATENATE("% Change over ",TEXT(BOYEffectiveRateDate,"m/d/yyyy")) -> % Change over 1/1/2025 | I70: =CONCATENATE("% Change over ",TEXT(CurrentEffectiveRateDate,"m/d/yyyy")) -> % Change over 6/1/2025 | J70: % Change over Authorized
B71: 5-Year Average Usage - Non-CARE | D71: =((D77*$I$10)+(D83*$I$11))/12 -> 53.94476915 | E71: =((E77*$I$10)+(E83*$I$11))/12 -> 56.14473774 | F71: 56.14473774 | G71: 56.93739431 | H71: =$G71/D71-1 -> 0.05547572475 | I71: 0.01411809207 | J71: 0.01411809207
C72: 5-Year Average Usage - CARE | D72: =((D78*$I$10)+(D84*$I$11))/12 -> 35.87501472 | E72: 37.29696262 | F72: 37.33238306 | G72: 37.85928735 | H72: =$G72/D72-1 -> 0.05531071265 | I72: =$G72/E72-1 -> 0.01507695772 | J72: =$G72/F72-1 -> 0.01411386706
B73: Total | D73: =((D79*$I$10)+(D85*$I$11))/12 -> 50.66821767 | E73: 52.72710937 | F73: 52.73353208 | G73: 53.47800034 | H73: 0.05545453934 | I73: 0.01424107986 | J73: 0.0141175497 | M73: ='Res Bill Impact'!P27 -> Typical Bundled
M74: ='Res Bill Impact'!P28 -> 2020-2024 Recorded Data - Average Monthly Usage - ALL-BASIC th
B75: Basic Bundled Typical Residential Monthly Average Bills - Summer | M75: Climate Zone | N75: Summer | O75: Winter | P75: Summer | Q75: Winter
D76: =BOYEffectiveRateDate -> 2025-01-01 | E76: =CurrentEffectiveRateDate -> 2025-06-01 | F76: =$D$2&" Authorized" -> 2025 Authorized | G76: =$D$2&" w/Pending" -> 2025 w/Pending | H76: =CONCATENATE("% Change over ",TEXT(BOYEffectiveRateDate,"m/d/yyyy")) -> % Change over 1/1/2025 | I76: =CONCATENATE("% Change over ",TEXT(CurrentEffectiveRateDate,"m/d/yyyy")) -> % Change over 6/1/2025 | J76: % Change over Authorized | N76: Non-CARE | P76: CARE
B77: 5-Year Average Usage - Non-CARE | D77: =IF($D$3="All",'Res Bill Impact'!C87,(VLOOKUP($D$3,'Res Bill Impact'!$B$83:$J$86,2,FALSE))) -> 34.99581719 | E77: =IF($D$3="All",'Res Bill Impact'!E87,(VLOOKUP($D$3,'Res Bill Impact'!$B$83:$J$86,4,FALSE))) -> 36.42691762 | F77: =IF($D$3="All",'Res Bill Impact'!G87,(VLOOKUP($D$3,'Res Bill Impact'!$B$83:$J$86,6,FALSE))) -> 36.42691762 | G77: =IF($D$3="All",'Res Bill Impact'!I87,(VLOOKUP($D$3,'Res Bill Impact'!$B$83:$J$86,8,FALSE))) -> 36.94120501 | H77: =$G77/D77-1 -> 0.05558915259 | I77: 0.014118334 | J77: 0.014118334 | M77: =Zones -> SDG&E | N77: ='Res Bill Impact'!Q31 -> 15.55639947 | O77: ='Res Bill Impact'!R31 -> 33.1665529 | P77: ='Res Bill Impact'!S31 -> 14.62474328 | Q77: ='Res Bill Impact'!T31 -> 26.70068582
C78: 5-Year Average Usage - CARE | D78: =IF($D$3="All",'Res Bill Impact'!C97,(VLOOKUP($D$3,'Res Bill Impact'!$B$93:$J$96,2,FALSE))) -> 25.97198629 | E78: =IF($D$3="All",'Res Bill Impact'!E97,(VLOOKUP($D$3,'Res Bill Impact'!$B$93:$J$96,4,FALSE))) -> 27.03128198 | F78: =IF($D$3="All",'Res Bill Impact'!G97,(VLOOKUP($D$3,'Res Bill Impact'!$B$93:$J$96,6,FALSE))) -> 27.03128198 | G78: =IF($D$3="All",'Res Bill Impact'!I97,(VLOOKUP($D$3,'Res Bill Impact'!$B$93:$J$96,8,FALSE))) -> 27.41280979 | H78: =$G78/D78-1 -> 0.05547606108 | I78: =$G78/E78-1 -> 0.01411430694 | J78: =$G78/F78-1 -> 0.01411430694 | M78: 0 | N78: ='Res Bill Impact'!Q32 -> 0 | O78: ='Res Bill Impact'!R32 -> 0 | P78: ='Res Bill Impact'!S32 -> 0 | Q78: ='Res Bill Impact'!T32 -> 0
B79: Total | D79: =D77*(1-'SAR and RAR'!$AC$15)+D78*'SAR and RAR'!$AC$15 -> 33.35954445 | E79: =E77*(1-'SAR and RAR'!$AC$15)+E78*'SAR and RAR'!$AC$15 -> 34.72322629 | F79: =F77*(1-'SAR and RAR'!$AC$15)+F78*'SAR and RAR'!$AC$15 -> 34.72322629 | G79: =G77*(1-'SAR and RAR'!$AC$15)+G78*'SAR and RAR'!$AC$15 -> 35.21344066 | H79: 0.05557318719 | I79: 0.01411776554 | J79: 0.01411776554 | M79: 0 | N79: ='Res Bill Impact'!Q33 -> 0 | O79: ='Res Bill Impact'!R33 -> 0 | P79: ='Res Bill Impact'!S33 -> 0 | Q79: ='Res Bill Impact'!T33 -> 0
M80: 0 | N80: ='Res Bill Impact'!Q34 -> 0 | O80: ='Res Bill Impact'!R34 -> 0 | P80: ='Res Bill Impact'!S34 -> 0 | Q80: ='Res Bill Impact'!T34 -> 0
B81: Basic Bundled Typical Residential Monthly Average Bills - Winter
D82: =BOYEffectiveRateDate -> 2025-01-01 | E82: =CurrentEffectiveRateDate -> 2025-06-01 | F82: =$D$2&" Authorized" -> 2025 Authorized | G82: =$D$2&" w/Pending" -> 2025 w/Pending | H82: =CONCATENATE("% Change over ",TEXT(BOYEffectiveRateDate,"m/d/yyyy")) -> % Change over 1/1/2025 | I82: =CONCATENATE("% Change over ",TEXT(CurrentEffectiveRateDate,"m/d/yyyy")) -> % Change over 6/1/2025 | J82: % Change over Authorized
B83: 5-Year Average Usage - Non-CARE | D83: =IF($D$3="All",'Res Bill Impact'!D87,(VLOOKUP($D$3,'Res Bill Impact'!$B$83:$J$86,3,FALSE))) -> 72.89372111 | E83: =IF($D$3="All",'Res Bill Impact'!F87,(VLOOKUP($D$3,'Res Bill Impact'!$B$83:$J$86,5,FALSE))) -> 75.86255786 | F83: =IF($D$3="All",'Res Bill Impact'!H87,(VLOOKUP($D$3,'Res Bill Impact'!$B$83:$J$86,7,FALSE))) -> 75.86255786 | G83: =IF($D$3="All",'Res Bill Impact'!J87,(VLOOKUP($D$3,'Res Bill Impact'!$B$83:$J$86,9,FALSE))) -> 76.93358362 | H83: =$G83/D83-1 -> 0.05542126876 | I83: 0.0141179759 | J83: 0.0141179759
C84: 5-Year Average Usage - CARE | D84: =IF($D$3="All",'Res Bill Impact'!D97,(VLOOKUP($D$3,'Res Bill Impact'!$B$93:$J$96,3,FALSE))) -> 45.77804314 | E84: =IF($D$3="All",'Res Bill Impact'!F97,(VLOOKUP($D$3,'Res Bill Impact'!$B$93:$J$96,5,FALSE))) -> 47.56264326 | F84: =IF($D$3="All",'Res Bill Impact'!H97,(VLOOKUP($D$3,'Res Bill Impact'!$B$93:$J$96,7,FALSE))) -> 47.63348414 | G84: =IF($D$3="All",'Res Bill Impact'!J97,(VLOOKUP($D$3,'Res Bill Impact'!$B$93:$J$96,9,FALSE))) -> 48.30576491 | H84: =$G84/D84-1 -> 0.05521690289 | I84: =$G84/E84-1 -> 0.01562406113 | J84: =$G84/F84-1 -> 0.01411361744
B85: Total | D85: =D83*(1-'SAR and RAR'!$AC$15)+D84*'SAR and RAR'!$AC$15 -> 67.97689089 | E85: =E83*(1-'SAR and RAR'!$AC$15)+E84*'SAR and RAR'!$AC$15 -> 70.73099244 | F85: =F83*(1-'SAR and RAR'!$AC$15)+F84*'SAR and RAR'!$AC$15 -> 70.74383787 | G85: =G83*(1-'SAR and RAR'!$AC$15)+G84*'SAR and RAR'!$AC$15 -> 71.74256002 | H85: 0.05539631311 | I85: 0.01430161727 | J85: 0.01411744376

Sheet Authorized Rev Req
A2: Annual Period 2025
A3: Reporting Date: Quarter Ended June 30
B5: Revenue Requirement Date: | C5: 2022-01-01 | D5: 2023-01-01 | E5: 2023-03-01 | F5: 2023-08-01 | G5: 2023-11-01 | H5: 2024-01-01 | I5: 2024-07-01 | J5: 2024-10-01 | K5: 2025-01-01 | L5: 2025-02-01 | M5: 2025-02-01
B6: Advice Letter: | C6: AL 3046-G | D6: AL 3149-G | E6: AL 3163-G | F6: AL 3213-G | G6: AL 3244-G | H6: AL 3261-G | I6: AL 3312-G | J6: AL-3345-G | K6: AL-3383-G | L6: AL-3392-G-A | M6: AL-3392-G-A
A7: Filing Description | B7: Authority for Revenue Requirement as of 2/1/2025 | C7: Authorized Revenue Requirement ($000) | D7: Authorized Revenue Requirement ($000) | E7: Authorized Revenue Requirement ($000) | F7: Authorized Revenue Requirement ($000) | G7: Authorized Revenue Requirement ($000) | H7: Authorized Revenue Requirement ($000) | I7: Authorized Revenue Requirement ($000) | J7: Authorized Revenue Requirement ($000) | K7: Authorized Revenue Requirement ($000) | L7: Authorized Revenue Requirement ($000) | M7: Authorized Revenue Requirement ($000) | N7: Revenue Recovery Mechanism | O7: Balancing Account
A8: Safety Affordability Reliability Proceedings
A9: Total Allocated Base Margin | B9: D.24-12-074 | C9: 412393.9278 | D9: 412992.2744 | E9: 412992.2744 | F9: 412992.2744 | G9: 412992.2744 | H9: 417772.1395 | I9: 417344.7414 | J9: 417344.7414 | K9: 413132.5854 | L9: 475212.7363 | M9: 475212.7363 | N9: Allocated Base Margin | O9: N
A10: SCG Transport excl Core Storge & Load Balance $000 | B10: D.24-12-074 | C10: 10101.54873 | D10: 18927.30151 | E10: 18927.30151 | F10: 19163.89443 | G10: 16390.05907 | H10: 59110.52143 | I10: 59221.34654 | J10: 59221.22817 | K10: 21557.26617 | L10: 24405.13487 | M10: 24405.13487 | N10: ECPT | O10: N
A11: SCG Core Seasonal Storage | B11: D.24-12-074 | C11: 14374.70092 | D11: 18907.65713 | E11: 18907.65713 | F11: 18907.65713 | G11: 17001.41011 | H11: 17001.41011 | I11: 17001.41011 | J11: 17001.41011 | K11: 17001.41011 | L11: 22813.15835 | M11: 22813.15835 | N11: Seasonal Storage | O11: N
A12: SCG Load Balancing Allocated to ALL SDGE $000 | B12: D.24-07-009, | C12: 9102.083783 | D12: 11569.31898 | E12: 11569.31898 | F12: 11569.31898 | G12: 11389.10272 | H12: 11389.10272 | I12: 11389.10272 | J12: 11389.10272 | K12: 11389.10272 | L12: 13289.97113 | M12: 13289.97113 | N12: ECPT | O12: N
A13: Pipeline Safety Enhancement Plan (PSEP) -Local T (subtracted from Base Margin and allocated here) | B13: D.19-09-051 | C13: 2576.6109 | D13: 2698.4484 | E13: 2698.4484 | F13: 2698.4484 | G13: 2698.4484 | H13: 2698.4484 | I13: 2698.4484 | J13: 2698.4484 | K13: 2698.4484 | L13: 1416.84732 | M13: 1416.84732 | N13: Local Transmission | O13: N
A14: LUAF | B14: D.24-07-009, AL 3383, AL 3392-G-A | C14: 3180.230322 | D14: 4359.515855 | E14: 4359.515855 | F14: 4359.515855 | G14: 4359.515855 | H14: 3607.524927 | I14: 3722.57939 | J14: 3722.57939 | K14: 3027.487009 | L14: 9159.293856 | M14: 9159.293856 | N14: 46% Res (LUAF, Other) | O14: N
A15: Company Use Gas: Other | B15: D.24-07-009, AL 3383, AL 3392-G-A | C15: 234.7866005 | D15: 321.8496159 | E15: 321.8496159 | F15: 321.8496159 | G15: 321.8496159 | H15: 266.332444 | I15: 274.8265603 | J15: 274.8265603 | K15: 223.5100326 | L15: 298.3601002 | M15: 298.3601002 | N15: ECPT | O15: N
A16: SDG&E NGLAPBA | B16: AL 3071-G, D.24-07-009, AL 3383, AL 3392-G-A | C16: 983.2214892 | D16: 734.7831749 | E16: 734.7831749 | F16: 143.9157346 | G16: 143.9157346 | H16: 666.3843293 | I16: 666.3843293 | J16: 666.3843293 | K16: 666.3843293 | L16: 666.9938672 | M16: 666.9938672 | N16: EPAM | O16: N
A17: SDG&ENERBA - NGLAP Subacct | B17: AL 3071-G, D.24-07-009, AL 3383, AL 3392-G-A | C17: 1620.035133 | D17: 5725.637359 | E17: 5725.637359 | F17: 6792.859114 | G17: 6792.859114 | H17: 4950.435699 | I17: 4967.07272 | J17: 4967.07272 | K17: 4958.652935 | L17: 4963.188586 | M17: 4963.188586 | N17: EPAM | O17: N
A18: SDG&E PSEP - 2017 Forecast Application RevReq Capital Cost - Local Transmission | B18: D.24-07-009, AL 3383, AL 3392-G-A | C18: 52.10801562 | D18: 47.13168485 | E18: 47.13168485 | F18: 47.13168485 | G18: 47.13168485 | H18: 48.34878876 | I18: 48.34878876 | J18: 48.34878876 | K18: 43.89855417 | L18: 39.31358078 | M18: 39.31358078 | N18: Local Transmission | O18: N
A19: CFCA | B19: D.24-07-009, AL 3383, AL 3392-G-A | C19: 37541.47962 | D19: 55563.79773 | E19: 55563.79773 | F19: 55563.79773 | G19: 55563.79773 | H19: 25794.18927 | I19: 25794.18927 | J19: 32720.48408 | K19: 75579.00012 | L19: 75648.13179 | M19: 75648.13179 | N19: CFCA | O19: Y
A20: CFCA -NGV only | B20: D.24-07-009, AL 3383, AL 3392-G-A | C20: -210.7232916 | D20: 3011.743206 | E20: 3011.743206 | F20: 3011.743206 | G20: 3011.743206 | H20: 2805.095065 | I20: 2805.095065 | J20: 2805.095065 | K20: 25.575265 | L20: 25.59865855 | M20: 25.59865855 | N20: Non-Residential | O20: Y
A21: CFCA - C&I shortfall only | B21: D.24-07-009, AL 3383, AL 3392-G-A | C21: 5444.026009 | D21: 40.920424 | E21: 40.920424 | F21: 40.920424 | G21: 40.920424 | H21: 37.8513922 | I21: 37.8513922 | J21: 37.8513922 | K21: 39.8974134 | L21: 39.93390733 | M21: 39.93390733 | N21: Non-Residential | O21: Y
A22: Hazardous Substance Cleanup Cost Acct HSCCA | B22: D.24-07-009, AL 3383, AL 3392-G-A | C22: 290.5117224 | D22: 122.761272 | E22: 122.761272 | F22: 122.761272 | G22: 122.761272 | H22: 72.6337526 | I22: 72.6337526 | J22: 72.6337526 | K22: 420.4573566 | L22: 420.8419465 | M22: 420.8419465 | N22: ECPT | O22: Y
A23: Master Meter Balancing Account (MMBA) | B23: D.24-07-009, AL 3383, AL 3392-G-A | C23: 10311.12029 | D23: 11907.84338 | E23: 11907.84338 | F23: 11907.84338 | G23: 11907.84338 | H23: 15931.34407 | I23: 15931.34407 | J23: 15931.34407 | K23: 23565.04917 | L23: 23586.60398 | M23: 23586.60398 | N23: EPAM | O23: Y
A24: PBOPBA | B24: D.24-07-009, AL 3383, AL 3392-G-A | C24: -623.5169218 | D24: -531.2391745 | E24: -531.2391745 | F24: -531.2391745 | G24: -531.2391745 | H24: -354.9846782 | I24: -354.9846782 | J24: -354.9846782 | K24: -417.3883248 | L24: -225.6405393 | M24: -225.6405393 | N24: EPAM | O24: Y
A25: Pension BA | B25: D.24-07-009, AL 3383, AL 3392-G-A | C25: -575.9313062 | D25: -298.791729 | E25: -298.791729 | F25: -298.791729 | G25: -298.791729 | H25: 51.15053 | I25: 51.15053 | J25: 51.15053 | K25: -5049.580322 | L25: -625.5381288 | M25: -625.5381288 | N25: EPAM | O25: Y
A26: Safety Enhancement Balancing Account - Local Transmission | B26: D.24-07-009, AL 3383, AL 3392-G-A | C26: 3036.463065 | D26: 3084.238556 | E26: 3084.238556 | F26: 3084.238556 | G26: 3084.238556 | H26: 3321.440476 | I26: 3321.440476 | J26: 3321.440476 | K26: 3360.988335 | L26: -884.13754 | M26: -884.13754 | N26: Local Transmission | O26: Y
A27: Safety Enhancement Balancing Account - Distribution | B27: D.24-07-009, AL 3383, AL 3392-G-A | C27: 38688.93341 | D27: 39079.21463 | E27: 39079.21463 | F27: 39079.21463 | G27: 39079.21463 | H27: 48957.41731 | I27: 49368.17838 | J27: 49368.17838 | K27: 48598.55603 | L27: 23688.77397 | M27: 23688.77397 | N27: Distribution | O27: Y
A28: Rewards & Penalties Bal Acct RPBA | B28: D.24-07-009, AL 3383, AL 3392-G-A | C28: -127.866075 | D28: 310.9952224 | E28: 310.9952224 | F28: 310.9952224 | G28: 310.9952224 | H28: -119.6922402 | I28: -119.6922402 | J28: -119.6922402 | K28: -51.15053 | L28: -51.19731709 | M28: -51.19731709 | N28: EPAM | O28: Y
A29: SGPMA - Rev Req for NEXT Year | B29: D.24-07-009, AL 3383, AL 3392-G-A | C29: 1545.235943 | D29: 1545.359812 | E29: 1545.359812 | F29: 1545.359812 | G29: 1545.359812 | H29: 1696.151575 | I29: 1696.151575 | J29: 1696.151575 | K29: 0 | L29: 0 | M29: 0 | N29: ECPT | O29: Y
A30: Integrated Transmission Margin ITBA | B30: D.24-07-009, AL 3383, AL 3392-G-A | C30: 24.5502864 | D30: 704.3505167 | E30: 704.3505167 | F30: 704.3505167 | G30: 704.3505167 | H30: -289.5119998 | I30: -289.5119998 | J30: -289.5119998 | K30: 1889.500578 | L30: 1891.228893 | M30: 1891.228893 | N30: ECPT | O30: Y
A31: Liability Insurance Premium Balancing Account (LIPBA) | B31: D.24-07-009, AL 3383, AL 3392-G-A | C31: 3038.097942 | D31: 4285.391403 | E31: 4285.391403 | F31: 4285.391403 | G31: 4285.391403 | H31: 4093.065411 | I31: 4093.065411 | J31: 4093.065411 | K31: 4609.685764 | L31: -348.5141004 | M31: -348.5141004 | N31: EPAM | O31: Y
A32: Residential Uncollectible Balancing Account | B32: D.24-07-009, AL 3383, AL 3392-G-A | C32: 5629.176086 | D32: 10487.90467 | E32: 10487.90467 | F32: 10487.90467 | G32: 10487.90467 | H32: 26260.6821 | I32: 26260.6821 | J32: 26260.6821 | K32: 13910.89814 | L32: 13923.62236 | M32: 13923.62236 | N32: EPAM | O32: Y
A33: NFCA -Margin Only | B33: D.24-07-009, AL 3383, AL 3392-G-A | C33: -7128.789413 | D33: 3046.525567 | E33: 3046.525567 | F33: 3046.525567 | G33: 3046.525567 | H33: 4377.462357 | I33: 4377.462357 | J33: 4377.462357 | K33: 57.2885936 | L33: 57.34099514 | M33: 57.34099514 | N33: Non-Residential | O33: Y
A34: NFCA -Nonmargin Other | B34: D.24-07-009, AL 3383, AL 3392-G-A | C34: 1705.221976 | D34: 794.8792362 | E34: 794.8792362 | F34: 794.8792362 | G34: 794.8792362 | H34: 6588.188264 | I34: 6588.188264 | J34: 6784.093254 | K34: 4107.387559 | L34: 4111.144563 | M34: 4111.144563 | N34: Non-Residential | O34: Y
A35: NFCA -Nonmargin SCG | B35: D.24-07-009, AL 3383, AL 3392-G-A | C35: -100.2470028 | D35: 132.991378 | E35: 132.991378 | F35: 132.991378 | G35: 132.991378 | H35: -1020.964579 | I35: -1020.964579 | J35: -1020.964579 | K35: 446.0326216 | L35: 446.4406051 | M35: 446.4406051 | N35: Non-Residential | O35: Y
A36: Minimum Bil/Customer Charge Revenue | B36: D.24-07-009, AL 3383, AL 3392-G-A | C36: 1816.44096 | D36: 1816.44096 | E36: 1816.44096 | F36: 1816.44096 | G36: 1816.44096 | H36: 1816.44096 | I36: 1816.44096 | J36: 1816.44096 | K36: 1816.44096 | L36: 1428.253 | M36: 1428.253 | N36: All Residential | O36: N
A37: Borrego Revenue | B37: D.24-07-009, AL 3383, AL 3392-G-A | C37: 64.57174233 | D37: 64.57174233 | E37: 64.57174233 | F37: 64.57174233 | G37: 64.57174233 | H37: 64.57174233 | I37: 64.57174233 | J37: 64.57174233 | K37: 64.57174233 | L37: 59.43882455 | M37: 59.43882455 | N37: All Residential | O37: N
A38: Employee Discount (Schd GR) | B38: D.24-07-009, AL 3383, AL 3392-G-A | C38: -367.20947 | D38: -367.20947 | E38: -367.20947 | F38: -367.20947 | G38: -367.20947 | H38: -367.20947 | I38: -367.20947 | J38: -367.20947 | K38: -367.20947 | L38: -606.06691 | M38: -606.06691 | N38: All Residential | O38: N
A39: SDFFD | B39: D.24-07-009, AL 3383, AL 3392-G-A | C39: 1986.901219 | D39: 2243.525796 | E39: 2243.525796 | F39: 2243.525796 | G39: 2235.276485 | H39: 2098.334067 | I39: 2112.139648 | J39: 2130.670784 | K39: 2213.627038 | L39: 2406.272172 | M39: 2406.272172 | N39: All Residential | O39: N
A40: Customer Information System Account - CISBA | B40: D.24-07-009, AL 3383, AL 3392-G-A | C40: =0 -> 0 | D40: 28619.67293 | E40: 28619.67293 | F40: 28619.67293 | G40: 28619.67293 | H40: 0 | I40: 0 | J40: 0 | K40: 0 | L40: 0 | M40: 0 | N40: EPAM | O40: Y
A41: Transition, Stabilization and OCM Balancing Account - TSOBA-G | B41: AL 3039-G, D.24-07-009, AL 3383, AL 3392-G-A | C41: =0 -> 0 | D41: 10830.8434 | E41: 10830.8434 | F41: 10830.8434 | G41: 10830.8434 | H41: 0 | I41: 0 | J41: 0 | K41: 0 | L41: 0 | M41: 0 | N41: EPAM | O41: Y
A42: Percentage of Income Payment Plan Balancing Account (PIPPBA) | B42: D. 21-10-012, D.24-07-009, AL 3383, AL 3392-G-A | C42: 0 | D42: 0 | E42: 0 | F42: 0 | G42: 0 | H42: 113.5541766 | I42: 113.5541766 | J42: 113.5541766 | K42: 211.7631942 | L42: 211.9568928 | M42: 211.9568928 | N42: ECPT | O42: Y
A43: Gain/Loss on Sale Memo Acct GLOSMA | B43: D.24-07-009, AL 3383, AL 3392-G-A | C43: 0 | D43: 0 | E43: 0 | F43: 0 | G43: 0 | H43: -1.0230106 | I43: -1.0230106 | J43: -1.0230106 | K43: 0 | L43: 0 | M43: 0 | N43: EPAM | O43: Y
A44: Transmission Integrity Management Program Memorandum Account (TIMPBA) | B44: AL 3312-G,D.24-07-009, AL 3383, AL 3392-G-A | C44: 0 | D44: 0 | E44: 0 | F44: 0 | G44: 0 | H44: 0 | I44: 7280.408127 | J44: 7280.408127 | K44: 7280.408127 | L44: 7567.704272 | M44: 7567.704272 | N44: Local Transmission | O44: Y
A45: Cost of Capital Adjustment (Subtracted from Base Margin) | B45: D.24-12-074,AL 3392-G-A | C45: 0 | D45: 0 | E45: 0 | F45: 0 | G45: 0 | H45: 0 | I45: 0 | J45: 0 | K45: 0 | L45: -5707 | M45: -5707 | N45: EPAM | O45: N
A46: General Rate Case Revenue Requirement Memorandum Account (GRCMA) | D46: 0 | E46: 0 | F46: 0 | G46: 0 | H46: 0 | I46: 0 | J46: 0 | K46: 0 | L46: 18532.626 | M46: 18532.626 | N46: EPAM | O46: Y
A47: GRCRRMA Sub allocation for AB32 Admin Fees | B47: D.24-12-074,AL 3392-G-A | C47: 0 | D47: 0 | E47: 0 | F47: 0 | G47: 0 | H47: 0 | I47: 0 | J47: 0 | K47: 0 | L47: 341.2493333 | M47: 341.2493333 | N47: ECPT | O47: Y
A48: GRCRRMA PSEP Local Transmission | B48: D.24-12-074,AL 3392-G-A | C48: 0 | D48: 0 | E48: 0 | F48: 0 | G48: 0 | H48: 0 | I48: 0 | J48: 0 | K48: 0 | L48: -679.73004 | M48: -679.73004 | N48: Local Transmission | O48: Y
A49: GRCRRMA PSEP Distribution | B49: D.24-12-074,AL 3392-G-A | C49: 0 | D49: 0 | E49: 0 | F49: 0 | G49: 0 | H49: 0 | I49: 0 | J49: 0 | K49: 0 | L49: 10178.70533 | M49: 10178.70533 | N49: Distribution | O49: Y
A50: Pipeline Safety Enhancement Plan (PSEP) -Distribution (subtracted from Base Margin and allocated here) | B50: D.19-09-051 | C50: 0 | D50: 0 | E50: 0 | F50: 0 | G50: 0 | H50: 0 | I50: 0 | J50: 0 | K50: 0 | L50: 15437.62577 | M50: 15437.62577 | N50: Distribution
A51: Distribution Integrity Management Program Memorandum Account (DIMPBA) | C51: 0 | D51: 0 | E51: 0 | F51: 0 | G51: 0 | H51: 0 | I51: 0 | J51: 0 | K51: 0 | L51: -14786.15752 | M51: -14786.15752 | N51: Distribution
A53: Subtotal Safety Affordability Reliability | C53: =SUM(C9:C51) -> 556607.7005 | D53: =SUM(D9:D51) -> 652780.6495 | E53: =SUM(E9:E52) -> 652780.6495 | F53: 653493.5968 | G53: 648625.0488 | H53: 659436.8349 | I53: 666965.4223 | J53: 674106.0348 | K53: =SUM(K9:K44) -> 657010.545 | L53: =SUM(L9:L52) -> 728354.5091 | M53: =SUM(M9:M52) -> 728354.5091
A57: Public Policy Proceedings
A58: Green House Gas Balancing Account (GHGBA) - End User Revenue Requirement | B58: D.20-02-045, AL 3149-G, AL 3129-G-A and AL 3129-G , 3247-G-B | C58: 62728.32324 | D58: 62672.95409 | E58: 62672.95409 | F58: 62672.95409 | G58: 62672.95409 | H58: 86283.78593 | I58: 86283.78593 | J58: 86283.78593 | K58: 87782.32317 | L58: 87862.61716 | M58: 87862.61716 | N58: GHG End User | O58: N
A59: Green House Gas Balancing Account (GHGBA) - LUAF Revenue Requirement | B59: D.20-02-045, AL 3149-G, AL 3129-G-A and AL 3129-G , 3247-G-B | C59: 830.7284995 | D59: 809.2332175 | E59: 809.2332175 | F59: 809.2332175 | G59: 809.2332175 | H59: 1046.127972 | I59: 1046.127972 | J59: 1046.127972 | K59: 1040.456168 | L59: 1041.407867 | M59: 1041.407867 | N59: 46% Res (LUAF, Other) | O59: N
A60: AB32 Fees (subtracted from base margin and allocated here) | B60: D.19-09-051 | C60: 528.8540862 | D60: 528.8964802 | E60: 528.8964802 | F60: 528.8964802 | G60: 528.8964802 | H60: 528.8964802 | I60: 528.8964802 | J60: 528.8964802 | K60: 528.8964802 | L60: 1085.117122 | M60: 1085.117122 | N60: 46% Res (LUAF, Other) | O60: N
A61: Green House Gas Balancing Account (GHGBA) - Company Gas Compressor | B61: D.20-02-045, AL 3149-G, AL 3129-G-A and AL 3129-G , 3247-G-B | C61: -138.095361 | D61: 1354.208041 | E61: 1354.208041 | F61: 1354.208041 | G61: 1354.208041 | H61: -27046.35424 | I61: -27046.35424 | J61: -27046.35424 | K61: -6342.66572 | L61: -6348.46732 | M61: -6348.46732 | N61: ECPT | O61: Y
A62: Green House Gas Balancing Account (GHGBA) - End User | B62: D.20-02-045, AL 3149-G, AL 3129-G-A and AL 3129-G , 3247-G-B | C62: -5290.586719 | D62: -7069.472736 | E62: -7069.472736 | F62: -7069.472736 | G62: -7069.472736 | H62: 17577.15682 | I62: 17577.15682 | J62: 17577.15682 | K62: 8589.196998 | L62: 8597.053486 | M62: 8597.053486 | N62: GHG End User | O62: Y
A63: Green House Gas Balancing Account (GHGBA) - LUAF | B63: D.20-02-045, AL 3149-G, AL 3129-G-A and AL 3129-G , 3247-G-B | C63: -11.2522146 | D63: -248.0416462 | E63: -248.0416462 | F63: -248.0416462 | G63: -248.0416462 | H63: -899.2263174 | I63: -899.2263174 | J63: -899.2263174 | K63: -1088.483278 | L63: -1089.478908 | M63: -1089.478908 | N63: 46% Res (LUAF, Other) | O63: Y
A64: FERC Settlement Proceeds MA | B64: D.20-02-045, AL 3149-G, AL 3129-G-A and AL 3129-G , 3247-G-B | C64: 1.0229286 | D64: 0 | E64: 0 | F64: 0 | G64: 0 | H64: 0 | I64: 0 | J64: 0 | K64: 0 | L64: 0 | M64: 0 | N64: Non-Residential | O64: Y
A65: New Environmental Regulation Balancing Account (NERBA) - Admin Fees Subaccount | B65: D.20-02-045, AL 3149-G, AL 3129-G-A and AL 3129-G , 3071-G-B, 3247-G-B | C65: 413.2631544 | D65: 2305.865892 | E65: 2305.865892 | F65: 2305.865892 | G65: 2305.865892 | H65: -801.0172998 | I65: -801.0172998 | J65: -801.0172998 | K65: 759.0738652 | L65: 0 | M65: 0 | N65: 46% Res (LUAF, Other) | O65: Y
A66: New Environmental Regulation Balancing Account (NERBA) - EPAM | B66: D.20-02-045, AL 3149-G, AL 3129-G-A and AL 3129-G ,AL 3071-G-B, 3247-G-B | C66: 105.3616458 | D66: 864.443957 | E66: 864.443957 | F66: 864.443957 | G66: 864.443957 | H66: 2678.241751 | I66: 2678.241751 | J66: 2678.241751 | K66: 3926.314683 | L66: 1117.032373 | M66: 1117.032373 | N66: EPAM | O66: Y
A67: TLS Adjustment | B67: D.20-02-045, AL 3149-G, AL 3129-G-A and AL 3129-G , 3247-G-B | C67: 6681.993182 | D67: -10406.77744 | E67: -10437.81056 | F67: -10411.00546 | G67: -10207.82818 | H67: -9118.614285 | I67: -8863.971146 | J67: -9300.986108 | K67: -5765.064282 | L67: -8113.305252 | M67: -8113.305252 | N67: Non-Residential | O67: N
A68: CSI Thermal Program memoradum Account | B68: D.20-02-045, AL 3149-G, AL 3129-G-A and AL 3129-G , 3247-G-B | C68: 806.0677368 | D68: 333.5014556 | E68: 333.5014556 | F68: 333.5014556 | G68: 333.5014556 | H68: 95.1399858 | I68: 95.1399858 | J68: 95.1399858 | K68: 150.3825582 | L68: 150.5201123 | M68: 150.5201123 | N68: 46% Res (LUAF, Other) | O68: Y
A69: Biomethane Cost Incentive Pgm Balancing Acct (BCIPBA) | B69: D. 16-12-043, AL 3129-G-A and AL 3129-G , 3247-G-B | C69: =0 -> 0 | D69: 2813.27915 | E69: 2813.27915 | F69: 2813.27915 | G69: 2813.27915 | H69: 37.8513922 | I69: 37.8513922 | J69: 37.8513922 | K69: -27.6212862 | L69: -27.64655123 | M69: -27.64655123 | N69: ECPT | O69: Y
A70: Biomethane Procurement and Pilot Costs Balancing Account (BPPCBA) - Program Admin Subaccount (EPAM) | B70: D.22-02-025, 3247-G-B | C70: 0 | D70: 0 | E70: 0 | F70: 0 | G70: 0 | H70: 29.6673074 | I70: 29.6673074 | J70: 29.6673074 | K70: 56.265583 | L70: 56.3170488 | M70: 56.3170488 | N70: EPAM | O70: y
A74: PPPS Programs
A75: California Alternate Rates for Energy (CARE) - Funding | B75: AL 3137-G, D.21-06-015, 3245-G | C75: 25613.072 | D75: 22795.559 | E75: 22795.559 | F75: 22795.559 | G75: 22795.559 | H75: 21383.37754 | I75: 21383.37754 | J75: 21383.37754 | K75: 19135.75613 | L75: 19135.75613 | M75: 19135.75613 | N75: Public Purpose Programs | O75: N
A76: California Alternate Rates for Energy (CARE) - Admin Expenses | B76: AL 3137-G, D.21-06-015, 3245-G | C76: 727.283 | D76: 761.47 | E76: 761.47 | F76: 761.47 | G76: 761.47 | H76: 771.47048 | I76: 771.47048 | J76: 771.47048 | K76: 698.369 | L76: 698.369 | M76: 698.369 | N76: Public Purpose Programs | O76: N
A77: California Alternate Rates for Energy (CARE) - Amortization | B77: AL 3137-G, AL 3245-G, AL 3247-G-B | C77: 1000 | D77: -1000 | E77: -1000 | F77: -1000 | G77: -1000 | H77: 7000 | I77: 7000 | J77: 7000 | K77: 0 | L77: 0 | M77: 0 | N77: Public Purpose Programs | O77: Y
A78: Energy Savings Assistance (ESA/LIEE/DAP) | B78: AL 3137-G, D.21-06-015, AL 3247-G-B | C78: 8041.195 | D78: 10315.642 | E78: 10315.642 | F78: 10315.642 | G78: 10315.642 | H78: 7005.588 | I78: 7005.588 | J78: 7005.588 | K78: 14340.989 | L78: 14340.989 | M78: 14340.989 | N78: Public Purpose Programs | O78: N
A79: Energy Efficiency | B79: D.23-06-055 AL 3137-G, AL 3035-G, AL 3245-G | C79: 15368.68175 | D79: 12089.109 | E79: 12089.109 | F79: 12089.109 | G79: 12089.109 | H79: 25981.63 | I79: 25981.63 | J79: 25981.63 | K79: 50762.257 | L79: 50762.257 | M79: 50762.257 | N79: Public Purpose Programs | O79: N
A80: RD&D | B80: AL 3137-G, AL 3245-G | C80: 1929.78072 | D80: 2278.96046 | E80: 2278.96046 | F80: 2278.96046 | G80: 2278.96046 | H80: 2183.73199 | I80: 2183.73199 | J80: 2183.73199 | K80: 1276.31427 | L80: 1276.31427 | M80: 1276.31427 | N80: Public Purpose Programs | O80: N
A81: Bureau Of Equalization BOE | B81: AL 3137-G, AL 3245-G | C81: 56.15999 | D81: 55.36833 | E81: 55.36833 | F81: 55.36833 | G81: 55.36833 | H81: 47.05335 | I81: 47.05335 | J81: 47.05335 | K81: 52.32888 | L81: 52.32888 | M81: 52.32888 | N81: Public Purpose Programs | O81: N
A87: Subtotal Public Policy | C87: =SUM(C58:C86) -> 119391.8526 | D87: =SUM(D58:D86) -> 101254.1992 | E87: =SUM(E58:E86) -> 101223.1661 | F87: =SUM(F58:F86) -> 101249.9712 | G87: =SUM(G58:G86) -> 101453.1485 | H87: =SUM(H58:H81) -> 134784.5068 | I87: 135039.15 | J87: 134602.135 | K87: 175875.0892 | L87: 170597.1814 | M87: 170597.1814
A90: Procurement
A91: Procurement | B91: D.97-07-061 | C91: 372042.5758 | D91: 475248.5763 | E91: 475248.5763 | F91: 475248.5763 | G91: 475248.5763 | H91: 259331.3198 | I91: 259331.3198 | J91: 259331.3198 | K91: =TotalCoreVolume*SetUp!K5 -> 136165.985 | L91: =K91 -> 136165.985 | M91: =K91 -> 136165.985 | N91: Core Procurement
A97: Subtotal Procurement | C97: =SUM(C91:C96) -> 372042.5758 | D97: =SUM(D91:D96) -> 475248.5763 | E97: 475248.5763 | F97: 475248.5763 | G97: 475248.5763 | H97: 259331.3198 | I97: 259331.3198 | J97: 259331.3198 | K97: 136165.985 | L97: 136165.985 | M97: 136165.985
A99: Total Authorized Revenue | C99: =C53+C87+C97 -> 1048042.129 | D99: 1229283.425 | E99: 1229252.392 | F99: 1229992.144 | G99: 1225326.774 | H99: 1053552.662 | I99: 1061335.892 | J99: 1068039.49 | K99: 969051.6192 | L99: 1035117.676 | M99: 1035117.676

Sheet Incremental Rev Req
A2: ='Authorized Rev Req'!A2 -> Annual Period 2025
A3: Reporting Date: Quarter Ended June 30
A5: Current Revenue Requirement ($000): | B5: ='Authorized Rev Req'!M99 -> 1035117.676
A6: Current Revenue Requirement Effective: | B6: ='Authorized Rev Req'!M5 -> 2025-02-01
A7: Approved Application(s), Implemented Since Jan 1 or To Be Implemented | N7: Authorized
A8: Filing Description | B8: Proceeding | C8: Authority for Revenue Requirement | D8: Authorized Revenue Requirement with FF&U ($000) | E8: Revenue Recovery Mechanism | F8: Authorized Revenue Requirement with FF&U ($000) - Breakout by Year | K8: Existing or New Item (if existing, use delta from prior for rate impact) | O8: =TRANSPOSE(YearsForRateImpact) -> 2025 | P8: 2026 | Q8: 2027 | R8: 2028 | S8: 2029
A9: Safety Affordability Reliability Proceedings | D9: =B6 -> 2025-02-01 | F9: =TRANSPOSE(YearsForRateImpact) -> 2025 | G9: 2026 | H9: 2027 | I9: 2028 | J9: 2029 | N9: =RevRecoveryMechanisms -> Core Procurement | O9: =SUMIF($E$10:$E$90,N9,$F$10:$F$90) -> 136165.985 | P9: =SUMIF($E$10:$E$90,N9,$G$10:$G$90) -> 136165.985 | Q9: =SUMIF($E$10:$E$90,N9,$H$10:$H$90) -> 136165.985 | R9: =SUMIF($E$10:$E$90,N9,$I$10:$I$90) -> 136165.985 | S9: =SUMIF($E$10:$E$90,N9,$J$10:$J$90) -> 136165.985
A10: ='Authorized Rev Req'!A9 -> Total Allocated Base Margin | C10: ='Authorized Rev Req'!B9 -> D.24-12-074 | D10: =F10 -> 475212.7363 | E10: ='Authorized Rev Req'!N9 -> Allocated Base Margin | F10: ='Authorized Rev Req'!M9 -> 475212.7363 | G10: 489469.1184 | H10: 504153.1919 | I10: =H10 -> 504153.1919 | J10: =I10 -> 504153.1919 | K10: Existing | N10: Allocated Base Margin | O10: 475212.7363 | P10: 489469.1184 | Q10: 504153.1919 | R10: 504153.1919 | S10: 504153.1919
A11: ='Authorized Rev Req'!A10 -> SCG Transport excl Core Storge & Load Balance $000 | C11: ='Authorized Rev Req'!B10 -> D.24-12-074 | D11: 24405.13487 | E11: ='Authorized Rev Req'!N10 -> ECPT | F11: ='Authorized Rev Req'!M10 -> 24405.13487 | G11: =0 -> 0 | H11: =0 -> 0 | I11: =0 -> 0 | J11: 0 | K11: Existing | N11: Distribution | O11: 34518.94755 | P11: 0 | Q11: 0 | R11: 0 | S11: 0
A12: ='Authorized Rev Req'!A11 -> SCG Core Seasonal Storage | C12: ='Authorized Rev Req'!B11 -> D.24-12-074 | D12: 22813.15835 | E12: ='Authorized Rev Req'!N11 -> Seasonal Storage | F12: ='Authorized Rev Req'!M11 -> 22813.15835 | G12: =0 -> 0 | H12: =0 -> 0 | I12: =0 -> 0 | J12: 0 | K12: Existing | N12: All Residential | O12: 3287.897086 | P12: 0 | Q12: 0 | R12: 0 | S12: 0
A13: ='Authorized Rev Req'!A12 -> SCG Load Balancing Allocated to ALL SDGE $000 | C13: ='Authorized Rev Req'!B12 -> D.24-07-009, | D13: 13289.97113 | E13: ='Authorized Rev Req'!N12 -> ECPT | F13: ='Authorized Rev Req'!M12 -> 13289.97113 | G13: =0 -> 0 | H13: =0 -> 0 | I13: =0 -> 0 | J13: 0 | K13: Existing | N13: Local Transmission | O13: 7459.997593 | P13: 0 | Q13: 0 | R13: 0 | S13: 0
A14: ='Authorized Rev Req'!A13 -> Pipeline Safety Enhancement Plan (PSEP) -Local T (subtracted from Base Margin and allocated here) | C14: ='Authorized Rev Req'!B13 -> D.19-09-051 | D14: 1416.84732 | E14: ='Authorized Rev Req'!N13 -> Local Transmission | F14: ='Authorized Rev Req'!M13 -> 1416.84732 | G14: =0 -> 0 | H14: =0 -> 0 | I14: =0 -> 0 | J14: 0 | K14: Existing | N14: Seasonal Storage | O14: 22813.15835 | P14: 0 | Q14: 0 | R14: 0 | S14: 0
A15: ='Authorized Rev Req'!A14 -> LUAF | C15: ='Authorized Rev Req'!B14 -> D.24-07-009, AL 3383, AL 3392-G-A | D15: 9159.293856 | E15: ='Authorized Rev Req'!N14 -> 46% Res (LUAF, Other) | F15: ='Authorized Rev Req'!M14 -> 9159.293856 | G15: =0 -> 0 | H15: =0 -> 0 | I15: =0 -> 0 | J15: 0 | K15: Existing | N15: GHG End User | O15: 96459.67064 | P15: 0 | Q15: 0 | R15: 0 | S15: 0
A16: ='Authorized Rev Req'!A15 -> Company Use Gas: Other | C16: ='Authorized Rev Req'!B15 -> D.24-07-009, AL 3383, AL 3392-G-A | D16: 298.3601002 | E16: ='Authorized Rev Req'!N15 -> ECPT | F16: ='Authorized Rev Req'!M15 -> 298.3601002 | G16: =0 -> 0 | H16: =0 -> 0 | I16: =0 -> 0 | J16: 0 | K16: Existing | N16: Public Purpose Programs | O16: 86266.01428 | P16: 59828.00913 | Q16: 60625.95713 | R16: 0 | S16: 26310.181
A17: ='Authorized Rev Req'!A16 -> SDG&E NGLAPBA | C17: ='Authorized Rev Req'!B16 -> AL 3071-G, D.24-07-009, AL 3383, AL 3392-G-A | D17: 666.9938672 | E17: ='Authorized Rev Req'!N16 -> EPAM | F17: ='Authorized Rev Req'!M16 -> 666.9938672 | G17: =0 -> 0 | H17: =0 -> 0 | I17: =0 -> 0 | J17: 0 | K17: Existing | N17: - | O17: 0 | P17: 0 | Q17: 0 | R17: 0 | S17: 0
A18: ='Authorized Rev Req'!A17 -> SDG&ENERBA - NGLAP Subacct | C18: ='Authorized Rev Req'!B17 -> AL 3071-G, D.24-07-009, AL 3383, AL 3392-G-A | D18: 4963.188586 | E18: ='Authorized Rev Req'!N17 -> EPAM | F18: ='Authorized Rev Req'!M17 -> 4963.188586 | G18: =0 -> 0 | H18: =0 -> 0 | I18: =0 -> 0 | J18: 0 | K18: Existing | N18: 46% Res (LUAF, Other) | O18: 10346.86005 | P18: 0 | Q18: 0 | R18: 0 | S18: 0
A19: ='Authorized Rev Req'!A18 -> SDG&E PSEP - 2017 Forecast Application RevReq Capital Cost - Local Transmission | C19: ='Authorized Rev Req'!B18 -> D.24-07-009, AL 3383, AL 3392-G-A | D19: 39.31358078 | E19: ='Authorized Rev Req'!N18 -> Local Transmission | F19: ='Authorized Rev Req'!M18 -> 39.31358078 | G19: =0 -> 0 | H19: =0 -> 0 | I19: =0 -> 0 | J19: 0 | K19: Existing | N19: ECPT | O19: 34482.62929 | P19: 0 | Q19: 0 | R19: 0 | S19: 0
A20: ='Authorized Rev Req'!A19 -> CFCA | C20: ='Authorized Rev Req'!B19 -> D.24-07-009, AL 3383, AL 3392-G-A | D20: 75648.13179 | E20: ='Authorized Rev Req'!N19 -> CFCA | F20: ='Authorized Rev Req'!M19 -> 75648.13179 | G20: =0 -> 0 | H20: =0 -> 0 | I20: =0 -> 0 | J20: 0 | K20: Existing | N20: EPAM | O20: 55888.49413 | P20: 18646.06289 | Q20: 33104.18523 | R20: 36790.39206 | S20: 40179.65445
A21: ='Authorized Rev Req'!A20 -> CFCA -NGV only | C21: ='Authorized Rev Req'!B20 -> D.24-07-009, AL 3383, AL 3392-G-A | D21: 25.59865855 | E21: ='Authorized Rev Req'!N20 -> Non-Residential | F21: ='Authorized Rev Req'!M20 -> 25.59865855 | G21: =0 -> 0 | H21: =0 -> 0 | I21: =0 -> 0 | J21: 0 | K21: Existing | N21: CFCA | O21: 75648.13179 | P21: 0 | Q21: 0 | R21: 0 | S21: 0
A22: ='Authorized Rev Req'!A21 -> CFCA - C&I shortfall only | C22: ='Authorized Rev Req'!B21 -> D.24-07-009, AL 3383, AL 3392-G-A | D22: 39.93390733 | E22: ='Authorized Rev Req'!N21 -> Non-Residential | F22: ='Authorized Rev Req'!M21 -> 39.93390733 | G22: =0 -> 0 | H22: =0 -> 0 | I22: =0 -> 0 | J22: 0 | K22: Existing | N22: Non-Residential | O22: -3432.846524 | P22: 0 | Q22: 0 | R22: 0 | S22: 0
A23: ='Authorized Rev Req'!A22 -> Hazardous Substance Cleanup Cost Acct HSCCA | C23: ='Authorized Rev Req'!B22 -> D.24-07-009, AL 3383, AL 3392-G-A | D23: 420.8419465 | E23: ='Authorized Rev Req'!N22 -> ECPT | F23: ='Authorized Rev Req'!M22 -> 420.8419465 | G23: =0 -> 0 | H23: =0 -> 0 | I23: =0 -> 0 | J23: 0 | K23: Existing | N23: Total | O23: =SUM(O9:O22) -> 1035117.676 | P23: =SUM(P9:P22) -> 704109.1754 | Q23: =SUM(Q9:Q22) -> 734049.3193 | R23: =SUM(R9:R22) -> 677109.569 | S23: =SUM(S9:S22) -> 706809.0124
A24: ='Authorized Rev Req'!A23 -> Master Meter Balancing Account (MMBA) | C24: ='Authorized Rev Req'!B23 -> D.24-07-009, AL 3383, AL 3392-G-A | D24: 23586.60398 | E24: ='Authorized Rev Req'!N23 -> EPAM | F24: ='Authorized Rev Req'!M23 -> 23586.60398 | G24: 18646.06289 | H24: 33104.18523 | I24: 36790.39206 | J24: 40179.65445 | K24: Existing | N24: CPUC Fee | O24: =RegulatoryFee -> 0.0025
A25: ='Authorized Rev Req'!A24 -> PBOPBA | C25: ='Authorized Rev Req'!B24 -> D.24-07-009, AL 3383, AL 3392-G-A | D25: -225.6405393 | E25: ='Authorized Rev Req'!N24 -> EPAM | F25: ='Authorized Rev Req'!M24 -> -225.6405393 | G25: =0 -> 0 | H25: =0 -> 0 | I25: =0 -> 0 | J25: 0 | K25: Existing | N25: Check | O25: =O23-F91 -> 0 | P25: =P23-G91 -> 0 | Q25: =Q23-H91 -> 0 | R25: =R23-I91 -> 0 | S25: =S23-J91 -> 0
A26: ='Authorized Rev Req'!A25 -> Pension BA | C26: ='Authorized Rev Req'!B25 -> D.24-07-009, AL 3383, AL 3392-G-A | D26: -625.5381288 | E26: ='Authorized Rev Req'!N25 -> EPAM | F26: ='Authorized Rev Req'!M25 -> -625.5381288 | G26: =0 -> 0 | H26: =0 -> 0 | I26: =0 -> 0 | J26: 0 | K26: Existing
A27: ='Authorized Rev Req'!A26 -> Safety Enhancement Balancing Account - Local Transmission | C27: ='Authorized Rev Req'!B26 -> D.24-07-009, AL 3383, AL 3392-G-A | D27: -884.13754 | E27: ='Authorized Rev Req'!N26 -> Local Transmission | F27: ='Authorized Rev Req'!M26 -> -884.13754 | G27: =0 -> 0 | H27: =0 -> 0 | I27: =0 -> 0 | J27: 0 | K27: Existing
A28: ='Authorized Rev Req'!A27 -> Safety Enhancement Balancing Account - Distribution | C28: ='Authorized Rev Req'!B27 -> D.24-07-009, AL 3383, AL 3392-G-A | D28: 23688.77397 | E28: ='Authorized Rev Req'!N27 -> Distribution | F28: ='Authorized Rev Req'!M27 -> 23688.77397 | G28: =0 -> 0 | H28: =0 -> 0 | I28: =0 -> 0 | J28: 0 | K28: Existing
A29: ='Authorized Rev Req'!A28 -> Rewards & Penalties Bal Acct RPBA | C29: ='Authorized Rev Req'!B28 -> D.24-07-009, AL 3383, AL 3392-G-A | D29: -51.19731709 | E29: ='Authorized Rev Req'!N28 -> EPAM | F29: ='Authorized Rev Req'!M28 -> -51.19731709 | G29: =0 -> 0 | H29: =0 -> 0 | I29: =0 -> 0 | J29: 0 | K29: Existing
A30: ='Authorized Rev Req'!A29 -> SGPMA - Rev Req for NEXT Year | C30: ='Authorized Rev Req'!B29 -> D.24-07-009, AL 3383, AL 3392-G-A | D30: 0 | E30: ='Authorized Rev Req'!N29 -> ECPT | F30: ='Authorized Rev Req'!M29 -> 0 | G30: =0 -> 0 | H30: =0 -> 0 | I30: =0 -> 0 | J30: 0 | K30: Existing
A31: ='Authorized Rev Req'!A30 -> Integrated Transmission Margin ITBA | C31: ='Authorized Rev Req'!B30 -> D.24-07-009, AL 3383, AL 3392-G-A | D31: 1891.228893 | E31: ='Authorized Rev Req'!N30 -> ECPT | F31: ='Authorized Rev Req'!M30 -> 1891.228893 | G31: =0 -> 0 | H31: =0 -> 0 | I31: =0 -> 0 | J31: 0 | K31: Existing
A32: ='Authorized Rev Req'!A31 -> Liability Insurance Premium Balancing Account (LIPBA) | C32: ='Authorized Rev Req'!B31 -> D.24-07-009, AL 3383, AL 3392-G-A | D32: -348.5141004 | E32: ='Authorized Rev Req'!N31 -> EPAM | F32: ='Authorized Rev Req'!M31 -> -348.5141004 | G32: =0 -> 0 | H32: =0 -> 0 | I32: =0 -> 0 | J32: 0 | K32: Existing
A33: ='Authorized Rev Req'!A32 -> Residential Uncollectible Balancing Account | C33: ='Authorized Rev Req'!B32 -> D.24-07-009, AL 3383, AL 3392-G-A | D33: 13923.62236 | E33: ='Authorized Rev Req'!N32 -> EPAM | F33: ='Authorized Rev Req'!M32 -> 13923.62236 | G33: =0 -> 0 | H33: =0 -> 0 | I33: =0 -> 0 | J33: 0 | K33: Existing
A34: ='Authorized Rev Req'!A33 -> NFCA -Margin Only | C34: ='Authorized Rev Req'!B33 -> D.24-07-009, AL 3383, AL 3392-G-A | D34: 57.34099514 | E34: ='Authorized Rev Req'!N33 -> Non-Residential | F34: ='Authorized Rev Req'!M33 -> 57.34099514 | G34: =0 -> 0 | H34: =0 -> 0 | I34: =0 -> 0 | J34: 0 | K34: Existing
A35: ='Authorized Rev Req'!A34 -> NFCA -Nonmargin Other | C35: ='Authorized Rev Req'!B34 -> D.24-07-009, AL 3383, AL 3392-G-A | D35: 4111.144563 | E35: ='Authorized Rev Req'!N34 -> Non-Residential | F35: ='Authorized Rev Req'!M34 -> 4111.144563 | G35: =0 -> 0 | H35: =0 -> 0 | I35: =0 -> 0 | J35: 0 | K35: Existing
A36: ='Authorized Rev Req'!A35 -> NFCA -Nonmargin SCG | C36: ='Authorized Rev Req'!B35 -> D.24-07-009, AL 3383, AL 3392-G-A | D36: 446.4406051 | E36: ='Authorized Rev Req'!N35 -> Non-Residential | F36: ='Authorized Rev Req'!M35 -> 446.4406051 | G36: =0 -> 0 | H36: =0 -> 0 | I36: =0 -> 0 | J36: 0 | K36: Existing
A37: ='Authorized Rev Req'!A36 -> Minimum Bil/Customer Charge Revenue | C37: ='Authorized Rev Req'!B36 -> D.24-07-009, AL 3383, AL 3392-G-A | D37: 1428.253 | E37: ='Authorized Rev Req'!N36 -> All Residential | F37: ='Authorized Rev Req'!M36 -> 1428.253 | G37: =0 -> 0 | H37: =0 -> 0 | I37: =0 -> 0 | J37: 0 | K37: Existing
A38: ='Authorized Rev Req'!A37 -> Borrego Revenue | C38: ='Authorized Rev Req'!B37 -> D.24-07-009, AL 3383, AL 3392-G-A | D38: 59.43882455 | E38: ='Authorized Rev Req'!N37 -> All Residential | F38: ='Authorized Rev Req'!M37 -> 59.43882455 | G38: =0 -> 0 | H38: =0 -> 0 | I38: =0 -> 0 | J38: 0 | K38: Existing
A39: ='Authorized Rev Req'!A38 -> Employee Discount (Schd GR) | C39: ='Authorized Rev Req'!B38 -> D.24-07-009, AL 3383, AL 3392-G-A | D39: -606.06691 | E39: ='Authorized Rev Req'!N38 -> All Residential | F39: ='Authorized Rev Req'!M38 -> -606.06691 | G39: =0 -> 0 | H39: =0 -> 0 | I39: =0 -> 0 | J39: 0 | K39: Existing
A40: ='Authorized Rev Req'!A39 -> SDFFD | C40: ='Authorized Rev Req'!B39 -> D.24-07-009, AL 3383, AL 3392-G-A | D40: 2406.272172 | E40: ='Authorized Rev Req'!N39 -> All Residential | F40: ='Authorized Rev Req'!M39 -> 2406.272172 | G40: =0 -> 0 | H40: =0 -> 0 | I40: =0 -> 0 | J40: 0 | K40: Existing
A41: ='Authorized Rev Req'!A40 -> Customer Information System Account - CISBA | C41: ='Authorized Rev Req'!B40 -> D.24-07-009, AL 3383, AL 3392-G-A | D41: 0 | E41: ='Authorized Rev Req'!N40 -> EPAM | F41: ='Authorized Rev Req'!M40 -> 0 | G41: =0 -> 0 | H41: =0 -> 0 | I41: =0 -> 0 | J41: 0 | K41: Existing
A42: ='Authorized Rev Req'!A41 -> Transition, Stabilization and OCM Balancing Account - TSOBA-G | C42: ='Authorized Rev Req'!B41 -> AL 3039-G, D.24-07-009, AL 3383, AL 3392-G-A | D42: 0 | E42: ='Authorized Rev Req'!N41 -> EPAM | F42: ='Authorized Rev Req'!M41 -> 0 | G42: =0 -> 0 | H42: =0 -> 0 | I42: =0 -> 0 | J42: 0 | K42: Existing
A43: ='Authorized Rev Req'!A42 -> Percentage of Income Payment Plan Balancing Account (PIPPBA) | C43: ='Authorized Rev Req'!B42 -> D. 21-10-012, D.24-07-009, AL 3383, AL 3392-G-A | D43: 211.9568928 | E43: ECPT | F43: ='Authorized Rev Req'!M42 -> 211.9568928 | G43: 0 | H43: 0 | I43: 0 | J43: 0 | K43: Existing
A44: ='Authorized Rev Req'!A43 -> Gain/Loss on Sale Memo Acct GLOSMA | C44: ='Authorized Rev Req'!B43 -> D.24-07-009, AL 3383, AL 3392-G-A | D44: 0 | E44: EPAM | F44: ='Authorized Rev Req'!M43 -> 0 | G44: 0 | H44: 0 | I44: 0 | J44: 0 | K44: Existing
A45: ='Authorized Rev Req'!A44 -> Transmission Integrity Management Program Memorandum Account (TIMPBA) | C45: ='Authorized Rev Req'!B44 -> AL 3312-G,D.24-07-009, AL 3383, AL 3392-G-A | D45: =F45 -> 7567.704272 | E45: Local Transmission | F45: ='Authorized Rev Req'!M44 -> 7567.704272 | G45: 0 | H45: 0 | I45: 0 | J45: 0 | K45: Existing
A46: ='Authorized Rev Req'!A45 -> Cost of Capital Adjustment (Subtracted from Base Margin) | C46: ='Authorized Rev Req'!B45 -> D.24-12-074,AL 3392-G-A | D46: =F46 -> -5707 | E46: EPAM | F46: ='Authorized Rev Req'!M45 -> -5707 | K46: New
A47: ='Authorized Rev Req'!A46 -> General Rate Case Revenue Requirement Memorandum Account (GRCMA) | C47: D.24-12-074,AL 3392-G-A | D47: =F47 -> 18532.626 | E47: EPAM | F47: ='Authorized Rev Req'!M46 -> 18532.626
A48: ='Authorized Rev Req'!A47 -> GRCRRMA Sub allocation for AB32 Admin Fees | C48: ='Authorized Rev Req'!B47 -> D.24-12-074,AL 3392-G-A | D48: =F48 -> 341.2493333 | E48: ECPT | F48: ='Authorized Rev Req'!M47 -> 341.2493333 | K48: New
A49: ='Authorized Rev Req'!A48 -> GRCRRMA PSEP Local Transmission | C49: ='Authorized Rev Req'!B48 -> D.24-12-074,AL 3392-G-A | D49: -679.73004 | E49: Local Transmission | F49: ='Authorized Rev Req'!M48 -> -679.73004 | K49: New
A50: ='Authorized Rev Req'!A49 -> GRCRRMA PSEP Distribution | C50: ='Authorized Rev Req'!B49 -> D.24-12-074,AL 3392-G-A | D50: =F50 -> 10178.70533 | E50: Distribution | F50: ='Authorized Rev Req'!M49 -> 10178.70533 | K50: New
A51: ='Authorized Rev Req'!A50 -> Pipeline Safety Enhancement Plan (PSEP) -Distribution (subtracted from Base Margin and allocated here) | C51: D.24-12-074,AL 3392-G-A | D51: =F51 -> 15437.62577 | E51: Distribution | F51: ='Authorized Rev Req'!M50 -> 15437.62577 | K51: New
A52: ='Authorized Rev Req'!A51 -> Distribution Integrity Management Program Memorandum Account (DIMPBA) | C52: D.24-12-074,AL 3392-G-A | D52: -14786.15752 | E52: Distribution | F52: ='Authorized Rev Req'!M51 -> -14786.15752 | K52: New
A54: ='Authorized Rev Req'!A57 -> Public Policy Proceedings
A55: ='Authorized Rev Req'!A58 -> Green House Gas Balancing Account (GHGBA) - End User Revenue Requirement | C55: ='Authorized Rev Req'!B58 -> D.20-02-045, AL 3149-G, AL 3129-G-A and AL 3129-G , 3247-G-B | D55: =F55 -> 87862.61716 | E55: ='Authorized Rev Req'!N58 -> GHG End User | F55: ='Authorized Rev Req'!M58 -> 87862.61716 | G55: =0 -> 0 | H55: =0 -> 0 | I55: =0 -> 0 | J55: 0 | K55: Existing
A56: ='Authorized Rev Req'!A59 -> Green House Gas Balancing Account (GHGBA) - LUAF Revenue Requirement | C56: ='Authorized Rev Req'!B59 -> D.20-02-045, AL 3149-G, AL 3129-G-A and AL 3129-G , 3247-G-B | D56: 1041.407867 | E56: ='Authorized Rev Req'!N59 -> 46% Res (LUAF, Other) | F56: ='Authorized Rev Req'!M59 -> 1041.407867 | G56: =0 -> 0 | H56: =0 -> 0 | I56: =0 -> 0 | J56: 0 | K56: Existing
A57: ='Authorized Rev Req'!A60 -> AB32 Fees (subtracted from base margin and allocated here) | C57: ='Authorized Rev Req'!B60 -> D.19-09-051 | D57: 1085.117122 | E57: ='Authorized Rev Req'!N60 -> 46% Res (LUAF, Other) | F57: ='Authorized Rev Req'!M60 -> 1085.117122 | G57: =0 -> 0 | H57: =0 -> 0 | I57: =0 -> 0 | J57: 0 | K57: Existing
A58: ='Authorized Rev Req'!A61 -> Green House Gas Balancing Account (GHGBA) - Company Gas Compressor | C58: ='Authorized Rev Req'!B61 -> D.20-02-045, AL 3149-G, AL 3129-G-A and AL 3129-G , 3247-G-B | D58: -6348.46732 | E58: ='Authorized Rev Req'!N61 -> ECPT | F58: ='Authorized Rev Req'!M61 -> -6348.46732 | G58: =0 -> 0 | H58: =0 -> 0 | I58: =0 -> 0 | J58: 0 | K58: Existing
A59: ='Authorized Rev Req'!A62 -> Green House Gas Balancing Account (GHGBA) - End User | C59: ='Authorized Rev Req'!B62 -> D.20-02-045, AL 3149-G, AL 3129-G-A and AL 3129-G , 3247-G-B | D59: 8597.053486 | E59: ='Authorized Rev Req'!N62 -> GHG End User | F59: ='Authorized Rev Req'!M62 -> 8597.053486 | G59: =0 -> 0 | H59: =0 -> 0 | I59: =0 -> 0 | J59: 0 | K59: Existing
A60: ='Authorized Rev Req'!A63 -> Green House Gas Balancing Account (GHGBA) - LUAF | C60: ='Authorized Rev Req'!B63 -> D.20-02-045, AL 3149-G, AL 3129-G-A and AL 3129-G , 3247-G-B | D60: -1089.478908 | E60: ='Authorized Rev Req'!N63 -> 46% Res (LUAF, Other) | F60: ='Authorized Rev Req'!M63 -> -1089.478908 | G60: =0 -> 0 | H60: =0 -> 0 | I60: =0 -> 0 | J60: 0 | K60: Existing
A61: ='Authorized Rev Req'!A64 -> FERC Settlement Proceeds MA | C61: ='Authorized Rev Req'!B64 -> D.20-02-045, AL 3149-G, AL 3129-G-A and AL 3129-G , 3247-G-B | D61: 0 | E61: ='Authorized Rev Req'!N64 -> Non-Residential | F61: ='Authorized Rev Req'!M64 -> 0 | G61: =0 -> 0 | H61: =0 -> 0 | I61: =0 -> 0 | J61: 0 | K61: Existing
A62: ='Authorized Rev Req'!A65 -> New Environmental Regulation Balancing Account (NERBA) - Admin Fees Subaccount | C62: ='Authorized Rev Req'!B65 -> D.20-02-045, AL 3149-G, AL 3129-G-A and AL 3129-G , 3071-G-B, 3247-G-B | D62: 0 | E62: ='Authorized Rev Req'!N65 -> 46% Res (LUAF, Other) | F62: ='Authorized Rev Req'!M65 -> 0 | G62: =0 -> 0 | H62: =0 -> 0 | I62: =0 -> 0 | J62: 0 | K62: Existing
A63: ='Authorized Rev Req'!A66 -> New Environmental Regulation Balancing Account (NERBA) - EPAM | C63: ='Authorized Rev Req'!B66 -> D.20-02-045, AL 3149-G, AL 3129-G-A and AL 3129-G ,AL 3071-G-B, 3247-G-B | D63: 1117.032373 | E63: ='Authorized Rev Req'!N66 -> EPAM | F63: ='Authorized Rev Req'!M66 -> 1117.032373 | G63: =0 -> 0 | H63: =0 -> 0 | I63: =0 -> 0 | J63: 0 | K63: Existing
A64: ='Authorized Rev Req'!A67 -> TLS Adjustment | C64: ='Authorized Rev Req'!B67 -> D.20-02-045, AL 3149-G, AL 3129-G-A and AL 3129-G , 3247-G-B | D64: -8113.305252 | E64: ='Authorized Rev Req'!N67 -> Non-Residential | F64: ='Authorized Rev Req'!M67 -> -8113.305252 | G64: =0 -> 0 | H64: =0 -> 0 | I64: =0 -> 0 | J64: 0 | K64: Existing
A65: ='Authorized Rev Req'!A68 -> CSI Thermal Program memoradum Account | C65: ='Authorized Rev Req'!B68 -> D.20-02-045, AL 3149-G, AL 3129-G-A and AL 3129-G , 3247-G-B | D65: 150.5201123 | E65: ='Authorized Rev Req'!N68 -> 46% Res (LUAF, Other) | F65: ='Authorized Rev Req'!M68 -> 150.5201123 | G65: =0 -> 0 | H65: =0 -> 0 | I65: =0 -> 0 | J65: 0 | K65: Existing
A66: ='Authorized Rev Req'!A69 -> Biomethane Cost Incentive Pgm Balancing Acct (BCIPBA) | C66: ='Authorized Rev Req'!B69 -> D. 16-12-043, AL 3129-G-A and AL 3129-G , 3247-G-B | D66: -27.64655123 | E66: ECPT | F66: ='Authorized Rev Req'!M69 -> -27.64655123 | G66: =0 -> 0 | H66: =0 -> 0 | I66: =0 -> 0 | J66: 0 | K66: Existing
A67: ='Authorized Rev Req'!A70 -> Biomethane Procurement and Pilot Costs Balancing Account (BPPCBA) - Program Admin Subaccount (EPAM) | C67: ='Authorized Rev Req'!B70 -> D.22-02-025, 3247-G-B | D67: 56.3170488 | E67: EPAM | F67: ='Authorized Rev Req'!M70 -> 56.3170488 | G67: 0 | H67: 0 | I67: 0 | J67: =0 -> 0 | K67: Existing
A70: PPPS Programs
A71: ='Authorized Rev Req'!A75 -> California Alternate Rates for Energy (CARE) - Funding | C71: ='Authorized Rev Req'!B75 -> AL 3137-G, D.21-06-015, 3245-G | D71: =F71 -> 19135.75613 | E71: ='Authorized Rev Req'!N75 -> Public Purpose Programs | F71: ='Authorized Rev Req'!M75 -> 19135.75613 | G71: =F71 -> 19135.75613 | H71: =G71 -> 19135.75613 | J71: 0 | K71: Existing
A72: ='Authorized Rev Req'!A76 -> California Alternate Rates for Energy (CARE) - Admin Expenses | C72: ='Authorized Rev Req'!B76 -> AL 3137-G, D.21-06-015, 3245-G | D72: 698.369 | E72: ='Authorized Rev Req'!N76 -> Public Purpose Programs | F72: ='Authorized Rev Req'!M76 -> 698.369 | G72: =813953/1000 -> 813.953 | H72: =814181/1000 -> 814.181 | I72: 0 | J72: 0 | K72: Existing
A73: ='Authorized Rev Req'!A77 -> California Alternate Rates for Energy (CARE) - Amortization | C73: ='Authorized Rev Req'!B77 -> AL 3137-G, AL 3245-G, AL 3247-G-B | D73: 0 | E73: ='Authorized Rev Req'!N77 -> Public Purpose Programs | F73: ='Authorized Rev Req'!M77 -> 0 | G73: =0 -> 0 | H73: =0 -> 0 | I73: =0 -> 0 | J73: 0 | K73: Existing
A74: ='Authorized Rev Req'!A78 -> Energy Savings Assistance (ESA/LIEE/DAP) | C74: ='Authorized Rev Req'!B78 -> AL 3137-G, D.21-06-015, AL 3247-G-B | D74: 14340.989 | E74: ='Authorized Rev Req'!N78 -> Public Purpose Programs | F74: ='Authorized Rev Req'!M78 -> 14340.989 | G74: =14340989/1000 -> 14340.989 | H74: =15138709/1000 -> 15138.709 | I74: 0 | J74: 0 | K74: Existing
A75: ='Authorized Rev Req'!A79 -> Energy Efficiency | C75: ='Authorized Rev Req'!B79 -> D.23-06-055 AL 3137-G, AL 3035-G, AL 3245-G | D75: 50762.257 | E75: ='Authorized Rev Req'!N79 -> Public Purpose Programs | F75: ='Authorized Rev Req'!M79 -> 50762.257 | G75: =25537311/1000 -> 25537.311 | H75: =G75 -> 25537.311 | J75: =26310181/1000 -> 26310.181 | K75: Existing
A76: ='Authorized Rev Req'!A80 -> RD&D | C76: ='Authorized Rev Req'!B80 -> AL 3137-G, AL 3245-G | D76: 1276.31427 | E76: ='Authorized Rev Req'!N80 -> Public Purpose Programs | F76: ='Authorized Rev Req'!M80 -> 1276.31427 | G76: =0 -> 0 | H76: =0 -> 0 | I76: =0 -> 0 | J76: 0 | K76: Existing
A77: ='Authorized Rev Req'!A81 -> Bureau Of Equalization BOE | C77: ='Authorized Rev Req'!B81 -> AL 3137-G, AL 3245-G | D77: 52.32888 | E77: ='Authorized Rev Req'!N81 -> Public Purpose Programs | F77: ='Authorized Rev Req'!M81 -> 52.32888 | G77: =0 -> 0 | H77: =0 -> 0 | I77: =0 -> 0 | J77: 0 | K77: Existing
A87: Procurement | C87: ='Authorized Rev Req'!B91 -> D.97-07-061 | D87: =F87 -> 136165.985 | E87: ='Authorized Rev Req'!N91 -> Core Procurement | F87: ='Authorized Rev Req'!M91 -> 136165.985 | G87: =F87 -> 136165.985 | H87: 136165.985 | I87: 136165.985 | J87: 136165.985 | K87: Existing
A91: Total Approved, Implemented Since Jan 1 or To Be Implemented | D91: =SUM(D10:D90) -> 1035117.676 | F91: =SUM(F10:F90) -> 1035117.676 | G91: =SUM(G10:G90) -> 704109.1754 | H91: =SUM(H10:H90) -> 734049.3193 | I91: =SUM(I10:I90) -> 677109.569 | J91: =SUM(J10:J90) -> 706809.0124
A93: CPUC Fee | E93: CPUC Fee | F93: =RegulatoryFee -> 0.0025
A96: Pending Application(s) Not Yet Approved
A97: Filing Description | B97: Proceeding | C97: Basis of Revenue Requirement Forecast: Application, Amended Application , Amended Testimony, Proposed Settlement Agreement, Proposed Decision | D97: Proposed Revenue Requirement with FF&U ($000) | E97: Proposed Revenue Recovery Mechanism | F97: Incremental Revenue Requirement with FF&U ($000) - Breakout by Year | K97: Existing or New Item (if existing, use delta from prior for rate impact)
A98: Safety Affordability Reliability Proceedings | F98: =TRANSPOSE(YearsForRateImpact) -> 2025 | G98: 2026 | H98: 2027 | I98: 2028 | J98: 2029 | L98: Include in Impact | N98: Authorized + Pending
A99: Natural Gas Leak Abatement | B99: 3285-G-A | C99: Advice Letter | D99: =SUM(F99:J99) -> 16829.37921 | E99: EPAM | G99: 8319.078173 | H99: 8510.301034 | K99: Existing | L99: =IFERROR(VLOOKUP(A99,Summary!$B$7:$D$18,3,FALSE),"-") -> Y | O99: =TRANSPOSE(YearsForRateImpact) -> 2025 | P99: 2026 | Q99: 2027 | R99: 2028 | S99: 2029
A100: GRC 2024 Track 2-Wildfire Mitigation Plan Memo Acct | B100: A-22-05-015 | C100: Application | D100: =SUM(F100:J100) -> 17295.51685 | E100: EPAM | F100: 12271.01215 | G100: 3236.694387 | H100: 1787.810313 | K100: Existing | L100: =IFERROR(VLOOKUP(A100,Summary!$B$7:$D$18,3,FALSE),"-") -> Y | N100: =RevRecoveryMechanisms -> Core Procurement | O100: =SUM(O9,SUMIFS(F$99:F$126,$E$99:$E$126,$N100,$L$99:$L$126,"y")) -> 136165.985 | P100: =SUM(P9,SUMIFS(G$99:G$126,$E$99:$E$126,$N100,$L$99:$L$126,"y")) -> 136165.985 | Q100: =SUM(Q9,SUMIFS(H$99:H$126,$E$99:$E$126,$N100,$L$99:$L$126,"y")) -> 136165.985 | R100: =SUM(R9,SUMIFS(I$99:I$126,$E$99:$E$126,$N100,$L$99:$L$126,"y")) -> 136165.985 | S100: =SUM(S9,SUMIFS(J$99:J$126,$E$99:$E$126,$N100,$L$99:$L$126,"y")) -> 136165.985
A101: 2026 Cost of Capital | B101: A-25-03-013 | C101: Application | D101: =SUM(F101:J101) -> 23293 | E101: EPAM | G101: 23293 | K101: New | L101: =IFERROR(VLOOKUP(A101,Summary!$B$7:$D$18,3,FALSE),"-") -> Y | N101: Allocated Base Margin | O101: 475212.7363 | P101: 489469.1184 | Q101: 504153.1919 | R101: 504153.1919 | S101: 504153.1919
A102: 2024 GRC Track 3 (PSEP and WMPMA) | B102: A.25-05-015/016 | C102: Application | D102: =SUM(F102:J102) -> 50051 | E102: EPAM | G102: 50051 | K102: New | L102: =IFERROR(VLOOKUP(A102,Summary!$B$7:$D$18,3,FALSE),"-") -> Y | N102: Distribution | O102: 34518.94755 | P102: 0 | Q102: 0 | R102: 0 | S102: 0
A103: TIMPBA | B103: A.25-02-012 | C103: Application | D103: =SUM(F103:J103) -> 7400 | E103: Local Transmission | G103: 7400 | K103: New | L103: =IFERROR(VLOOKUP(A103,Summary!$B$7:$D$18,3,FALSE),"-") -> Y | N103: All Residential | O103: 3287.897086 | P103: 0 | Q103: 0 | R103: 0 | S103: 0
N104: Local Transmission | O104: 7459.997593 | P104: 7400 | Q104: 0 | R104: 0 | S104: 0
A105: Public Policy Proceedings | L105: =IFERROR(VLOOKUP(A105,Summary!$B$7:$D$18,3,FALSE),"-") -> - | N105: Seasonal Storage | O105: 22813.15835 | P105: 0 | Q105: 0 | R105: 0 | S105: 0
L106: =IFERROR(VLOOKUP(A106,Summary!$B$7:$D$18,3,FALSE),"-") -> - | N106: GHG End User | O106: 96459.67064 | P106: 0 | Q106: 0 | R106: 0 | S106: 0
D107: 0 | F107: 0 | G107: 0 | L107: =IFERROR(VLOOKUP(A107,Summary!$B$7:$D$18,3,FALSE),"-") -> - | N107: Public Purpose Programs | O107: 86266.01428 | P107: 59828.00913 | Q107: 60625.95713 | R107: 0 | S107: 26310.181
L108: =IFERROR(VLOOKUP(A108,Summary!$B$7:$D$18,3,FALSE),"-") -> - | N108: - | O108: 0 | P108: 0 | Q108: 0 | R108: 0 | S108: 0
L109: =IFERROR(VLOOKUP(A109,Summary!$B$7:$D$18,3,FALSE),"-") -> - | N109: 46% Res (LUAF, Other) | O109: 10346.86005 | P109: 0 | Q109: 0 | R109: 0 | S109: 0
L110: =IFERROR(VLOOKUP(A110,Summary!$B$7:$D$18,3,FALSE),"-") -> - | N110: ECPT | O110: 34482.62929 | P110: 0 | Q110: 0 | R110: 0 | S110: 0
D111: 0 | L111: =IFERROR(VLOOKUP(A111,Summary!$B$7:$D$18,3,FALSE),"-") -> - | N111: EPAM | O111: 68159.50628 | P111: 103545.8354 | Q111: 43402.29658 | R111: 36790.39206 | S111: 40179.65445
D112: 0 | L112: =IFERROR(VLOOKUP(A112,Summary!$B$7:$D$18,3,FALSE),"-") -> - | N112: CFCA | O112: 75648.13179 | P112: 0 | Q112: 0 | R112: 0 | S112: 0
D113: 0 | L113: =IFERROR(VLOOKUP(A113,Summary!$B$7:$D$18,3,FALSE),"-") -> - | N113: Non-Residential | O113: -3432.846524 | P113: 0 | Q113: 0 | R113: 0 | S113: 0
L114: =IFERROR(VLOOKUP(A114,Summary!$B$7:$D$18,3,FALSE),"-") -> - | N114: Total | O114: =SUM(O100:O113) -> 1047388.688 | P114: =SUM(P100:P113) -> 796408.948 | Q114: =SUM(Q100:Q113) -> 744347.4306 | R114: =SUM(R100:R113) -> 677109.569 | S114: =SUM(S100:S113) -> 706809.0124
L115: =IFERROR(VLOOKUP(A115,Summary!$B$7:$D$18,3,FALSE),"-") -> - | N115: Incremental Revenues | O115: =O114-O23 -> 12271.01215 | P115: =P114-P23 -> 92299.77256 | Q115: =Q114-Q23 -> 10298.11135 | R115: =R114-R23 -> 0 | S115: =S114-S23 -> 0
L116: =IFERROR(VLOOKUP(A116,Summary!$B$7:$D$18,3,FALSE),"-") -> - | N116: CPUC Fee | O116: =RegulatoryFee -> 0.0025
L117: =IFERROR(VLOOKUP(A117,Summary!$B$7:$D$18,3,FALSE),"-") -> - | N117: Check Figure | O117: =ROUND(O115,6)-ROUND(F127,6) -> 0 | P117: =ROUND(P115,6)-SUM(G99:G126) -> -4.058529157e-08 | Q117: =ROUND(Q115,6)-SUM(H99:H126) -> 4.36361006e-07 | R117: =ROUND(R115,6)-SUM(I99:I126) -> 0 | S117: =ROUND(S115,6)-SUM(J99:J126) -> 0
L118: =IFERROR(VLOOKUP(A118,Summary!$B$7:$D$18,3,FALSE),"-") -> -
L119: =IFERROR(VLOOKUP(A119,Summary!$B$7:$D$18,3,FALSE),"-") -> -
L120: =IFERROR(VLOOKUP(A120,Summary!$B$7:$D$18,3,FALSE),"-") -> -
L121: =IFERROR(VLOOKUP(A121,Summary!$B$7:$D$18,3,FALSE),"-") -> -
L122: =IFERROR(VLOOKUP(A122,Summary!$B$7:$D$18,3,FALSE),"-") -> -
L123: =IFERROR(VLOOKUP(A123,Summary!$B$7:$D$18,3,FALSE),"-") -> -
L124: =IFERROR(VLOOKUP(A124,Summary!$B$7:$D$18,3,FALSE),"-") -> -
L125: =IFERROR(VLOOKUP(A125,Summary!$B$7:$D$18,3,FALSE),"-") -> -
D126: =SUM(F126:J126) -> 0 | L126: =IFERROR(VLOOKUP(A126,Summary!$B$7:$D$18,3,FALSE),"-") -> -
A127: Total Pending, Filed but not Approved | D127: =SUM(D99:D126) -> 114868.8961 | F127: =SUM(F99:F126) -> 12271.01215 | G127: =SUM(G99:G126) -> 92299.77256 | H127: =SUM(H99:H126) -> 10298.11135 | I127: =SUM(I99:I126) -> 0 | J127: =SUM(J99:J126) -> 0
A129: Applications Projected to be Filed, Next 12 Months
A130: Filing Description | B130: Estimated Filing Date | C130: Filing Basis | D130: Proposed Revenue Requirement ($000) | E130: Proposed Revenue Recovery Mechanism | F130: Projected Authorized Revenue Requirement ($000) - Breakout by Year | K130: Existing or New Item (if existing, use delta from prior for rate impact)
A131: Safety Affordability Reliability Proceedings | F131: =TRANSPOSE(YearsForRateImpact) -> 2025 | G131: 2026 | H131: 2027 | I131: 2028 | J131: 2029
A136: Public Policy Proceedings

Sheet SAR and RAR
C1: Revenue Change ($000)
C2: Authorized | D2: w/ Pending
B3: =RevRecoveryMechanisms -> Core Procurement | C3: =INDEX('Incremental Rev Req'!$N$9:$S$22,MATCH(B3,'Incremental Rev Req'!$N$9:$N$22,0),MATCH(Summary!$D$2,'Incremental Rev Req'!$N$8:$S$8,0)) -> 136165.985 | D3: =INDEX('Incremental Rev Req'!$N$100:$S$113,MATCH(B3,'Incremental Rev Req'!$N$100:$N$113,0),MATCH(Summary!$D$2,'Incremental Rev Req'!$N$99:$S$99,0)) -> 136165.985 | G3: Allocation | P3: Other Revenues and Balancing Accounts
B4: Allocated Base Margin | C4: =INDEX('Incremental Rev Req'!$N$9:$S$22,MATCH(B4,'Incremental Rev Req'!$N$9:$N$22,0),MATCH(Summary!$D$2,'Incremental Rev Req'!$N$8:$S$8,0)) -> 475212.7363 | D4: =INDEX('Incremental Rev Req'!$N$100:$S$113,MATCH(B4,'Incremental Rev Req'!$N$100:$N$113,0),MATCH(Summary!$D$2,'Incremental Rev Req'!$N$99:$S$99,0)) -> 475212.7363 | G4: =TRANSPOSE(RevRecoveryMechanisms) -> Core Procurement | H4: Allocated Base Margin | I4: Distribution | J4: All Residential | K4: Local Transmission | L4: Seasonal Storage | M4: GHG End User | N4: Public Purpose Programs | O4: - | P4: 46% Res (LUAF, Other) | Q4: ECPT | R4: EPAM | S4: CFCA | T4: Non-Residential | U4: CPUC Fee
B5: Distribution | C5: =INDEX('Incremental Rev Req'!$N$9:$S$22,MATCH(B5,'Incremental Rev Req'!$N$9:$N$22,0),MATCH(Summary!$D$2,'Incremental Rev Req'!$N$8:$S$8,0)) -> 34518.94755 | D5: =INDEX('Incremental Rev Req'!$N$100:$S$113,MATCH(B5,'Incremental Rev Req'!$N$100:$N$113,0),MATCH(Summary!$D$2,'Incremental Rev Req'!$N$99:$S$99,0)) -> 34518.94755 | F5: Residential | G5: 0.5724692956 | H5: 0.8165237363 | I5: 0.7135109512 | J5: 1 | K5: 0.5154334371 | L5: 0.7405203174 | M5: 0.4973508799 | N5: 0.4546557409 | P5: 0.4391411967 | Q5: 0.3301664811 | R5: 0.8165237363 | S5: 0.6019875916 | T5: 0 | U5: =RegulatoryFee -> 0.0025
B6: All Residential | C6: =INDEX('Incremental Rev Req'!$N$9:$S$22,MATCH(B6,'Incremental Rev Req'!$N$9:$N$22,0),MATCH(Summary!$D$2,'Incremental Rev Req'!$N$8:$S$8,0)) -> 3287.897086 | D6: =INDEX('Incremental Rev Req'!$N$100:$S$113,MATCH(B6,'Incremental Rev Req'!$N$100:$N$113,0),MATCH(Summary!$D$2,'Incremental Rev Req'!$N$99:$S$99,0)) -> 3287.897086
B7: Local Transmission | C7: =INDEX('Incremental Rev Req'!$N$9:$S$22,MATCH(B7,'Incremental Rev Req'!$N$9:$N$22,0),MATCH(Summary!$D$2,'Incremental Rev Req'!$N$8:$S$8,0)) -> 7459.997593 | D7: =INDEX('Incremental Rev Req'!$N$100:$S$113,MATCH(B7,'Incremental Rev Req'!$N$100:$N$113,0),MATCH(Summary!$D$2,'Incremental Rev Req'!$N$99:$S$99,0)) -> 7459.997593 | G7: Revenue Change ($000) - System
B8: Seasonal Storage | C8: =INDEX('Incremental Rev Req'!$N$9:$S$22,MATCH(B8,'Incremental Rev Req'!$N$9:$N$22,0),MATCH(Summary!$D$2,'Incremental Rev Req'!$N$8:$S$8,0)) -> 22813.15835 | D8: =INDEX('Incremental Rev Req'!$N$100:$S$113,MATCH(B8,'Incremental Rev Req'!$N$100:$N$113,0),MATCH(Summary!$D$2,'Incremental Rev Req'!$N$99:$S$99,0)) -> 22813.15835 | F8: Authorized | G8: =TRANSPOSE(RevRecoveryMechanisms) -> Core Procurement | H8: Allocated Base Margin | I8: Distribution | J8: All Residential | K8: Local Transmission | L8: Seasonal Storage | M8: GHG End User | N8: Public Purpose Programs | O8: - | P8: 46% Res (LUAF, Other) | Q8: ECPT | R8: EPAM | S8: CFCA | T8: Non-Residential
B9: GHG End User | C9: =INDEX('Incremental Rev Req'!$N$9:$S$22,MATCH(B9,'Incremental Rev Req'!$N$9:$N$22,0),MATCH(Summary!$D$2,'Incremental Rev Req'!$N$8:$S$8,0)) -> 96459.67064 | D9: =INDEX('Incremental Rev Req'!$N$100:$S$113,MATCH(B9,'Incremental Rev Req'!$N$100:$N$113,0),MATCH(Summary!$D$2,'Incremental Rev Req'!$N$99:$S$99,0)) -> 96459.67064 | F9: Residential | G9: =G5*G10 -> 77950.84551 | H9: =H5*H10 -> 388022.479 | I9: =I5*I10 -> 24629.6471 | J9: 3287.897086 | K9: 3845.1322 | L9: 16893.60726 | M9: 47974.30207 | N9: 39221.33863 | O9: =O5*O10 -> 0 | P9: 4543.732504 | Q9: =Q5*Q10 -> 11385.00837 | R9: =R5*R10 -> 45634.28205 | S9: =S5*S10 -> 45539.23667 | T9: =T5*T10 -> 0 | U9: =SUM(G9:T9) -> 708927.5085 | V9: Check | W9: CPUC Fee
B10: Public Purpose Programs | C10: =INDEX('Incremental Rev Req'!$N$9:$S$22,MATCH(B10,'Incremental Rev Req'!$N$9:$N$22,0),MATCH(Summary!$D$2,'Incremental Rev Req'!$N$8:$S$8,0)) -> 86266.01428 | D10: =INDEX('Incremental Rev Req'!$N$100:$S$113,MATCH(B10,'Incremental Rev Req'!$N$100:$N$113,0),MATCH(Summary!$D$2,'Incremental Rev Req'!$N$99:$S$99,0)) -> 86266.01428 | F10: Total System | G10: =C3 -> 136165.985 | H10: =C4 -> 475212.7363 | I10: =C5 -> 34518.94755 | J10: =C6 -> 3287.897086 | K10: =C7 -> 7459.997593 | L10: =C8 -> 22813.15835 | M10: =C9 -> 96459.67064 | N10: =C10 -> 86266.01428 | O10: =C11 -> 0 | P10: =C12 -> 10346.86005 | Q10: =C13 -> 34482.62929 | R10: =C14 -> 55888.49413 | S10: =C15 -> 75648.13179 | T10: =C16 -> -3432.846524 | U10: =SUM(G10:T10) -> 1035117.676 | V10: =U10-C17 -> 0 | W10: =RegulatoryFee -> 0.0025
B11: - | C11: =INDEX('Incremental Rev Req'!$N$9:$S$22,MATCH(B11,'Incremental Rev Req'!$N$9:$N$22,0),MATCH(Summary!$D$2,'Incremental Rev Req'!$N$8:$S$8,0)) -> 0 | D11: =INDEX('Incremental Rev Req'!$N$100:$S$113,MATCH(B11,'Incremental Rev Req'!$N$100:$N$113,0),MATCH(Summary!$D$2,'Incremental Rev Req'!$N$99:$S$99,0)) -> 0 | F11: w/Pending
B12: 46% Res (LUAF, Other) | C12: =INDEX('Incremental Rev Req'!$N$9:$S$22,MATCH(B12,'Incremental Rev Req'!$N$9:$N$22,0),MATCH(Summary!$D$2,'Incremental Rev Req'!$N$8:$S$8,0)) -> 10346.86005 | D12: =INDEX('Incremental Rev Req'!$N$100:$S$113,MATCH(B12,'Incremental Rev Req'!$N$100:$N$113,0),MATCH(Summary!$D$2,'Incremental Rev Req'!$N$99:$S$99,0)) -> 10346.86005 | F12: Residential | G12: =G5*G13 -> 77950.84551 | H12: =H5*H13 -> 388022.479 | I12: 24629.6471 | J12: 3287.897086 | K12: 3845.1322 | L12: 16893.60726 | M12: 47974.30207 | N12: 39221.33863 | O12: =O5*O13 -> 0 | P12: 4543.732504 | Q12: =Q5*Q13 -> 11385.00837 | R12: =R5*R13 -> 55653.85473 | S12: =S5*S13 -> 45539.23667 | T12: =T5*T13 -> 0 | U12: =SUM(G12:T12) -> 718947.0811 | V12: Check | W12: CPUC Fee
B13: ECPT | C13: =INDEX('Incremental Rev Req'!$N$9:$S$22,MATCH(B13,'Incremental Rev Req'!$N$9:$N$22,0),MATCH(Summary!$D$2,'Incremental Rev Req'!$N$8:$S$8,0)) -> 34482.62929 | D13: =INDEX('Incremental Rev Req'!$N$100:$S$113,MATCH(B13,'Incremental Rev Req'!$N$100:$N$113,0),MATCH(Summary!$D$2,'Incremental Rev Req'!$N$99:$S$99,0)) -> 34482.62929 | F13: Total System | G13: =D3 -> 136165.985 | H13: =D4 -> 475212.7363 | I13: =D5 -> 34518.94755 | J13: =D6 -> 3287.897086 | K13: =D7 -> 7459.997593 | L13: =D8 -> 22813.15835 | M13: =D9 -> 96459.67064 | N13: =D10 -> 86266.01428 | O13: =D11 -> 0 | P13: =D12 -> 10346.86005 | Q13: =D13 -> 34482.62929 | R13: =D14 -> 68159.50628 | S13: =D15 -> 75648.13179 | T13: =D16 -> -3432.846524 | U13: =SUM(G13:T13) -> 1047388.688 | V13: =U13-D17 -> 0 | W13: =RegulatoryFee -> 0.0025
B14: EPAM | C14: =INDEX('Incremental Rev Req'!$N$9:$S$22,MATCH(B14,'Incremental Rev Req'!$N$9:$N$22,0),MATCH(Summary!$D$2,'Incremental Rev Req'!$N$8:$S$8,0)) -> 55888.49413 | D14: =INDEX('Incremental Rev Req'!$N$100:$S$113,MATCH(B14,'Incremental Rev Req'!$N$100:$N$113,0),MATCH(Summary!$D$2,'Incremental Rev Req'!$N$99:$S$99,0)) -> 68159.50628 | AC14: Authorized | AD14: w/Pending
B15: CFCA | C15: =INDEX('Incremental Rev Req'!$N$9:$S$22,MATCH(B15,'Incremental Rev Req'!$N$9:$N$22,0),MATCH(Summary!$D$2,'Incremental Rev Req'!$N$8:$S$8,0)) -> 75648.13179 | D15: =INDEX('Incremental Rev Req'!$N$100:$S$113,MATCH(B15,'Incremental Rev Req'!$N$100:$N$113,0),MATCH(Summary!$D$2,'Incremental Rev Req'!$N$99:$S$99,0)) -> 75648.13179 | AB15: % of CARE Sales (Bundled) | AC15: 0.1813279471 | AD15: =AC15 -> 0.1813279471
B16: Non-Residential | C16: =INDEX('Incremental Rev Req'!$N$9:$S$22,MATCH(B16,'Incremental Rev Req'!$N$9:$N$22,0),MATCH(Summary!$D$2,'Incremental Rev Req'!$N$8:$S$8,0)) -> -3432.846524 | D16: =INDEX('Incremental Rev Req'!$N$100:$S$113,MATCH(B16,'Incremental Rev Req'!$N$100:$N$113,0),MATCH(Summary!$D$2,'Incremental Rev Req'!$N$99:$S$99,0)) -> -3432.846524 | U16: Authorized | W16: w/Pending Total UDC | Y16: Commodity | Z16: w/Pending Commodity
B17: Total Revenue Requirement | C17: =SUM(C3:C16) -> 1035117.676 | D17: =SUM(D3:D16) -> 1047388.688 | G17: Revenue Split - Bundled Customer | U17: Bundled Revenue Change | W17: Bundled Revenue Change
B18: CPUC Fee | C18: =RegulatoryFee -> 0.0025 | D18: =C18 -> 0.0025 | G18: =TRANSPOSE(RevRecoveryMechanisms) -> Core Procurement | H18: Allocated Base Margin | I18: Distribution | J18: All Residential | K18: Local Transmission | L18: Seasonal Storage | M18: GHG End User | N18: Public Purpose Programs | O18: - | P18: 46% Res (LUAF, Other) | Q18: ECPT | R18: EPAM | S18: CFCA | T18: Non-Residential | U18: Total | W18: Total | Y18: Core Procurement | Z18: Core Procurement
F19: Residential | G19: 1 | H19: 1 | I19: 1 | J19: 1 | K19: 1 | L19: 1 | M19: 1 | N19: 1 | O19: 1 | P19: 1 | Q19: 1 | R19: 1 | S19: 1 | T19: 1 | U19: =SUMPRODUCT(H9:T9,H19:T19) -> 630976.6629 | W19: =SUMPRODUCT(H12:T12,H19:T19) -> 640996.2356 | Y19: =SUMPRODUCT(G9,G19) -> 77950.84551 | Z19: =SUMPRODUCT(G12,G19) -> 77950.84551
F20: Total System | G20: 1 | H20: 1 | I20: 1 | J20: 1 | K20: 1 | L20: 1 | M20: 1 | N20: 1 | O20: 1 | P20: 1 | Q20: 1 | R20: 1 | S20: 1 | T20: 1 | U20: =SUMPRODUCT(H10:T10,H20:T20) -> 898951.6905 | W20: =SUMPRODUCT(H13:T13,H20:T20) -> 911222.7027 | Y20: =SUMPRODUCT(G10,G20) -> 136165.985 | Z20: =SUMPRODUCT(G13,G20) -> 136165.985
C22: CAP D.24-07-009 SALES DETERMINANTS SYSTEM NET | D22: CAP D.24-07-009 SALES DETERMINANTS BUNDLED
B23: Residential | C23: 270603.8421 | D23: 268350.6274
B24: Total System | C24: 819598.1651 | D24: 413767.7004
F26: Bundled | P26: System (Bundled and Unbundled)
B27: CARE Discount | F27: CAP D.24-07-009 SALES DETERMINANTS BUNDLED | G27: =CONCATENATE(TEXT(CurrentEffectiveRateDate,"mm/dd/yyyy")," Avg Rates"&"(sales adj.)") -> 06/01/2025 Avg Rates(sales adj.) | H27: Proposed Avg Rates (Authorized) | I27: Proposed Avg Rates (w/Pending) | J27: % Change (Authorized) | K27: % Change (w/Pending) | Q27: =F27 -> CAP D.24-07-009 SALES DETERMINANTS BUNDLED | R27: =G27 -> 06/01/2025 Avg Rates(sales adj.) | S27: Proposed Avg Rates (Authorized) | T27: Proposed Avg Rates (w/Pending) | U27: % Change (Authorized) | V27: % Change (w/Pending)
B28: 2020 | C28: 14643.43625 | E28: Residential | F28: =D23 -> 268350.6274 | G28: 262.2217112 | H28: =(U19/C23*100)+(Y19/D23*100) -> 262.2217112 | I28: =(W19/C23*100)+(Z19/D23*100) -> 265.9243832 | J28: =H28/G28-1 -> 0 | K28: =I28/G28-1 -> 0.01412038683 | P28: Residential | Q28: =C23 -> 270603.8421 | R28: 261.9798385 | S28: =U9/Q28*100 -> 261.9798385 | T28: =U12/Q28*100 -> 265.6825105 | U28: =S28/R28-1 -> 0 | V28: =T28/R28-1 -> 0.01413342347
B29: 2021 | C29: 23945.84284 | E29: Total System | F29: =D24 -> 413767.7004 | G29: 142.5908038 | H29: =(U20/C24*100)+(Y20/D24*100) -> 142.5908038 | I29: =(W20/C24*100)+(Z20/D24*100) -> 144.0880024 | J29: =H29/G29-1 -> 0 | K29: =I29/G29-1 -> 0.01049996597 | P29: Total System | Q29: =C24 -> 819598.1651 | R29: 126.2957532 | S29: =U10/Q29*100 -> 126.2957532 | T29: =U13/Q29*100 -> 127.7929518 | U29: =S29/R29-1 -> 0 | V29: =T29/R29-1 -> 0.01185470255
B30: 2022 | C30: 25613.07214 | H30: cents/therm
B31: 2023 | C31: 22795.55934
B32: 2024 | C32: 21383.37754
B33: 2025 | C33: 19135.75613

Sheet Res Bill Impact
E3: Schedule GR | P3: Schedule GR [CARE]
E4: =SalesForecastYear -> 2024 | F4: =CurrentEffectiveRateDate -> 2025-06-01 | G4: =CurrentEffectiveRateDate -> 2025-06-01 | H4: Proposed | I4: Proposed | J4: Proposed | K4: Proposed | P4: =SalesForecastYear -> 2024 | Q4: =CurrentEffectiveRateDate -> 2025-06-01 | R4: =CurrentEffectiveRateDate -> 2025-06-01 | S4: Proposed | T4: Proposed | U4: Proposed | V4: Proposed
E5: System Sales Forecast | F5: Rates | G5: Revenue | H5: Authorized Rates | I5: Authorized Revenue | J5: w/Pending Rates | K5: w/Pending Revenue | P5: Sales Forecast | Q5: Rates | R5: Revenue | S5: Authorized Rates | T5: Authorized Revenue | U5: w/Pending Rates | V5: w/Pending Revenue
D7: Baseline | E7: 187959.3296 | F7: 2.490173919 | G7: =F7*E7 -> 468051.4203 | H7: =((Y10-I12-T12)/SUM(E7,F9/F7*E9,P7*((Q7/F7)),P9*((Q9/F7)))) -> 2.244053535 | I7: =E7*H7 -> 421790.798 | J7: =((Y13-K12-V12)/SUM(SUM(E7),F9/F7*SUM(E9),SUM(P7)*((Q7/F7)),SUM(P9)*(Q9/F7))) -> 2.275769694 | K7: =E7*J7 -> 427752.1459 | O7: =D7 -> Baseline | P7: 34568.65952 | Q7: 1.976866623 | R7: =Q7*P7 -> 68337.62922 | S7: =H7*(1+(Q7/F7-1)) -> 1.7814798 | T7: =P7*S7 -> 61583.36864 | U7: =J7*(1+(Q7/F7-1)) -> 1.806658208 | V7: =P7*U7 -> 62453.75247 | X7: Bundled Residential Rev Req
X8: Current | Y8: =(SUM(G7:G9)+SUM(R7:R9)) -> 786680.3374
D9: non-Baseline | E9: 76615.61141 | F9: 2.850283919 | G9: =F9*E9 -> 218376.2451 | H9: =F9/F$7*H$7 -> 2.568571478 | I9: =E9*H9 -> 196792.6743 | J9: =F9/F$7*J$7 -> 2.604874187 | K9: 199574.0285 | O9: =D9 -> non-Baseline | P9: 14090.80885 | Q9: 2.264954623 | R9: =Q9*P9 -> 31915.04265 | S9: =H9*(1+(Q9/F9-1)) -> 2.041094154 | T9: =P9*S9 -> 28760.66758 | U9: =J9*(1+(Q9/F9-1)) -> 2.069941802 | V9: =P9*U9 -> 29167.15427 | X9: Change (Authorized) | Y9: =Y10-Y8 -> -77752.82891
X10: Proposed (Authorized) | Y10: ='SAR and RAR'!U9 -> 708927.5085
E11: Non-CARE customers | P11: CARE Customers
D12: Fixed Charge | E12: =E13-P12 -> 688839.6487 | F12: 0 | G12: =F12*12*E12/1000 -> 0 | H12: =SetUp!D7 -> 0 | I12: =(H12*12*E12)/1000 -> 0 | J12: =H12 -> 0 | K12: =I12 -> 0 | O12: Fixed Charge | P12: 185227.7605 | Q12: =F12*(1-CAREDiscountPercent) -> 0 | R12: =Q12*12*P12/1000 -> 0 | S12: =SetUp!D7*(1-CAREDiscountPercent) -> 0 | T12: =(S12*12*P12)/1000 -> 0 | U12: =S12 -> 0 | V12: =T12 -> 0 | X12: Change (w/Pending) | Y12: =Y13-Y8 -> -67733.25622
D13: Total Customers | E13: 874067.4092 | X13: Proposed (w/Pending) | Y13: ='SAR and RAR'!U12 -> 718947.0811
P18: Basic Bundled
E19: =Summary!D2 -> 2025 | F19: =Summary!D2 -> 2025 | H19: Essential Usage | P19: 2024 Recorded Data - Average Monthly Usage - ALL-BASIC th
B20: SCHEDULE GR RATES ($/therm) | E20: Proposed | F20: Proposed | H20: Monthly Tier 1 Baseline Allowance -BASIC (th) | P20: Climate Zone | Q20: Summer | R20: Winter | S20: Summer | T20: Winter
B21: Rates | C21: =BOYEffectiveRateDate -> 2025-01-01 | D21: =CurrentEffectiveRateDate -> 2025-06-01 | E21: Authorized | F21: w/Pending | H21: Climate Zone | I21: Summer 2024 | J21: Winter 2024 | Q21: Non-CARE | S21: CARE
A22: Summer | B22: Tier 1 | C22: 2.156404132 | D22: 2.244053535 | E22: =H7 -> 2.244053535 | F22: =J7 -> 2.275769694 | H22: =Zones -> SDG&E | I22: 11 | J22: 29 | P22: =Zones -> SDG&E | Q22: 15.16666667 | R22: 30.33333333 | S22: 14.62474328 | T22: 26.16666667
B23: Tier 2 | C23: 2.466087708 | D23: 2.568571478 | E23: =H9 -> 2.568571478 | F23: =J9 -> 2.604874187 | H23: 0 | P23: 0
H24: 0 | P24: 0
A25: Winter | B25: Tier 1 | C25: =C22 -> 2.156404132 | D25: =D22 -> 2.244053535 | E25: =E22 -> 2.244053535 | F25: 2.275769694 | H25: 0 | P25: 0
B26: Tier 2 | C26: =C23 -> 2.466087708 | D26: =D23 -> 2.568571478 | E26: =E23 -> 2.568571478 | F26: 2.604874187
P27: Typical Bundled
E28: =Summary!D2 -> 2025 | F28: =Summary!D2 -> 2025 | P28: 2020-2024 Recorded Data - Average Monthly Usage - ALL-BASIC th
B29: SCHEDULE GR-LI [CARE] ($/therm) | E29: Proposed | F29: Proposed | P29: Climate Zone | Q29: Summer | R29: Winter | S29: Summer | T29: Winter
B30: Rates | C30: =BOYEffectiveRateDate -> 2025-01-01 | D30: =CurrentEffectiveRateDate -> 2025-06-01 | E30: Authorized | F30: w/Pending | Q30: Non-CARE | S30: CARE
A31: Summer | B31: Tier 1 | C31: 1.711989413 | D31: 1.7814798 | E31: =S7 -> 1.7814798 | F31: =U7 -> 1.806658208 | P31: =Zones -> SDG&E | Q31: 15.55639947 | R31: 33.1665529 | S31: 14.62474328 | T31: 26.70068582
B32: Tier 2 | C32: 1.959736274 | D32: 2.041094154 | E32: =S9 -> 2.041094154 | F32: =U9 -> 2.069941802 | P32: 0
P33: 0
A34: Winter | B34: Tier 1 | C34: =C31 -> 1.711989413 | D34: 1.778826652 | E34: =E31 -> 1.7814798 | F34: 1.806658208 | P34: 0
B35: Tier 2 | C35: =C32 -> 1.959736274 | D35: 2.026304426 | E35: =E32 -> 2.041094154 | F35: 2.069941802
C39: Note: Bill inserts include CPUC fee in the calculations
C40: 2023 Recorded Average Basic Bundled Non-CARE Customer Bill
C41: =C30 -> 2025-01-01 | E41: =D30 -> 2025-06-01 | G41: =E21 -> Authorized | I41: =F21 -> w/Pending
C42: Summer | D42: Winter | E42: Summer | F42: Winter | G42: Summer | H42: Winter | I42: Summer | J42: Winter
B43: =Zones -> SDG&E | C43: =IF($Q22>$I22,C$22*$I22+C$23*($Q22-$I22),$Q22*C$22)+('Incremental Rev Req'!$F$93*$Q22)+IF(Q22>0,$F$12,0) -> 34.03372757 | D43: =IF($R22>$J22,C$25*$J22+C$26*($R22-$J22),$R22*C$25)+('Incremental Rev Req'!$F$93*$R22)+IF(R22>0,$F$12,0) -> 65.8996701 | E43: =IF($Q22>$I22,D$22*$I22+D$23*($Q22-$I22),$Q22*D$22)+('Incremental Rev Req'!$F$93*$Q22)+IF(Q22>0,$F$12,0) -> 35.42488671 | F43: =IF($R22>$J22,D$25*$J22+D$26*($R22-$J22),$R22*D$25)+('Incremental Rev Req'!$F$93*$R22)+IF(R22>0,$F$12,0) -> 68.57814782 | G43: =IF($Q22>$I22,E$22*$I22+E$23*($Q22-$I22),$Q22*E$22)+('Incremental Rev Req'!$F$93*$Q22)+IF(Q22>0,$H$12,0) -> 35.42488671 | H43: =IF($R22>$J22,E$25*$J22+E$26*($R22-$J22),$R22*E$25)+('Incremental Rev Req'!$F$93*$R22)+IF(R22>0,$H$12,0) -> 68.57814782 | I43: =IF($Q22>$I22,F$22*$I22+F$23*($Q22-$I22),$Q22*F$22)+('Incremental Rev Req'!$F$93*$Q22)+IF(Q22>0,$J$12,0) -> 35.92502575 | J43: =IF($R22>$J22,F$25*$J22+F$26*($R22-$J22),$R22*F$25)+('Incremental Rev Req'!$F$93*$R22)+IF(R22>0,$J$12,0) -> 69.54632004
B44: 0 | C44: =IF($Q23>$I23,C$22*$I23+C$23*($Q23-$I23),$Q23*C$22)+('Incremental Rev Req'!$F$93*$Q23)+IF(Q23>0,$F$12,0) -> 0 | D44: =IF($R23>$J23,C$25*$J23+C$26*($R23-$J23),$R23*C$25)+('Incremental Rev Req'!$F$93*$R23)+IF(R23>0,$F$12,0) -> 0 | E44: =IF($Q23>$I23,D$22*$I23+D$23*($Q23-$I23),$Q23*D$22)+('Incremental Rev Req'!$F$93*$Q23)+IF(Q23>0,$F$12,0) -> 0 | F44: =IF($R23>$J23,D$25*$J23+D$26*($R23-$J23),$R23*D$25)+('Incremental Rev Req'!$F$93*$R23)+IF(R23>0,$F$12,0) -> 0 | G44: =IF($Q23>$I23,E$22*$I23+E$23*($Q23-$I23),$Q23*E$22)+('Incremental Rev Req'!$F$93*$Q23)+IF(Q23>0,$H$12,0) -> 0 | H44: =IF($R23>$J23,E$25*$J23+E$26*($R23-$J23),$R23*E$25)+('Incremental Rev Req'!$F$93*$R23)+IF(R23>0,$H$12,0) -> 0 | I44: =IF($Q23>$I23,F$22*$I23+F$23*($Q23-$I23),$Q23*F$22)+('Incremental Rev Req'!$F$93*$Q23)+IF(Q23>0,$J$12,0) -> 0 | J44: =IF($R23>$J23,F$25*$J23+F$26*($R23-$J23),$R23*F$25)+('Incremental Rev Req'!$F$93*$R23)+IF(R23>0,$J$12,0) -> 0
B45: 0 | C45: =IF($Q24>$I24,C$22*$I24+C$23*($Q24-$I24),$Q24*C$22)+('Incremental Rev Req'!$F$93*$Q24)+IF(Q24>0,$F$12,0) -> 0 | D45: =IF($R24>$J24,C$25*$J24+C$26*($R24-$J24),$R24*C$25)+('Incremental Rev Req'!$F$93*$R24)+IF(R24>0,$F$12,0) -> 0 | E45: =IF($Q24>$I24,D$22*$I24+D$23*($Q24-$I24),$Q24*D$22)+('Incremental Rev Req'!$F$93*$Q24)+IF(Q24>0,$F$12,0) -> 0 | F45: =IF($R24>$J24,D$25*$J24+D$26*($R24-$J24),$R24*D$25)+('Incremental Rev Req'!$F$93*$R24)+IF(R24>0,$F$12,0) -> 0 | G45: =IF($Q24>$I24,E$22*$I24+E$23*($Q24-$I24),$Q24*E$22)+('Incremental Rev Req'!$F$93*$Q24)+IF(Q24>0,$H$12,0) -> 0 | H45: =IF($R24>$J24,E$25*$J24+E$26*($R24-$J24),$R24*E$25)+('Incremental Rev Req'!$F$93*$R24)+IF(R24>0,$H$12,0) -> 0 | I45: =IF($Q24>$I24,F$22*$I24+F$23*($Q24-$I24),$Q24*F$22)+('Incremental Rev Req'!$F$93*$Q24)+IF(Q24>0,$J$12,0) -> 0 | J45: =IF($R24>$J24,F$25*$J24+F$26*($R24-$J24),$R24*F$25)+('Incremental Rev Req'!$F$93*$R24)+IF(R24>0,$J$12,0) -> 0
B46: 0 | C46: =IF($Q25>$I25,C$22*$I25+C$23*($Q25-$I25),$Q25*C$22)+('Incremental Rev Req'!$F$93*$Q25)+IF(Q25>0,$F$12,0) -> 0 | D46: =IF($R25>$J25,C$25*$J25+C$26*($R25-$J25),$R25*C$25)+('Incremental Rev Req'!$F$93*$R25)+IF(R25>0,$F$12,0) -> 0 | E46: =IF($Q25>$I25,D$22*$I25+D$23*($Q25-$I25),$Q25*D$22)+('Incremental Rev Req'!$F$93*$Q25)+IF(Q25>0,$F$12,0) -> 0 | F46: =IF($R25>$J25,D$25*$J25+D$26*($R25-$J25),$R25*D$25)+('Incremental Rev Req'!$F$93*$R25)+IF(R25>0,$F$12,0) -> 0 | G46: =IF($Q25>$I25,E$22*$I25+E$23*($Q25-$I25),$Q25*E$22)+('Incremental Rev Req'!$F$93*$Q25)+IF(Q25>0,$H$12,0) -> 0 | H46: =IF($R25>$J25,E$25*$J25+E$26*($R25-$J25),$R25*E$25)+('Incremental Rev Req'!$F$93*$R25)+IF(R25>0,$H$12,0) -> 0 | I46: =IF($Q25>$I25,F$22*$I25+F$23*($Q25-$I25),$Q25*F$22)+('Incremental Rev Req'!$F$93*$Q25)+IF(Q25>0,$J$12,0) -> 0 | J46: =IF($R25>$J25,F$25*$J25+F$26*($R25-$J25),$R25*F$25)+('Incremental Rev Req'!$F$93*$R25)+IF(R25>0,$J$12,0) -> 0
B47: Total | C47: =SUMPRODUCT(C43:C46,$U$22:$U$25) -> 0 | D47: =SUMPRODUCT(D43:D46,$U$22:$U$25) -> 0 | E47: 0 | F47: 0 | G47: 0 | H47: 0 | I47: 0 | J47: 0
C50: 2023 Recorded Average Basic Bundled CARE Customer Bill
C51: =C30 -> 2025-01-01 | E51: =D30 -> 2025-06-01 | G51: =E30 -> Authorized | I51: =F30 -> w/Pending
C52: Summer | D52: Winter | E52: Summer | F52: Winter | G52: Summer | H52: Winter | I52: Summer | J52: Winter
B53: =Zones -> SDG&E | C53: =IF($S22>$I22,C$31*$I22+C$32*($S22-$I22),$S22*C$31)+('Incremental Rev Req'!$F$93*$S22)+IF(S22>0,$Q$12,0) -> 25.97198629 | D53: =IF($T22>$J22,C$34*$J22+C$35*($T22-$J22),$T22*C$34)+('Incremental Rev Req'!$F$93*$T22)+IF(T22>0,$Q$12,0) -> 44.86247297 | E53: =IF($S22>$I22,D$31*$I22+D$32*($S22-$I22),$S22*D$31)+('Incremental Rev Req'!$F$93*$S22)+IF(S22>0,$Q$12,0) -> 27.03128198 | F53: =IF($T22>$J22,D$34*$J22+D$35*($T22-$J22),$T22*D$34)+('Incremental Rev Req'!$F$93*$T22)+IF(T22>0,$Q$12,0) -> 46.61138072 | G53: =IF($S22>$I22,E$31*$I22+E$32*($S22-$I22),$S22*E$31)+('Incremental Rev Req'!$F$93*$S22)+IF(S22>0,$S$12,0) -> 27.03128198 | H53: =IF($T22>$J22,E$34*$J22+E$35*($T22-$J22),$T22*E$34)+('Incremental Rev Req'!$F$93*$T22)+IF(T22>0,$S$12,0) -> 46.68080476 | I53: =IF($S22>$I22,F$31*$I22+F$32*($S22-$I22),$S22*F$31)+('Incremental Rev Req'!$F$93*$S22)+IF(S22>0,$U$12,0) -> 27.41280979 | J53: =IF($T22>$J22,F$34*$J22+F$35*($T22-$J22),$T22*F$34)+('Incremental Rev Req'!$F$93*$T22)+IF(T22>0,$U$12,0) -> 47.33963978
B54: 0 | C54: =IF($S23>$I23,C$31*$I23+C$32*($S23-$I23),$S23*C$31)+('Incremental Rev Req'!$F$93*$S23)+IF(S23>0,$Q$12,0) -> 0 | D54: =IF($T23>$J23,C$34*$J23+C$35*($T23-$J23),$T23*C$34)+('Incremental Rev Req'!$F$93*$T23)+IF(T23>0,$Q$12,0) -> 0 | E54: =IF($S23>$I23,D$31*$I23+D$32*($S23-$I23),$S23*D$31)+('Incremental Rev Req'!$F$93*$S23)+IF(S23>0,$Q$12,0) -> 0 | F54: =IF($T23>$J23,D$34*$J23+D$35*($T23-$J23),$T23*D$34)+('Incremental Rev Req'!$F$93*$T23)+IF(T23>0,$Q$12,0) -> 0 | G54: =IF($S23>$I23,E$31*$I23+E$32*($S23-$I23),$S23*E$31)+('Incremental Rev Req'!$F$93*$S23)+IF(S23>0,$S$12,0) -> 0 | H54: =IF($T23>$J23,E$34*$J23+E$35*($T23-$J23),$T23*E$34)+('Incremental Rev Req'!$F$93*$T23)+IF(T23>0,$S$12,0) -> 0 | I54: =IF($S23>$I23,F$31*$I23+F$32*($S23-$I23),$S23*F$31)+('Incremental Rev Req'!$F$93*$S23)+IF(S23>0,$U$12,0) -> 0 | J54: =IF($T23>$J23,F$34*$J23+F$35*($T23-$J23),$T23*F$34)+('Incremental Rev Req'!$F$93*$T23)+IF(T23>0,$U$12,0) -> 0
B55: 0 | C55: =IF($S24>$I24,C$31*$I24+C$32*($S24-$I24),$S24*C$31)+('Incremental Rev Req'!$F$93*$S24)+IF(S24>0,$Q$12,0) -> 0 | D55: =IF($T24>$J24,C$34*$J24+C$35*($T24-$J24),$T24*C$34)+('Incremental Rev Req'!$F$93*$T24)+IF(T24>0,$Q$12,0) -> 0 | E55: =IF($S24>$I24,D$31*$I24+D$32*($S24-$I24),$S24*D$31)+('Incremental Rev Req'!$F$93*$S24)+IF(S24>0,$Q$12,0) -> 0 | F55: =IF($T24>$J24,D$34*$J24+D$35*($T24-$J24),$T24*D$34)+('Incremental Rev Req'!$F$93*$T24)+IF(T24>0,$Q$12,0) -> 0 | G55: =IF($S24>$I24,E$31*$I24+E$32*($S24-$I24),$S24*E$31)+('Incremental Rev Req'!$F$93*$S24)+IF(S24>0,$S$12,0) -> 0 | H55: =IF($T24>$J24,E$34*$J24+E$35*($T24-$J24),$T24*E$34)+('Incremental Rev Req'!$F$93*$T24)+IF(T24>0,$S$12,0) -> 0 | I55: =IF($S24>$I24,F$31*$I24+F$32*($S24-$I24),$S24*F$31)+('Incremental Rev Req'!$F$93*$S24)+IF(S24>0,$U$12,0) -> 0 | J55: =IF($T24>$J24,F$34*$J24+F$35*($T24-$J24),$T24*F$34)+('Incremental Rev Req'!$F$93*$T24)+IF(T24>0,$U$12,0) -> 0
B56: 0 | C56: =IF($S25>$I25,C$31*$I25+C$32*($S25-$I25),$S25*C$31)+('Incremental Rev Req'!$F$93*$S25)+IF(S25>0,$Q$12,0) -> 0 | D56: =IF($T25>$J25,C$34*$J25+C$35*($T25-$J25),$T25*C$34)+('Incremental Rev Req'!$F$93*$T25)+IF(T25>0,$Q$12,0) -> 0 | E56: =IF($S25>$I25,D$31*$I25+D$32*($S25-$I25),$S25*D$31)+('Incremental Rev Req'!$F$93*$S25)+IF(S25>0,$Q$12,0) -> 0 | F56: =IF($T25>$J25,D$34*$J25+D$35*($T25-$J25),$T25*D$34)+('Incremental Rev Req'!$F$93*$T25)+IF(T25>0,$Q$12,0) -> 0 | G56: =IF($S25>$I25,E$31*$I25+E$32*($S25-$I25),$S25*E$31)+('Incremental Rev Req'!$F$93*$S25)+IF(S25>0,$S$12,0) -> 0 | H56: =IF($T25>$J25,E$34*$J25+E$35*($T25-$J25),$T25*E$34)+('Incremental Rev Req'!$F$93*$T25)+IF(T25>0,$S$12,0) -> 0 | I56: =IF($S25>$I25,F$31*$I25+F$32*($S25-$I25),$S25*F$31)+('Incremental Rev Req'!$F$93*$S25)+IF(S25>0,$U$12,0) -> 0 | J56: =IF($T25>$J25,F$34*$J25+F$35*($T25-$J25),$T25*F$34)+('Incremental Rev Req'!$F$93*$T25)+IF(T25>0,$U$12,0) -> 0
B57: Total | C57: =SUMPRODUCT(C53:C56,$V$22:$V$25) -> 0 | D57: =SUMPRODUCT(D53:D56,$V$22:$V$25) -> 0 | E57: 0 | F57: 0 | G57: 0 | H57: 0 | I57: 0 | J57: 0
C60: Essential Usage Basic Bundled Non-CARE Customer Bill
C61: =C51 -> 2025-01-01 | E61: =E51 -> 2025-06-01 | G61: =G51 -> Authorized | I61: =I51 -> w/Pending
C62: Summer | D62: Winter | E62: Summer | F62: Winter | G62: Summer | H62: Winter | I62: Summer | J62: Winter
B63: =Zones -> SDG&E | C63: =($C$22*$I22)+('Incremental Rev Req'!$F$93*$I22)+IF(I22>0,$F$12,0) -> 23.74794545 | D63: =($C$25*$J22)+('Incremental Rev Req'!$F$93*$J22)+IF(J22>0,$F$12,0) -> 62.60821982 | E63: =($D$22*$I22)+('Incremental Rev Req'!$F$93*$I22)+IF(I22>0,$F$12,0) -> 24.71208889 | F63: =($D$25*$J22)+('Incremental Rev Req'!$F$93*$J22)+IF(J22>0,$F$12,0) -> 65.15005252 | G63: =($E$22*$I22)+('Incremental Rev Req'!$F$93*$I22)+IF(I22>0,$H$12,0) -> 24.71208889 | H63: =($E$25*$J22)+('Incremental Rev Req'!$F$93*$J22)+IF(J22>0,$H$12,0) -> 65.15005252 | I63: =($F$22*$I22)+('Incremental Rev Req'!$F$93*$I22)+IF(I22>0,$J$12,0) -> 25.06096663 | J63: =($F$25*$J22)+('Incremental Rev Req'!$F$93*$J22)+IF(J22>0,$J$12,0) -> 66.06982113
B64: 0 | C64: =($C$22*$I23)+('Incremental Rev Req'!$F$93*$I23)+IF(I23>0,$F$12,0) -> 0 | D64: =($C$25*$J23)+('Incremental Rev Req'!$F$93*$J23)+IF(J23>0,$F$12,0) -> 0 | E64: =($D$22*$I23)+('Incremental Rev Req'!$F$93*$I23)+IF(I23>0,$F$12,0) -> 0 | F64: =($D$25*$J23)+('Incremental Rev Req'!$F$93*$J23)+IF(J23>0,$F$12,0) -> 0 | G64: =($E$22*$I23)+('Incremental Rev Req'!$F$93*$I23)+IF(I23>0,$H$12,0) -> 0 | H64: =($E$25*$J23)+('Incremental Rev Req'!$F$93*$J23)+IF(J23>0,$H$12,0) -> 0 | I64: =($F$22*$I23)+('Incremental Rev Req'!$F$93*$I23)+IF(I23>0,$J$12,0) -> 0 | J64: =($F$25*$J23)+('Incremental Rev Req'!$F$93*$J23)+IF(J23>0,$J$12,0) -> 0
B65: 0 | C65: =($C$22*$I24)+('Incremental Rev Req'!$F$93*$I24)+IF(I24>0,$F$12,0) -> 0 | D65: =($C$25*$J24)+('Incremental Rev Req'!$F$93*$J24)+IF(J24>0,$F$12,0) -> 0 | E65: =($D$22*$I24)+('Incremental Rev Req'!$F$93*$I24)+IF(I24>0,$F$12,0) -> 0 | F65: =($D$25*$J24)+('Incremental Rev Req'!$F$93*$J24)+IF(J24>0,$F$12,0) -> 0 | G65: =($E$22*$I24)+('Incremental Rev Req'!$F$93*$I24)+IF(I24>0,$H$12,0) -> 0 | H65: =($E$25*$J24)+('Incremental Rev Req'!$F$93*$J24)+IF(J24>0,$H$12,0) -> 0 | I65: =($F$22*$I24)+('Incremental Rev Req'!$F$93*$I24)+IF(I24>0,$J$12,0) -> 0 | J65: =($F$25*$J24)+('Incremental Rev Req'!$F$93*$J24)+IF(J24>0,$J$12,0) -> 0
B66: 0 | C66: =($C$22*$I25)+('Incremental Rev Req'!$F$93*$I25)+IF(I25>0,$F$12,0) -> 0 | D66: =($C$25*$J25)+('Incremental Rev Req'!$F$93*$J25)+IF(J25>0,$F$12,0) -> 0 | E66: =($D$22*$I25)+('Incremental Rev Req'!$F$93*$I25)+IF(I25>0,$F$12,0) -> 0 | F66: =($D$25*$J25)+('Incremental Rev Req'!$F$93*$J25)+IF(J25>0,$F$12,0) -> 0 | G66: =($E$22*$I25)+('Incremental Rev Req'!$F$93*$I25)+IF(I25>0,$H$12,0) -> 0 | H66: =($E$25*$J25)+('Incremental Rev Req'!$F$93*$J25)+IF(J25>0,$H$12,0) -> 0 | I66: =($F$22*$I25)+('Incremental Rev Req'!$F$93*$I25)+IF(I25>0,$J$12,0) -> 0 | J66: =($F$25*$J25)+('Incremental Rev Req'!$F$93*$J25)+IF(J25>0,$J$12,0) -> 0
B67: Total | C67: =SUMPRODUCT(C63:C66,$U$22:$U$25) -> 0 | D67: =SUMPRODUCT(D63:D66,$U$22:$U$25) -> 0 | E67: =SUMPRODUCT(E63:E66,$U$22:$U$25) -> 0 | F67: =SUMPRODUCT(F63:F66,$U$22:$U$25) -> 0 | G67: 0 | H67: 0 | I67: 0 | J67: 0
C70: Essential Usage Basic Bundled CARE Customer Bill
C71: =C61 -> 2025-01-01 | E71: =E61 -> 2025-06-01 | G71: =G61 -> Authorized | I71: =I61 -> w/Pending
C72: Summer | D72: Winter | E72: Summer | F72: Winter | G72: Summer | H72: Winter | I72: Summer | J72: Winter
B73: =Zones -> SDG&E | C73: =($C$31*$I22)+('Incremental Rev Req'!$F$93*$I22)+IF(I22>0,$Q$12,0) -> 18.85938354 | D73: =($C$34*$J22)+('Incremental Rev Req'!$F$93*$J22)+IF(J22>0,$Q$12,0) -> 49.72019297 | E73: =($D$31*$I22)+('Incremental Rev Req'!$F$93*$I22)+IF(I22>0,$Q$12,0) -> 19.6237778 | F73: =($D$34*$J22)+('Incremental Rev Req'!$F$93*$J22)+IF(J22>0,$Q$12,0) -> 51.6584729 | G73: =($E$31*$I22)+('Incremental Rev Req'!$F$93*$I22)+IF(I22>0,$S$12,0) -> 19.6237778 | H73: =($E$34*$J22)+('Incremental Rev Req'!$F$93*$J22)+IF(J22>0,$S$12,0) -> 51.73541419 | I73: =($F$31*$I22)+('Incremental Rev Req'!$F$93*$I22)+IF(I22>0,$U$12,0) -> 19.90074029 | J73: =($F$34*$J22)+('Incremental Rev Req'!$F$93*$J22)+IF(J22>0,$U$12,0) -> 52.46558804
B74: 0 | C74: =($C$31*$I23)+('Incremental Rev Req'!$F$93*$I23)+IF(I23>0,$Q$12,0) -> 0 | D74: =($C$34*$J23)+('Incremental Rev Req'!$F$93*$J23)+IF(J23>0,$Q$12,0) -> 0 | E74: =($D$31*$I23)+('Incremental Rev Req'!$F$93*$I23)+IF(I23>0,$Q$12,0) -> 0 | F74: =($D$34*$J23)+('Incremental Rev Req'!$F$93*$J23)+IF(J23>0,$Q$12,0) -> 0 | G74: =($E$31*$I23)+('Incremental Rev Req'!$F$93*$I23)+IF(I23>0,$S$12,0) -> 0 | H74: =($E$34*$J23)+('Incremental Rev Req'!$F$93*$J23)+IF(J23>0,$S$12,0) -> 0 | I74: =($F$31*$I23)+('Incremental Rev Req'!$F$93*$I23)+IF(I23>0,$U$12,0) -> 0 | J74: =($F$34*$J23)+('Incremental Rev Req'!$F$93*$J23)+IF(J23>0,$U$12,0) -> 0
B75: 0 | C75: =($C$31*$I24)+('Incremental Rev Req'!$F$93*$I24)+IF(I24>0,$Q$12,0) -> 0 | D75: =($C$34*$J24)+('Incremental Rev Req'!$F$93*$J24)+IF(J24>0,$Q$12,0) -> 0 | E75: =($D$31*$I24)+('Incremental Rev Req'!$F$93*$I24)+IF(I24>0,$Q$12,0) -> 0 | F75: =($D$34*$J24)+('Incremental Rev Req'!$F$93*$J24)+IF(J24>0,$Q$12,0) -> 0 | G75: =($E$31*$I24)+('Incremental Rev Req'!$F$93*$I24)+IF(I24>0,$S$12,0) -> 0 | H75: =($E$34*$J24)+('Incremental Rev Req'!$F$93*$J24)+IF(J24>0,$S$12,0) -> 0 | I75: =($F$31*$I24)+('Incremental Rev Req'!$F$93*$I24)+IF(I24>0,$U$12,0) -> 0 | J75: =($F$34*$J24)+('Incremental Rev Req'!$F$93*$J24)+IF(J24>0,$U$12,0) -> 0
B76: 0 | C76: =($C$31*$I25)+('Incremental Rev Req'!$F$93*$I25)+IF(I25>0,$Q$12,0) -> 0 | D76: =($C$34*$J25)+('Incremental Rev Req'!$F$93*$J25)+IF(J25>0,$Q$12,0) -> 0 | E76: =($D$31*$I25)+('Incremental Rev Req'!$F$93*$I25)+IF(I25>0,$Q$12,0) -> 0 | F76: =($D$34*$J25)+('Incremental Rev Req'!$F$93*$J25)+IF(J25>0,$Q$12,0) -> 0 | G76: =($E$31*$I25)+('Incremental Rev Req'!$F$93*$I25)+IF(I25>0,$S$12,0) -> 0 | H76: =($E$34*$J25)+('Incremental Rev Req'!$F$93*$J25)+IF(J25>0,$S$12,0) -> 0 | I76: =($F$31*$I25)+('Incremental Rev Req'!$F$93*$I25)+IF(I25>0,$U$12,0) -> 0 | J76: =($F$34*$J25)+('Incremental Rev Req'!$F$93*$J25)+IF(J25>0,$U$12,0) -> 0
B77: Total | C77: =SUMPRODUCT(C73:C76,$V$22:$V$25) -> 0 | D77: =SUMPRODUCT(D73:D76,$V$22:$V$25) -> 0 | E77: 0 | F77: 0 | G77: 0 | H77: 0 | I77: 0 | J77: 0
C80: Typical Monthly Basic Bundled Non-CARE Customer
C81: =C71 -> 2025-01-01 | E81: =E71 -> 2025-06-01 | G81: =G71 -> Authorized | I81: =I71 -> w/Pending
C82: Summer | D82: Winter | E82: Summer | F82: Winter | G82: Summer | H82: Winter | I82: Summer | J82: Winter
B83: =Zones -> SDG&E | C83: =IF($Q31>$I22,C$22*$I22+C$23*($Q31-$I22),$Q31*C$22)+('Incremental Rev Req'!$F$93*$Q31)+IF(Q31>0,$F$12,0) -> 34.99581719 | D83: =IF($R31>$J22,C$25*$J22+C$26*($R31-$J22),$R31*C$25)+('Incremental Rev Req'!$F$93*$R31)+IF(R31>0,$F$12,0) -> 72.89372111 | E83: =IF($Q31>$I22,D$22*$I22+D$23*($Q31-$I22),$Q31*D$22)+('Incremental Rev Req'!$F$93*$Q31)+IF(Q31>0,$F$12,0) -> 36.42691762 | F83: =IF($R31>$J22,D$25*$J22+D$26*($R31-$J22),$R31*D$25)+('Incremental Rev Req'!$F$93*$R31)+IF(R31>0,$F$12,0) -> 75.86255786 | G83: =IF($Q31>$I22,E$22*$I22+E$23*($Q31-$I22),$Q31*E$22)+('Incremental Rev Req'!$F$93*$Q31)+IF(Q31>0,$H$12,0) -> 36.42691762 | H83: =IF($R31>$J22,E$25*$J22+E$26*($R31-$J22),$R31*E$25)+('Incremental Rev Req'!$F$93*$R31)+IF(R31>0,$H$12,0) -> 75.86255786 | I83: =IF($Q31>$I22,F$22*$I22+F$23*($Q31-$I22),$Q31*F$22)+('Incremental Rev Req'!$F$93*$Q31)+IF(Q31>0,$J$12,0) -> 36.94120501 | J83: =IF($R31>$J22,F$25*$J22+F$26*($R31-$J22),$R31*F$25)+('Incremental Rev Req'!$F$93*$R31)+IF(R31>0,$J$12,0) -> 76.93358362
B84: 0 | C84: =IF($Q32>$I23,C$22*$I23+C$23*($Q32-$I23),$Q32*C$22)+('Incremental Rev Req'!$F$93*$Q32)+IF(Q32>0,$F$12,0) -> 0 | D84: =IF($R32>$J23,C$25*$J23+C$26*($R32-$J23),$R32*C$25)+('Incremental Rev Req'!$F$93*$R32)+IF(R32>0,$F$12,0) -> 0 | E84: =IF($Q32>$I23,D$22*$I23+D$23*($Q32-$I23),$Q32*D$22)+('Incremental Rev Req'!$F$93*$Q32)+IF(Q32>0,$F$12,0) -> 0 | F84: =IF($R32>$J23,D$25*$J23+D$26*($R32-$J23),$R32*D$25)+('Incremental Rev Req'!$F$93*$R32)+IF(R32>0,$F$12,0) -> 0 | G84: =IF($Q32>$I23,E$22*$I23+E$23*($Q32-$I23),$Q32*E$22)+('Incremental Rev Req'!$F$93*$Q32)+IF(Q32>0,$H$12,0) -> 0 | H84: =IF($R32>$J23,E$25*$J23+E$26*($R32-$J23),$R32*E$25)+('Incremental Rev Req'!$F$93*$R32)+IF(R32>0,$H$12,0) -> 0 | I84: =IF($Q32>$I23,F$22*$I23+F$23*($Q32-$I23),$Q32*F$22)+('Incremental Rev Req'!$F$93*$Q32)+IF(Q32>0,$J$12,0) -> 0 | J84: =IF($R32>$J23,F$25*$J23+F$26*($R32-$J23),$R32*F$25)+('Incremental Rev Req'!$F$93*$R32)+IF(R32>0,$J$12,0) -> 0
B85: 0 | C85: =IF($Q33>$I24,C$22*$I24+C$23*($Q33-$I24),$Q33*C$22)+('Incremental Rev Req'!$F$93*$Q33)+IF(Q33>0,$F$12,0) -> 0 | D85: =IF($R33>$J24,C$25*$J24+C$26*($R33-$J24),$R33*C$25)+('Incremental Rev Req'!$F$93*$R33)+IF(R33>0,$F$12,0) -> 0 | E85: =IF($Q33>$I24,D$22*$I24+D$23*($Q33-$I24),$Q33*D$22)+('Incremental Rev Req'!$F$93*$Q33)+IF(Q33>0,$F$12,0) -> 0 | F85: =IF($R33>$J24,D$25*$J24+D$26*($R33-$J24),$R33*D$25)+('Incremental Rev Req'!$F$93*$R33)+IF(R33>0,$F$12,0) -> 0 | G85: =IF($Q33>$I24,E$22*$I24+E$23*($Q33-$I24),$Q33*E$22)+('Incremental Rev Req'!$F$93*$Q33)+IF(Q33>0,$H$12,0) -> 0 | H85: =IF($R33>$J24,E$25*$J24+E$26*($R33-$J24),$R33*E$25)+('Incremental Rev Req'!$F$93*$R33)+IF(R33>0,$H$12,0) -> 0 | I85: =IF($Q33>$I24,F$22*$I24+F$23*($Q33-$I24),$Q33*F$22)+('Incremental Rev Req'!$F$93*$Q33)+IF(Q33>0,$J$12,0) -> 0 | J85: =IF($R33>$J24,F$25*$J24+F$26*($R33-$J24),$R33*F$25)+('Incremental Rev Req'!$F$93*$R33)+IF(R33>0,$J$12,0) -> 0
B86: 0 | C86: =IF($Q34>$I25,C$22*$I25+C$23*($Q34-$I25),$Q34*C$22)+('Incremental Rev Req'!$F$93*$Q34)+IF(Q34>0,$F$12,0) -> 0 | D86: =IF($R34>$J25,C$25*$J25+C$26*($R34-$J25),$R34*C$25)+('Incremental Rev Req'!$F$93*$R34)+IF(R34>0,$F$12,0) -> 0 | E86: =IF($Q34>$I25,D$22*$I25+D$23*($Q34-$I25),$Q34*D$22)+('Incremental Rev Req'!$F$93*$Q34)+IF(Q34>0,$F$12,0) -> 0 | F86: =IF($R34>$J25,D$25*$J25+D$26*($R34-$J25),$R34*D$25)+('Incremental Rev Req'!$F$93*$R34)+IF(R34>0,$F$12,0) -> 0 | G86: =IF($Q34>$I25,E$22*$I25+E$23*($Q34-$I25),$Q34*E$22)+('Incremental Rev Req'!$F$93*$Q34)+IF(Q34>0,$H$12,0) -> 0 | H86: =IF($R34>$J25,E$25*$J25+E$26*($R34-$J25),$R34*E$25)+('Incremental Rev Req'!$F$93*$R34)+IF(R34>0,$H$12,0) -> 0 | I86: =IF($Q34>$I25,F$22*$I25+F$23*($Q34-$I25),$Q34*F$22)+('Incremental Rev Req'!$F$93*$Q34)+IF(Q34>0,$J$12,0) -> 0 | J86: =IF($R34>$J25,F$25*$J25+F$26*($R34-$J25),$R34*F$25)+('Incremental Rev Req'!$F$93*$R34)+IF(R34>0,$J$12,0) -> 0
B87: Total | C87: =SUMPRODUCT(C83:C86,$U$22:$U$25) -> 0 | D87: =SUMPRODUCT(D83:D86,$U$22:$U$25) -> 0 | E87: =SUMPRODUCT(E83:E86,$U$22:$U$25) -> 0 | F87: 0 | G87: 0 | H87: 0 | I87: 0 | J87: 0
C90: Typical Average Monthly Basic Bundled CARE Customer
C91: =C81 -> 2025-01-01 | E91: =E81 -> 2025-06-01 | G91: =G81 -> Authorized | I91: =I81 -> w/Pending
C92: Summer | D92: Winter | E92: Summer | F92: Winter | G92: Summer | H92: Winter | I92: Summer | J92: Winter
B93: =Zones -> SDG&E | C93: =IF($S31>$I22,C$31*$I22+C$32*($S31-$I22),$S31*C$31)+('Incremental Rev Req'!$F$93*$S31)+IF(S31>0,$Q$12,0) -> 25.97198629 | D93: =IF($T31>$J22,C$34*$J22+C$35*($T31-$J22),$T31*C$34)+('Incremental Rev Req'!$F$93*$T31)+IF(T31>0,$Q$12,0) -> 45.77804314 | E93: =IF($S31>$I22,D$31*$I22+D$32*($S31-$I22),$S31*D$31)+('Incremental Rev Req'!$F$93*$S31)+IF(S31>0,$Q$12,0) -> 27.03128198 | F93: =IF($T31>$J22,D$34*$J22+D$35*($T31-$J22),$T31*D$34)+('Incremental Rev Req'!$F$93*$T31)+IF(T31>0,$Q$12,0) -> 47.56264326 | G93: =IF($S31>$I22,E$31*$I22+E$32*($S31-$I22),$S31*E$31)+('Incremental Rev Req'!$F$93*$S31)+IF(S31>0,$S$12,0) -> 27.03128198 | H93: =IF($T31>$J22,E$34*$J22+E$35*($T31-$J22),$T31*E$34)+('Incremental Rev Req'!$F$93*$T31)+IF(T31>0,$S$12,0) -> 47.63348414 | I93: =IF($S31>$I22,F$31*$I22+F$32*($S31-$I22),$S31*F$31)+('Incremental Rev Req'!$F$93*$S31)+IF(S31>0,$U$12,0) -> 27.41280979 | J93: =IF($T31>$J22,F$34*$J22+F$35*($T31-$J22),$T31*F$34)+('Incremental Rev Req'!$F$93*$T31)+IF(T31>0,$U$12,0) -> 48.30576491
B94: 0 | C94: =IF($S32>$I23,C$31*$I23+C$32*($S32-$I23),$S32*C$31)+('Incremental Rev Req'!$F$93*$S32)+IF(S32>0,$Q$12,0) -> 0 | D94: =IF($T32>$J23,C$34*$J23+C$35*($T32-$J23),$T32*C$34)+('Incremental Rev Req'!$F$93*$T32)+IF(T32>0,$Q$12,0) -> 0 | E94: =IF($S32>$I23,D$31*$I23+D$32*($S32-$I23),$S32*D$31)+('Incremental Rev Req'!$F$93*$S32)+IF(S32>0,$Q$12,0) -> 0 | F94: =IF($T32>$J23,D$34*$J23+D$35*($T32-$J23),$T32*D$34)+('Incremental Rev Req'!$F$93*$T32)+IF(T32>0,$Q$12,0) -> 0 | G94: =IF($S32>$I23,E$31*$I23+E$32*($S32-$I23),$S32*E$31)+('Incremental Rev Req'!$F$93*$S32)+IF(S32>0,$S$12,0) -> 0 | H94: =IF($T32>$J23,E$34*$J23+E$35*($T32-$J23),$T32*E$34)+('Incremental Rev Req'!$F$93*$T32)+IF(T32>0,$S$12,0) -> 0 | I94: =IF($S32>$I23,F$31*$I23+F$32*($S32-$I23),$S32*F$31)+('Incremental Rev Req'!$F$93*$S32)+IF(S32>0,$U$12,0) -> 0 | J94: =IF($T32>$J23,F$34*$J23+F$35*($T32-$J23),$T32*F$34)+('Incremental Rev Req'!$F$93*$T32)+IF(T32>0,$U$12,0) -> 0
B95: 0 | C95: =IF($S33>$I24,C$31*$I24+C$32*($S33-$I24),$S33*C$31)+('Incremental Rev Req'!$F$93*$S33)+IF(S33>0,$Q$12,0) -> 0 | D95: =IF($T33>$J24,C$34*$J24+C$35*($T33-$J24),$T33*C$34)+('Incremental Rev Req'!$F$93*$T33)+IF(T33>0,$Q$12,0) -> 0 | E95: =IF($S33>$I24,D$31*$I24+D$32*($S33-$I24),$S33*D$31)+('Incremental Rev Req'!$F$93*$S33)+IF(S33>0,$Q$12,0) -> 0 | F95: =IF($T33>$J24,D$34*$J24+D$35*($T33-$J24),$T33*D$34)+('Incremental Rev Req'!$F$93*$T33)+IF(T33>0,$Q$12,0) -> 0 | G95: =IF($S33>$I24,E$31*$I24+E$32*($S33-$I24),$S33*E$31)+('Incremental Rev Req'!$F$93*$S33)+IF(S33>0,$S$12,0) -> 0 | H95: =IF($T33>$J24,E$34*$J24+E$35*($T33-$J24),$T33*E$34)+('Incremental Rev Req'!$F$93*$T33)+IF(T33>0,$S$12,0) -> 0 | I95: =IF($S33>$I24,F$31*$I24+F$32*($S33-$I24),$S33*F$31)+('Incremental Rev Req'!$F$93*$S33)+IF(S33>0,$U$12,0) -> 0 | J95: =IF($T33>$J24,F$34*$J24+F$35*($T33-$J24),$T33*F$34)+('Incremental Rev Req'!$F$93*$T33)+IF(T33>0,$U$12,0) -> 0
B96: 0 | C96: =IF($S34>$I25,C$31*$I25+C$32*($S34-$I25),$S34*C$31)+('Incremental Rev Req'!$F$93*$S34)+IF(S34>0,$Q$12,0) -> 0 | D96: =IF($T34>$J25,C$34*$J25+C$35*($T34-$J25),$T34*C$34)+('Incremental Rev Req'!$F$93*$T34)+IF(T34>0,$Q$12,0) -> 0 | E96: =IF($S34>$I25,D$31*$I25+D$32*($S34-$I25),$S34*D$31)+('Incremental Rev Req'!$F$93*$S34)+IF(S34>0,$Q$12,0) -> 0 | F96: =IF($T34>$J25,D$34*$J25+D$35*($T34-$J25),$T34*D$34)+('Incremental Rev Req'!$F$93*$T34)+IF(T34>0,$Q$12,0) -> 0 | G96: =IF($S34>$I25,E$31*$I25+E$32*($S34-$I25),$S34*E$31)+('Incremental Rev Req'!$F$93*$S34)+IF(S34>0,$S$12,0) -> 0 | H96: =IF($T34>$J25,E$34*$J25+E$35*($T34-$J25),$T34*E$34)+('Incremental Rev Req'!$F$93*$T34)+IF(T34>0,$S$12,0) -> 0 | I96: =IF($S34>$I25,F$31*$I25+F$32*($S34-$I25),$S34*F$31)+('Incremental Rev Req'!$F$93*$S34)+IF(S34>0,$U$12,0) -> 0 | J96: =IF($T34>$J25,F$34*$J25+F$35*($T34-$J25),$T34*F$34)+('Incremental Rev Req'!$F$93*$T34)+IF(T34>0,$U$12,0) -> 0
B97: Total | C97: =SUMPRODUCT(C93:C96,$V$22:$V$25) -> 0 | D97: =SUMPRODUCT(D93:D96,$V$22:$V$25) -> 0 | E97: 0 | F97: 0 | G97: 0 | H97: 0 | I97: 0 | J97: 0

Sheet Hypothetical Summary
B1: Inputs: | F1: Assumptions:
F2: Current Effective Rates | H2: =SetUp!D4 -> 2025-06-01
C3: Baseline Region - (Residential bill) | D3: SDG&E | F3: Sales Forecast | H3: =Summary!I3 -> 2024
F4: Residential bill calculated using | H4: =Summary!I4 -> Schedule GR, Basic, Bundled, Single Family
D5: Revenue Change ($000) | F5: Non-CARE bill impact calculated with average summer usage of | J5: =IF($D$3="ALL",SUMPRODUCT('Hypothetical Res Bill Impact'!Q22:Q25,'Hypothetical Res Bill Impact'!U22:U25),VLOOKUP($D$3,'Hypothetical Res Bill Impact'!$P$22:$T$25,2,FALSE)) -> 15.16666667 | K5: therms per month
C6: Procurement | F6: Non-CARE bill impact calculated with average winter usage of | J6: =IF($D$3="ALL",SUMPRODUCT('Hypothetical Res Bill Impact'!R22:R25,'Hypothetical Res Bill Impact'!U22:U25),VLOOKUP(D$3,'Hypothetical Res Bill Impact'!$P$22:$T$25,3,FALSE)) -> 30.33333333 | K6: therms per month
C7: Customer Costs | F7: CARE bill impact calculated with average summer usage of | J7: =IF($D$3="ALL",SUMPRODUCT('Hypothetical Res Bill Impact'!S22:S25,'Hypothetical Res Bill Impact'!V22:V25),VLOOKUP($D$3,'Hypothetical Res Bill Impact'!$P$22:$T$25,4,FALSE)) -> 14.62474328 | K7: therms per month
C8: Medium Pressure Distribution | F8: CARE bill impact calculated with average winter usage of | J8: =IF($D$3="ALL",SUMPRODUCT('Hypothetical Res Bill Impact'!T22:T25,'Hypothetical Res Bill Impact'!V22:V25),VLOOKUP($D$3,'Hypothetical Res Bill Impact'!$P$22:$T$25,5,FALSE)) -> 26.16666667 | K8: therms per month
C9: High Pressure Distribution | F9: Average monthly usage is for all customers (Non-CARE and CARE) based on seasonal usage in | K9: =Summary!L9 -> 2024
C10: Local Transmission | F10: Summer season | H10: =Summary!I10 -> 6 | I10: months
C11: Storage | F11: Winter Season | H11: =Summary!I11 -> 6 | I11: months
C12: GHG Revenue
C13: Other Balancing Acounts
C14: NGV Costs
C15: Backbone Transmisson
C16: Public Purpose Programs
C20: Total | D20: =SUM(D6:D18) -> 0
B25: Outputs:
D26: (A) | E26: (B) | F26: (C) | G26: (C)/(A) | H26: (C)/(B) | L26: (A) | M26: (B) | N26: (C) | O26: (C)/(A) | P26: (C)/(B)
B27: Bundled Average Rates - ¢/therm | J27: Total System (Bundled and Unbundled) Average Rates - ¢/therm
B28: Customer Group | D28: =Summary!D26 -> 2025-01-01 | E28: =Summary!E26 -> 2025-06-01 | F28: Proposed | G28: =Summary!H26 -> % Change over 1/1/2025 | H28: =Summary!I26 -> % Change over 6/1/2025 | J28: Customer Group | L28: =D28 -> 2025-01-01 | M28: =E28 -> 2025-06-01 | N28: Proposed | O28: =Summary!P26 -> 2025 Authorized | P28: =Summary!Q26 -> 2025 w/Pending
B29: Residential | D29: 213.0260678 | E29: ='Hypothetical SAR and RAR'!G28 -> 257.266139 | F29: ='Hypothetical SAR and RAR'!H28 -> 257.266139 | G29: =$F29/D29-1 -> 0.2076744484 | H29: =$F29/E29-1 -> 0 | J29: Residential | L29: 212.7841951 | M29: ='Hypothetical SAR and RAR'!R28 -> 257.0242663 | N29: ='Hypothetical SAR and RAR'!S28 -> 257.0242663 | O29: =$N29/L29-1 -> 0.2079105128 | P29: =$N29/M29-1 -> 0
B30: System | D30: 43.43420354 | E30: ='Hypothetical SAR and RAR'!G29 -> 43.43420354 | F30: ='Hypothetical SAR and RAR'!H29 -> 43.43420354 | G30: =$F30/D30-1 -> 0 | H30: =$F30/E30-1 -> 0 | J30: System | L30: 27.13915291 | M30: ='Hypothetical SAR and RAR'!R29 -> 27.13915291 | N30: ='Hypothetical SAR and RAR'!S29 -> 27.13915291 | O30: =$N30/L30-1 -> 0 | P30: =$N30/M30-1 -> 0
B33: Basic Bundled Residential Monthly Average Bills
D34: =$D$28 -> 2025-01-01 | E34: =$E$28 -> 2025-06-01 | F34: =$F$28 -> Proposed | G34: =$G$28 -> % Change over 1/1/2025 | H34: =$H$28 -> % Change over 6/1/2025
B35: Non-CARE | D35: =((D41*$H$10)+(D47*$H$11))/12 -> 47.83910885 | E35: =((E41*$H$10)+(E47*$H$11))/12 -> 57.69863416 | F35: 57.69863416 | G35: =$F35/D35-1 -> 0.2060975955 | H35: 0
B36: CARE | D36: =((D42*$H$10)+(D48*$H$11))/12 -> 33.85376699 | E36: 40.89270021 | F36: 40.89270021 | G36: 0.2079217127 | H36: 0
B37: Total | D37: =((D43*$H$10)+(D49*$H$11))/12 -> 45.30317553 | E37: 54.65124866 | F37: 54.65124866 | G37: 0.2063447655 | H37: 0 | J37: ='Res Bill Impact'!P18 -> Basic Bundled
J38: ='Res Bill Impact'!P19 -> 2024 Recorded Data - Average Monthly Usage - ALL-BASIC th
B39: Basic Bundled Residential Monthly Average Bills - Summer | J39: Climate Zone | K39: Summer | L39: Winter | M39: Summer | N39: Winter
D40: =D34 -> 2025-01-01 | E40: =E28 -> 2025-06-01 | F40: =F28 -> Proposed | G40: =G28 -> % Change over 1/1/2025 | H40: =$H$28 -> % Change over 6/1/2025 | K40: Non-CARE | M40: CARE
B41: Non-CARE | D41: =IF($D$3="All",'Hypothetical Res Bill Impact'!$C$47,(VLOOKUP($D$3,'Hypothetical Res Bill Impact'!$B$43:$J$46,2,FALSE))) -> 32.58814257 | E41: =IF($D$3="All",'Hypothetical Res Bill Impact'!$E$47,(VLOOKUP($D$3,'Hypothetical Res Bill Impact'!$B$43:$J$46,4,FALSE))) -> 39.30601277 | F41: =IF($D$3="All",'Hypothetical Res Bill Impact'!$G$47,(VLOOKUP($D$3,'Hypothetical Res Bill Impact'!$B$43:$J$46,6,FALSE))) -> 39.30601277 | G41: =$F41/D41-1 -> 0.2061446181 | H41: 0 | J41: =Zones -> SDG&E | K41: ='Hypothetical Res Bill Impact'!Q22 -> 15.16666667 | L41: ='Hypothetical Res Bill Impact'!R22 -> 30.33333333 | M41: ='Hypothetical Res Bill Impact'!S22 -> 14.62474328 | N41: ='Hypothetical Res Bill Impact'!T22 -> 26.16666667
B42: CARE | D42: =IF($D$3="All",'Hypothetical Res Bill Impact'!$C$57,(VLOOKUP($D$3,'Hypothetical Res Bill Impact'!$B$53:$J$56,2,FALSE))) -> 24.82922783 | E42: =IF($D$3="All",'Hypothetical Res Bill Impact'!$E$57,(VLOOKUP($D$3,'Hypothetical Res Bill Impact'!$B$53:$J$56,4,FALSE))) -> 29.99197377 | F42: =IF($D$3="All",'Hypothetical Res Bill Impact'!$G$57,(VLOOKUP($D$3,'Hypothetical Res Bill Impact'!$B$53:$J$56,6,FALSE))) -> 29.99197377 | G42: 0.2079301853 | H42: 0 | J42: 0 | K42: ='Hypothetical Res Bill Impact'!Q23 -> 0 | L42: ='Hypothetical Res Bill Impact'!R23 -> 0 | M42: ='Hypothetical Res Bill Impact'!S23 -> 0 | N42: ='Hypothetical Res Bill Impact'!T23 -> 0
B43: Total | D43: =D41*(1-'Hypothetical SAR and RAR'!$AA$16)+D42*'Hypothetical SAR and RAR'!$AA$16 -> 31.18123449 | E43: =E41*(1-'Hypothetical SAR and RAR'!$AA$16)+E42*'Hypothetical SAR and RAR'!$AA$16 -> 37.6171172 | F43: =F41*(1-'Hypothetical SAR and RAR'!$AA$16)+F42*'Hypothetical SAR and RAR'!$AA$16 -> 37.6171172 | G43: 0.2064024347 | H43: 0 | J43: 0 | K43: ='Hypothetical Res Bill Impact'!Q24 -> 0 | L43: ='Hypothetical Res Bill Impact'!R24 -> 0 | M43: ='Hypothetical Res Bill Impact'!S24 -> 0 | N43: ='Hypothetical Res Bill Impact'!T24 -> 0
J44: 0 | K44: ='Hypothetical Res Bill Impact'!Q25 -> 0 | L44: ='Hypothetical Res Bill Impact'!R25 -> 0 | M44: ='Hypothetical Res Bill Impact'!S25 -> 0 | N44: ='Hypothetical Res Bill Impact'!T25 -> 0
B45: Basic Bundled Residential Monthly Average Bills - Winter
D46: =$D$28 -> 2025-01-01 | E46: =$E$28 -> 2025-06-01 | F46: =F40 -> Proposed | G46: =G28 -> % Change over 1/1/2025 | H46: =$H$28 -> % Change over 6/1/2025
B47: Non-CARE | D47: =IF($D$3="All",'Hypothetical Res Bill Impact'!$D$47,(VLOOKUP($D$3,'Hypothetical Res Bill Impact'!$B$43:$J$46,3,FALSE))) -> 63.09007514 | E47: =IF($D$3="All",'Hypothetical Res Bill Impact'!$F$47,(VLOOKUP($D$3,'Hypothetical Res Bill Impact'!$B$43:$J$46,5,FALSE))) -> 76.09125555 | F47: =IF($D$3="All",'Hypothetical Res Bill Impact'!$H$47,(VLOOKUP($D$3,'Hypothetical Res Bill Impact'!$B$43:$J$46,7,FALSE))) -> 76.09125555 | G47: =$F47/D47-1 -> 0.2060733068 | H47: 0
B48: CARE | D48: =IF($D$3="All",'Hypothetical Res Bill Impact'!$D$57,(VLOOKUP($D$3,'Hypothetical Res Bill Impact'!$B$53:$J$56,3,FALSE))) -> 42.87830616 | E48: =IF($D$3="All",'Hypothetical Res Bill Impact'!$F$57,(VLOOKUP($D$3,'Hypothetical Res Bill Impact'!$B$53:$J$56,5,FALSE))) -> 51.79342664 | F48: =IF($D$3="All",'Hypothetical Res Bill Impact'!$H$57,(VLOOKUP($D$3,'Hypothetical Res Bill Impact'!$B$53:$J$56,7,FALSE))) -> 51.79342664 | G48: 0.2079168065 | H48: 0
B49: Total | D49: =D47*(1-'Hypothetical SAR and RAR'!$AA$16)+D48*'Hypothetical SAR and RAR'!$AA$16 -> 59.42511656 | E49: =E47*(1-'Hypothetical SAR and RAR'!$AA$16)+E48*'Hypothetical SAR and RAR'!$AA$16 -> 71.68538011 | F49: =F47*(1-'Hypothetical SAR and RAR'!$AA$16)+F48*'Hypothetical SAR and RAR'!$AA$16 -> 71.68538011 | G49: 0.2063145057 | H49: 0
B52: Basic Bundled Essential Use Residential Monthly Average Bills
D53: =D46 -> 2025-01-01 | E53: =E46 -> 2025-06-01 | F53: =F46 -> Proposed | G53: =$G$28 -> % Change over 1/1/2025 | H53: % Change over Authorized
B54: Essential Use - Non-CARE | D54: =((D60*$H$10)+(D66*$H$11))/12 -> 41.33584734 | E54: =((E60*$H$10)+(E66*$H$11))/12 -> 49.85347838 | F54: 49.85347838 | G54: =$F54/D54-1 -> 0.2060591855 | H54: 0
B55: Essential Use - CARE | D55: =((D61*$H$10)+(D67*$H$11))/12 -> 32.77322764 | E55: 39.58733247 | F55: 39.58733247 | G55: 0.2079168065 | H55: 0
B56: Total | D56: =((D62*$H$10)+(D68*$H$11))/12 -> 39.78320509 | E56: 47.99193922 | F56: 47.99193922 | G56: 0.2063366717 | H56: 0
J57: ='Res Bill Impact'!H19 -> Essential Usage
B58: Basic Bundled Essential Use Residential Monthly Average Bills - Summer | J58: Monthly Tier 1 Baseline Allowance -BASIC (th)
D59: =D53 -> 2025-01-01 | E59: =E53 -> 2025-06-01 | F59: =F53 -> Proposed | G59: =$G$28 -> % Change over 1/1/2025 | H59: % Change over Authorized | J59: Climate Zone | K59: Summer | L59: Winter
B60: Essential Use - Non-CARE | D60: =IF($D$3="All",'Hypothetical Res Bill Impact'!C67,(VLOOKUP($D$3,'Hypothetical Res Bill Impact'!$B$63:$J$66,2,FALSE))) -> 22.73471604 | E60: =IF($D$3="All",'Hypothetical Res Bill Impact'!E67,(VLOOKUP($D$3,'Hypothetical Res Bill Impact'!$B$63:$J$66,4,FALSE))) -> 27.41941311 | F60: =IF($D$3="All",'Hypothetical Res Bill Impact'!G67,(VLOOKUP($D$3,'Hypothetical Res Bill Impact'!$B$63:$J$66,6,FALSE))) -> 27.41941311 | G60: =$F60/D60-1 -> 0.2060591855 | H60: 0 | J60: =Zones -> SDG&E | K60: ='Hypothetical Res Bill Impact'!I22 -> 11 | L60: ='Hypothetical Res Bill Impact'!J22 -> 29
B61: Essential Use - CARE | D61: =IF($D$3="All",'Hypothetical Res Bill Impact'!C77,(VLOOKUP($D$3,'Hypothetical Res Bill Impact'!$B$73:$J$76,2,FALSE))) -> 18.0252752 | E61: =IF($D$3="All",'Hypothetical Res Bill Impact'!E77,(VLOOKUP($D$3,'Hypothetical Res Bill Impact'!$B$73:$J$76,4,FALSE))) -> 21.77303286 | F61: =IF($D$3="All",'Hypothetical Res Bill Impact'!G77,(VLOOKUP($D$3,'Hypothetical Res Bill Impact'!$B$73:$J$76,6,FALSE))) -> 21.77303286 | G61: 0.2079168065 | H61: 0 | J61: 0 | K61: ='Hypothetical Res Bill Impact'!I23 -> 0 | L61: ='Hypothetical Res Bill Impact'!J23 -> 0
B62: Total | D62: =D60*(1-'Hypothetical SAR and RAR'!$AA$16)+D61*'Hypothetical SAR and RAR'!$AA$16 -> 21.8807628 | E62: =E60*(1-'Hypothetical SAR and RAR'!$AA$16)+E61*'Hypothetical SAR and RAR'!$AA$16 -> 26.39556657 | F62: =F60*(1-'Hypothetical SAR and RAR'!$AA$16)+F61*'Hypothetical SAR and RAR'!$AA$16 -> 26.39556657 | G62: 0.2063366717 | H62: 0 | J62: 0 | K62: ='Hypothetical Res Bill Impact'!I24 -> 0 | L62: ='Hypothetical Res Bill Impact'!J24 -> 0
J63: 0 | K63: ='Hypothetical Res Bill Impact'!I25 -> 0 | L63: ='Hypothetical Res Bill Impact'!J25 -> 0
B64: Basic Bundled Essential Use Residential Monthly Average Bills - Winter
D65: =D59 -> 2025-01-01 | E65: =E59 -> 2025-06-01 | F65: =F59 -> Proposed | G65: =$G$28 -> % Change over 1/1/2025 | H65: % Change over Authorized
B66: Essential Use - Non-CARE | D66: =IF($D$3="All",'Hypothetical Res Bill Impact'!D67,(VLOOKUP($D$3,'Hypothetical Res Bill Impact'!$B$63:$J$66,3,FALSE))) -> 59.93697865 | E66: =IF($D$3="All",'Hypothetical Res Bill Impact'!F67,(VLOOKUP($D$3,'Hypothetical Res Bill Impact'!$B$63:$J$66,5,FALSE))) -> 72.28754366 | F66: =IF($D$3="All",'Hypothetical Res Bill Impact'!H67,(VLOOKUP($D$3,'Hypothetical Res Bill Impact'!$B$63:$J$66,7,FALSE))) -> 72.28754366 | G66: =$F66/D66-1 -> 0.2060591855 | H66: 0
B67: Essential Use - CARE | D67: =IF($D$3="All",'Hypothetical Res Bill Impact'!D77,(VLOOKUP($D$3,'Hypothetical Res Bill Impact'!$B$73:$J$76,3,FALSE))) -> 47.52118007 | E67: =IF($D$3="All",'Hypothetical Res Bill Impact'!F77,(VLOOKUP($D$3,'Hypothetical Res Bill Impact'!$B$73:$J$76,5,FALSE))) -> 57.40163208 | F67: =IF($D$3="All",'Hypothetical Res Bill Impact'!H77,(VLOOKUP($D$3,'Hypothetical Res Bill Impact'!$B$73:$J$76,7,FALSE))) -> 57.40163208 | G67: 0.2079168065 | H67: 0
B68: Total | D68: =D66*(1-'Hypothetical SAR and RAR'!$AA$16)+D67*'Hypothetical SAR and RAR'!$AA$16 -> 57.68564738 | E68: =E66*(1-'Hypothetical SAR and RAR'!$AA$16)+E67*'Hypothetical SAR and RAR'!$AA$16 -> 69.58831187 | F68: =F66*(1-'Hypothetical SAR and RAR'!$AA$16)+F67*'Hypothetical SAR and RAR'!$AA$16 -> 69.58831187 | G68: 0.2063366717 | H68: 0
B71: Basic Bundled Typical Residential Monthly Average Bills
D72: =D65 -> 2025-01-01 | E72: =E65 -> 2025-06-01 | F72: =F65 -> Proposed | G72: =$G$28 -> % Change over 1/1/2025 | H72: % Change over Authorized
B73: 5-Year Average Usage - Non-CARE | D73: =((D79*$H$10)+(D85*$H$11))/12 -> 51.64996379 | E73: =((E79*$H$10)+(E85*$H$11))/12 -> 62.29582752 | F73: 62.29582752 | G73: =$F73/D73-1 -> 0.2061156087 | H73: 0
C74: 5-Year Average Usage - CARE | D74: =((D80*$H$10)+(D86*$H$11))/12 -> 34.29130527 | E74: 41.42121005 | F74: 41.42121005 | G74: 0.2079216501 | H74: 0
B75: Total | D75: =((D81*$H$10)+(D87*$H$11))/12 -> 48.50235388 | E75: 58.51067599 | F75: 58.51067599 | G75: 0.2063471421 | H75: 0 | J75: ='Res Bill Impact'!P27 -> Typical Bundled
J76: ='Res Bill Impact'!P28 -> 2020-2024 Recorded Data - Average Monthly Usage - ALL-BASIC th
B77: Basic Bundled Typical Residential Monthly Average Bills - Summer | J77: Climate Zone | K77: Summer | L77: Winter | M77: Summer | N77: Winter
D78: =D72 -> 2025-01-01 | E78: =E72 -> 2025-06-01 | F78: =F72 -> Proposed | G78: =$G$28 -> % Change over 1/1/2025 | H78: % Change over Authorized | K78: Non-CARE | M78: CARE
B79: 5-Year Average Usage - Non-CARE | D79: =IF($D$3="All",'Hypothetical Res Bill Impact'!C87,(VLOOKUP($D$3,'Hypothetical Res Bill Impact'!$B$83:$J$86,2,FALSE))) -> 33.50979143 | E79: =IF($D$3="All",'Hypothetical Res Bill Impact'!E87,(VLOOKUP($D$3,'Hypothetical Res Bill Impact'!$B$83:$J$86,4,FALSE))) -> 40.41783626 | F79: =IF($D$3="All",'Hypothetical Res Bill Impact'!G87,(VLOOKUP($D$3,'Hypothetical Res Bill Impact'!$B$83:$J$86,6,FALSE))) -> 40.41783626 | G79: =$F79/D79-1 -> 0.2061500396 | H79: 0 | J79: =Zones -> SDG&E | K79: ='Hypothetical Res Bill Impact'!Q31 -> 15.55639947 | L79: ='Hypothetical Res Bill Impact'!R31 -> 33.1665529 | M79: ='Hypothetical Res Bill Impact'!S31 -> 14.62474328 | N79: ='Hypothetical Res Bill Impact'!T31 -> 26.70068582
C80: 5-Year Average Usage - CARE | D80: =IF($D$3="All",'Hypothetical Res Bill Impact'!C97,(VLOOKUP($D$3,'Hypothetical Res Bill Impact'!$B$93:$J$96,2,FALSE))) -> 24.82922783 | E80: =IF($D$3="All",'Hypothetical Res Bill Impact'!E97,(VLOOKUP($D$3,'Hypothetical Res Bill Impact'!$B$93:$J$96,4,FALSE))) -> 29.99197377 | F80: =IF($D$3="All",'Hypothetical Res Bill Impact'!G97,(VLOOKUP($D$3,'Hypothetical Res Bill Impact'!$B$93:$J$96,6,FALSE))) -> 29.99197377 | G80: 0.2079301853 | H80: 0 | J80: 0 | K80: ='Hypothetical Res Bill Impact'!Q32 -> 0 | L80: ='Hypothetical Res Bill Impact'!R32 -> 0 | M80: ='Hypothetical Res Bill Impact'!S32 -> 0 | N80: ='Hypothetical Res Bill Impact'!T32 -> 0
B81: Total | D81: =D79*(1-'Hypothetical SAR and RAR'!$AA$16)+D80*'Hypothetical SAR and RAR'!$AA$16 -> 31.93576265 | E81: =E79*(1-'Hypothetical SAR and RAR'!$AA$16)+E80*'Hypothetical SAR and RAR'!$AA$16 -> 38.52733602 | F81: =F79*(1-'Hypothetical SAR and RAR'!$AA$16)+F80*'Hypothetical SAR and RAR'!$AA$16 -> 38.52733602 | G81: 0.2064010006 | H81: 0 | J81: 0 | K81: ='Hypothetical Res Bill Impact'!Q33 -> 0 | L81: ='Hypothetical Res Bill Impact'!R33 -> 0 | M81: ='Hypothetical Res Bill Impact'!S33 -> 0 | N81: ='Hypothetical Res Bill Impact'!T33 -> 0
J82: 0 | K82: ='Hypothetical Res Bill Impact'!Q34 -> 0 | L82: ='Hypothetical Res Bill Impact'!R34 -> 0 | M82: ='Hypothetical Res Bill Impact'!S34 -> 0 | N82: ='Hypothetical Res Bill Impact'!T34 -> 0
B83: Basic Bundled Typical Residential Monthly Average Bills - Winter
D84: =D78 -> 2025-01-01 | E84: =E78 -> 2025-06-01 | F84: =F78 -> Proposed | G84: =$G$28 -> % Change over 1/1/2025 | H84: % Change over Authorized
B85: 5-Year Average Usage - Non-CARE | D85: =IF($D$3="All",'Hypothetical Res Bill Impact'!D87,(VLOOKUP($D$3,'Hypothetical Res Bill Impact'!$B$83:$J$86,3,FALSE))) -> 69.79013615 | E85: =IF($D$3="All",'Hypothetical Res Bill Impact'!F87,(VLOOKUP($D$3,'Hypothetical Res Bill Impact'!$B$83:$J$86,5,FALSE))) -> 84.17381878 | F85: =IF($D$3="All",'Hypothetical Res Bill Impact'!H87,(VLOOKUP($D$3,'Hypothetical Res Bill Impact'!$B$83:$J$86,7,FALSE))) -> 84.17381878 | G85: =$F85/D85-1 -> 0.2060990767 | H85: 0
C86: 5-Year Average Usage - CARE | D86: =IF($D$3="All",'Hypothetical Res Bill Impact'!D97,(VLOOKUP($D$3,'Hypothetical Res Bill Impact'!$B$93:$J$96,3,FALSE))) -> 43.75338272 | E86: =IF($D$3="All",'Hypothetical Res Bill Impact'!F97,(VLOOKUP($D$3,'Hypothetical Res Bill Impact'!$B$93:$J$96,5,FALSE))) -> 52.85044633 | F86: =IF($D$3="All",'Hypothetical Res Bill Impact'!H97,(VLOOKUP($D$3,'Hypothetical Res Bill Impact'!$B$93:$J$96,7,FALSE))) -> 52.85044633 | G86: 0.2079168065 | H86: 0
B87: Total | D87: =D85*(1-'Hypothetical SAR and RAR'!$AA$16)+D86*'Hypothetical SAR and RAR'!$AA$16 -> 65.0689451 | E87: =E85*(1-'Hypothetical SAR and RAR'!$AA$16)+E86*'Hypothetical SAR and RAR'!$AA$16 -> 78.49401596 | F87: =F85*(1-'Hypothetical SAR and RAR'!$AA$16)+F86*'Hypothetical SAR and RAR'!$AA$16 -> 78.49401596 | G87: 0.2063207085 | H87: 0

Sheet Hypothetical SAR and RAR
C2: Revenue Change ($000)
B3: =RevRecoveryMechanisms -> Core Procurement | C3: ='Hypothetical Summary'!D6 -> 0 | G3: Allocation
B4: Allocated Base Margin | C4: ='Hypothetical Summary'!D7 -> 0 | G4: =TRANSPOSE(RevRecoveryMechanisms) -> Core Procurement | H4: Allocated Base Margin | I4: Distribution | J4: All Residential | K4: Local Transmission | L4: Seasonal Storage | M4: GHG End User | N4: Public Purpose Programs | O4: - | P4: 46% Res (LUAF, Other) | Q4: ECPT | R4: EPAM | S4: CFCA | T4: Non-Residential
B5: Distribution | C5: ='Hypothetical Summary'!D8 -> 0 | F5: Residential | G5: ='SAR and RAR'!G5 -> 0.5724692956 | H5: ='SAR and RAR'!H5 -> 0.8165237363 | I5: ='SAR and RAR'!I5 -> 0.7135109512 | J5: ='SAR and RAR'!J5 -> 1 | K5: ='SAR and RAR'!K5 -> 0.5154334371 | L5: ='SAR and RAR'!L5 -> 0.7405203174 | M5: ='SAR and RAR'!M5 -> 0.4973508799 | N5: ='SAR and RAR'!N5 -> 0.4546557409 | O5: ='SAR and RAR'!O5 -> 0 | P5: ='SAR and RAR'!P5 -> 0.4391411967 | Q5: ='SAR and RAR'!Q5 -> 0.3301664811 | R5: ='SAR and RAR'!R5 -> 0.8165237363 | S5: ='SAR and RAR'!S5 -> 0.6019875916 | T5: ='SAR and RAR'!T5 -> 0
B6: All Residential | C6: ='Hypothetical Summary'!D9 -> 0
B7: Local Transmission | C7: ='Hypothetical Summary'!D10 -> 0 | G7: Revenue Change ($000) - System
B8: Seasonal Storage | C8: ='Hypothetical Summary'!D11 -> 0 | F8: w/Proposed | G8: =TRANSPOSE(RevRecoveryMechanisms) -> Core Procurement | H8: Allocated Base Margin | I8: Distribution | J8: All Residential | K8: Local Transmission | L8: Seasonal Storage | M8: GHG End User | N8: Public Purpose Programs | O8: - | P8: 46% Res (LUAF, Other) | Q8: ECPT | R8: EPAM | S8: CFCA | T8: Non-Residential
B9: GHG End User | C9: ='Hypothetical Summary'!D12 -> 0 | F9: Residential | G9: =G5*G10 -> 0 | H9: =H5*H10 -> 0 | I9: =I5*I10 -> 0 | J9: 0 | K9: 0 | L9: 0 | M9: 0 | N9: 0 | P9: 0 | Q9: =Q5*Q10 -> 0 | R9: =R5*R10 -> 0 | S9: =S5*S10 -> 0 | T9: 0 | U9: =SUM(G9:T9) -> 0 | V9: Check
B10: Public Purpose Programs | C10: ='Hypothetical Summary'!D13 -> 0 | F10: Total System | G10: =C3 -> 0 | H10: =C4 -> 0 | I10: =C5 -> 0 | J10: =C6 -> 0 | K10: =C7 -> 0 | L10: =C8 -> 0 | M10: =C9 -> 0 | N10: =C10 -> 0 | P10: =C12 -> 0 | Q10: =C13 -> 0 | R10: =C14 -> 0 | S10: =C15 -> 0 | T10: =C16 -> 0 | U10: =SUM(G10:T10) -> 0 | V10: =U10-C17 -> 0
B11: -
B12: 46% Res (LUAF, Other) | C12: ='Hypothetical Summary'!D15 -> 0
B13: ECPT | C13: ='Hypothetical Summary'!D16 -> 0
B14: EPAM | C14: ='Hypothetical Summary'!D17 -> 0
B15: CFCA | C15: ='Hypothetical Summary'!D18 -> 0 | AA15: w/Proposed
B16: Non-Residential | C16: ='Hypothetical Summary'!D14 -> 0 | U16: Total UDC w/Proposed | W16: Commodity w/Proposed | Z16: % of CARE Sales (Bundled) | AA16: ='SAR and RAR'!AC15 -> 0.1813279471
B17: Total | C17: =SUM(C3:C16) -> 0 | G17: Revenue Split - Bundled | U17: Bundled Revenue Change | W17: Bundled Revenue Change
B18: CPUC Fee | C18: ='SAR and RAR'!D18 -> 0.0025 | G18: =TRANSPOSE(RevRecoveryMechanisms) -> Core Procurement | H18: Allocated Base Margin | I18: Distribution | J18: All Residential | K18: Local Transmission | L18: Seasonal Storage | M18: GHG End User | N18: Public Purpose Programs | O18: - | P18: 46% Res (LUAF, Other) | Q18: ECPT | R18: EPAM | S18: CFCA | T18: Non-Residential | U18: Total | W18: Total
F19: Residential | G19: 1 | H19: 1 | I19: 1 | J19: 1 | K19: 1 | L19: 1 | M19: 1 | N19: 1 | O19: 1 | P19: 1 | Q19: 1 | R19: 1 | S19: 1 | T19: 0 | U19: =SUMPRODUCT(H9:S9,H19:S19) -> 0 | W19: =SUMPRODUCT(G9,G19) -> 0
F20: Total System | G20: 1 | H20: 1 | I20: 1 | J20: 1 | K20: 1 | L20: 1 | M20: 1 | N20: 1 | O20: 1 | P20: 1 | Q20: 1 | R20: 1 | S20: 1 | T20: 0 | U20: =SUMPRODUCT(H10:S10,H20:S20) -> 0 | W20: =SUMPRODUCT(G10,G20) -> 0
C22: ='SAR and RAR'!C22 -> CAP D.24-07-009 SALES DETERMINANTS SYSTEM NET | D22: ='SAR and RAR'!D22 -> CAP D.24-07-009 SALES DETERMINANTS BUNDLED
B23: Residential | C23: ='SAR and RAR'!C23 -> 270603.8421 | D23: ='SAR and RAR'!D23 -> 268350.6274
B24: Total System | C24: ='SAR and RAR'!C24 -> 819598.1651 | D24: ='SAR and RAR'!D24 -> 413767.7004
F26: Bundled | P26: System (Bundled and Unbundled)
F27: =Summary!I3&" Authorized Sales Forecast" -> 2024 Authorized Sales Forecast | G27: ='SAR and RAR'!G27 -> 06/01/2025 Avg Rates(sales adj.) | H27: Proposed Avg Rates | I27: % Change | Q27: =F27 -> 2024 Authorized Sales Forecast | R27: =G27 -> 06/01/2025 Avg Rates(sales adj.) | S27: Proposed Avg Rates | T27: % Change
E28: Residential | F28: ='SAR and RAR'!F28 -> 268350.6274 | G28: 257.266139 | H28: =(U19/C23*100)+(W19/D23*100)+G28 -> 257.266139 | I28: =H28/G28-1 -> 0 | P28: Residential | Q28: ='SAR and RAR'!Q28 -> 270603.8421 | R28: 257.0242663 | S28: =U9/Q28*100+R28 -> 257.0242663 | T28: =S28/R28-1 -> 0
E29: Total System | F29: ='SAR and RAR'!F29 -> 413767.7004 | G29: 43.43420354 | H29: =(U20/C24*100)+(W20/D24*100)+G29 -> 43.43420354 | I29: =H29/G29-1 -> 0 | P29: Total System | Q29: ='SAR and RAR'!Q29 -> 819598.1651 | R29: 27.13915291 | S29: =U10/Q29*100+R29 -> 27.13915291 | T29: =S29/R29-1 -> 0

Sheet Hypothetical Res Bill Impact
E3: Schedule GR | P3: Schedule GR [CARE]
E4: =SalesForecastYear -> 2024 | F4: ='Res Bill Impact'!F4 -> 2025-06-01 | G4: ='Res Bill Impact'!G4 -> 2025-06-01 | H4: Proposed | I4: Proposed | P4: =SalesForecastYear -> 2024 | Q4: ='Res Bill Impact'!Q4 -> 2025-06-01 | R4: ='Res Bill Impact'!R4 -> 2025-06-01 | S4: Proposed | T4: Proposed
E5: Sales Forecast | F5: Rates | G5: Revenue | H5: Rates | I5: Revenue | P5: Sales Forecast | Q5: Rates | R5: Revenue | S5: Rates | T5: Revenue
D7: Baseline | E7: ='Res Bill Impact'!E7 -> 187959.3296 | F7: ='Res Bill Impact'!F7 -> 2.490173919 | G7: =F7*E7 -> 468051.4203 | H7: =(Y10/SUM(SUM(E7),F9/F7*SUM(E9),SUM(P7)*(Q7/F7),SUM(P9)*(Q9/F7))) -> 2.490173919 | I7: =E7*H7 -> 468051.4203 | O7: Baseline | P7: ='Res Bill Impact'!P7 -> 34568.65952 | Q7: ='Res Bill Impact'!Q7 -> 1.976866623 | R7: ='Res Bill Impact'!R7 -> 68337.62922 | S7: =H7*(1+(Q7/F7-1)) -> 1.976866623 | T7: =P7*S7 -> 68337.62922 | X7: Bundled Residential Rev Req
X8: Current | Y8: =(SUM(G7:G12)+SUM(R7:R12)) -> 786680.3374
D9: Non-Baseline | E9: ='Res Bill Impact'!E9 -> 76615.61141 | F9: ='Res Bill Impact'!F9 -> 2.850283919 | G9: =F9*E9 -> 218376.2451 | H9: =F9/F$7*H$7 -> 2.850283919 | I9: =E9*H9 -> 218376.2451 | O9: Non-Baseline | P9: ='Res Bill Impact'!P9 -> 14090.80885 | Q9: ='Res Bill Impact'!Q9 -> 2.264954623 | R9: ='Res Bill Impact'!R9 -> 31915.04265 | S9: =H9*(1+(Q9/F9-1)) -> 2.264954623 | T9: =P9*S9 -> 31915.04265 | X9: Change (Proposed) | Y9: ='Hypothetical SAR and RAR'!U9 -> 0
X10: Proposed (w/ Current Revenues) | Y10: =Y8+Y9 -> 786680.3374
E11: Non-CARE customers | P11: CARE Customers
D12: Fixed Charge | E12: =E13-P12 -> 664014.4092 | F12: 0 | G12: =F12*12*E12/1000 -> 0 | H12: 0 | I12: =(H12*12*E12)/1000 -> 0 | O12: Fixed Charge | P12: 210053 | Q12: =F12*(1-CAREDiscountPercent) -> 0 | R12: =Q12*12*P12/1000 -> 0 | S12: =H12*(1-CAREDiscountPercent) -> 0 | T12: =(S12*12*P12)/1000 -> 0
D13: Total Customers | E13: 874067.4092
P18: ='Res Bill Impact'!P18 -> Basic Bundled
H19: ='Res Bill Impact'!H19 -> Essential Usage | P19: ='Res Bill Impact'!P19 -> 2024 Recorded Data - Average Monthly Usage - ALL-BASIC th
B20: SCHEDULE DR RATES ($/th) | H20: Monthly Tier 1 Baseline Allowance -BASIC (th) | P20: Climate Zone | Q20: Summer | R20: Winter | S20: Summer | T20: Winter | U20: Population Weight
B21: Rates | C21: ='Res Bill Impact'!C21 -> 2025-01-01 | D21: ='Res Bill Impact'!D21 -> 2025-06-01 | E21: Proposed | H21: Climate Zone | I21: Summer | J21: Winter | Q21: Non-CARE | S21: CARE | U21: Non-CARE | V21: CARE
A22: Summer | B22: Tier 1 | C22: 2.064292367 | D22: 2.490173919 | E22: =H7 -> 2.490173919 | H22: =Zones -> SDG&E | I22: ='Res Bill Impact'!I22 -> 11 | J22: ='Res Bill Impact'!J22 -> 29 | P22: =Zones -> SDG&E | Q22: ='Res Bill Impact'!Q22 -> 15.16666667 | R22: ='Res Bill Impact'!R22 -> 30.33333333 | S22: ='Res Bill Impact'!S22 -> 14.62474328 | T22: ='Res Bill Impact'!T22 -> 26.16666667 | U22: =SUM(Q22:R22)/SUM($Q$22:$R$25) -> 1 | V22: =SUM(S22:T22)/SUM($S$22:$T$25) -> 1
B23: Tier 2 | C23: 2.362322367 | D23: 2.850283919 | E23: =H9 -> 2.850283919 | H23: 0 | I23: ='Res Bill Impact'!I23 -> 0 | J23: ='Res Bill Impact'!J23 -> 0 | P23: 0 | Q23: ='Res Bill Impact'!Q23 -> 0 | R23: ='Res Bill Impact'!R23 -> 0 | S23: ='Res Bill Impact'!S23 -> 0 | T23: ='Res Bill Impact'!T23 -> 0 | U23: =SUM(Q23:R23)/SUM($Q$22:$R$25) -> 0 | V23: =SUM(S23:T23)/SUM($S$22:$T$25) -> 0
H24: 0 | I24: ='Res Bill Impact'!I24 -> 0 | J24: ='Res Bill Impact'!J24 -> 0 | P24: 0 | Q24: ='Res Bill Impact'!Q24 -> 0 | R24: ='Res Bill Impact'!R24 -> 0 | S24: ='Res Bill Impact'!S24 -> 0 | T24: ='Res Bill Impact'!T24 -> 0 | U24: =SUM(Q24:R24)/SUM($Q$22:$R$25) -> 0 | V24: =SUM(S24:T24)/SUM($S$22:$T$25) -> 0
A25: Winter | B25: Tier 1 | C25: =C22 -> 2.064292367 | D25: 2.490173919 | E25: 2.490173919 | H25: 0 | I25: ='Res Bill Impact'!I25 -> 0 | J25: ='Res Bill Impact'!J25 -> 0 | P25: 0 | Q25: ='Res Bill Impact'!Q25 -> 0 | R25: ='Res Bill Impact'!R25 -> 0 | S25: ='Res Bill Impact'!S25 -> 0 | T25: ='Res Bill Impact'!T25 -> 0 | U25: =SUM(Q25:R25)/SUM($Q$22:$R$25) -> 0 | V25: =SUM(S25:T25)/SUM($S$22:$T$25) -> 0
B26: Tier 2 | C26: 2.362322367 | D26: 2.850283919 | E26: 2.850283919
P27: ='Res Bill Impact'!P27 -> Typical Bundled
P28: ='Res Bill Impact'!P28 -> 2020-2024 Recorded Data - Average Monthly Usage - ALL-BASIC th
B29: SCHEDULE DR [CARE] ($/th) | P29: Climate Zone | Q29: Summer | R29: Winter | S29: Summer | T29: Winter | U29: Population Weight
B30: Rates | C30: =C21 -> 2025-01-01 | D30: =D21 -> 2025-06-01 | E30: Proposed | Q30: Non-CARE | S30: CARE | U30: Non-CARE | V30: CARE
A31: Summer | B31: Tier 1 | C31: 1.636161382 | D31: 1.976866623 | E31: =S7 -> 1.976866623 | P31: =Zones -> SDG&E | Q31: ='Res Bill Impact'!Q31 -> 15.55639947 | R31: ='Res Bill Impact'!R31 -> 33.1665529 | S31: ='Res Bill Impact'!S31 -> 14.62474328 | T31: ='Res Bill Impact'!T31 -> 26.70068582 | U31: =SUM(Q31:R31)/SUM($Q$31:$R$34) -> 1 | V31: =SUM(S31:T31)/SUM($S$31:$T$34) -> 1
B32: Tier 2 | C32: 1.874585382 | D32: 2.264954623 | E32: =S9 -> 2.264954623 | P32: 0 | U32: =SUM(Q32:R32)/SUM($Q$31:$R$34) -> 0 | V32: =SUM(S32:T32)/SUM($S$31:$T$34) -> 0
P33: 0 | U33: 0 | V33: 0
A34: Winter | B34: Tier 1 | C34: =C31 -> 1.636161382 | D34: 1.976866623 | E34: 1.976866623 | P34: 0 | U34: 0 | V34: 0
B35: Tier 2 | C35: 1.874585382 | D35: 2.264954623 | E35: 2.264954623
B39: Note: Bill inserts include CPUC fee in the calculations
B40: ='Res Bill Impact'!C40 -> 2023 Recorded Average Basic Bundled Non-CARE Customer Bill
C41: =C30 -> 2025-01-01 | E41: =D30 -> 2025-06-01 | G41: =E30 -> Proposed
C42: Summer | D42: Winter | E42: Summer | F42: Winter | G42: Summer | H42: Winter
B43: =Zones -> SDG&E | C43: =IF($Q22>$I22,C$22*$I22+C$23*($Q22-$I22),$Q22*C$22)+('Hypothetical SAR and RAR'!$C$18*$Q22)+IF(Q22>0,$F$12,0) -> 32.58814257 | D43: =IF($R22>$J22,C$25*$J22+C$26*($R22-$J22),$R22*C$25)+('Hypothetical SAR and RAR'!$C$18*$R22)+IF(R22>0,$F$12,0) -> 63.09007514 | E43: =IF($Q22>$I22,D$22*$I22+D$23*($Q22-$I22),$Q22*D$22)+('Hypothetical SAR and RAR'!$C$18*$Q22)+IF(Q22>0,$F$12,0) -> 39.30601277 | F43: =IF($R22>$J22,D$25*$J22+D$26*($R22-$J22),$R22*D$25)+('Hypothetical SAR and RAR'!$C$18*$R22)+IF(R22>0,$F$12,0) -> 76.09125555 | G43: =IF($Q22>$I22,E$22*$I22+E$23*($Q22-$I22),$Q22*E$22)+('Hypothetical SAR and RAR'!$C$18*$Q22)+IF(Q22>0,$H$12,0) -> 39.30601277 | H43: =IF($R22>$J22,E$25*$J22+E$26*($R22-$J22),$R22*E$25)+('Hypothetical SAR and RAR'!$C$18*$R22)+IF(R22>0,$H$12,0) -> 76.09125555
B44: 0 | C44: =IF($Q23>$I23,C$22*$I23+C$23*($Q23-$I23),$Q23*C$22)+('Hypothetical SAR and RAR'!$C$18*$Q23)+IF(Q23>0,$F$12,0) -> 0 | D44: =IF($R23>$J23,C$25*$J23+C$26*($R23-$J23),$R23*C$25)+('Hypothetical SAR and RAR'!$C$18*$R23)+IF(R23>0,$F$12,0) -> 0 | E44: =IF($Q23>$I23,D$22*$I23+D$23*($Q23-$I23),$Q23*D$22)+('Hypothetical SAR and RAR'!$C$18*$Q23)+IF(Q23>0,$F$12,0) -> 0 | F44: =IF($R23>$J23,D$25*$J23+D$26*($R23-$J23),$R23*D$25)+('Hypothetical SAR and RAR'!$C$18*$R23)+IF(R23>0,$F$12,0) -> 0 | G44: =IF($Q23>$I23,E$22*$I23+E$23*($Q23-$I23),$Q23*E$22)+('Hypothetical SAR and RAR'!$C$18*$Q23)+IF(Q23>0,$H$12,0) -> 0 | H44: =IF($R23>$J23,E$25*$J23+E$26*($R23-$J23),$R23*E$25)+('Hypothetical SAR and RAR'!$C$18*$R23)+IF(R23>0,$H$12,0) -> 0
B45: 0 | C45: =IF($Q24>$I24,C$22*$I24+C$23*($Q24-$I24),$Q24*C$22)+('Hypothetical SAR and RAR'!$C$18*$Q24)+IF(Q24>0,$F$12,0) -> 0 | D45: =IF($R24>$J24,C$25*$J24+C$26*($R24-$J24),$R24*C$25)+('Hypothetical SAR and RAR'!$C$18*$R24)+IF(R24>0,$F$12,0) -> 0 | E45: =IF($Q24>$I24,D$22*$I24+D$23*($Q24-$I24),$Q24*D$22)+('Hypothetical SAR and RAR'!$C$18*$Q24)+IF(Q24>0,$F$12,0) -> 0 | F45: =IF($R24>$J24,D$25*$J24+D$26*($R24-$J24),$R24*D$25)+('Hypothetical SAR and RAR'!$C$18*$R24)+IF(R24>0,$F$12,0) -> 0 | G45: =IF($Q24>$I24,E$22*$I24+E$23*($Q24-$I24),$Q24*E$22)+('Hypothetical SAR and RAR'!$C$18*$Q24)+IF(Q24>0,$H$12,0) -> 0 | H45: =IF($R24>$J24,E$25*$J24+E$26*($R24-$J24),$R24*E$25)+('Hypothetical SAR and RAR'!$C$18*$R24)+IF(R24>0,$H$12,0) -> 0
B46: 0 | C46: =IF($Q25>$I25,C$22*$I25+C$23*($Q25-$I25),$Q25*C$22)+('Hypothetical SAR and RAR'!$C$18*$Q25)+IF(Q25>0,$F$12,0) -> 0 | D46: =IF($R25>$J25,C$25*$J25+C$26*($R25-$J25),$R25*C$25)+('Hypothetical SAR and RAR'!$C$18*$R25)+IF(R25>0,$F$12,0) -> 0 | E46: =IF($Q25>$I25,D$22*$I25+D$23*($Q25-$I25),$Q25*D$22)+('Hypothetical SAR and RAR'!$C$18*$Q25)+IF(Q25>0,$F$12,0) -> 0 | F46: =IF($R25>$J25,D$25*$J25+D$26*($R25-$J25),$R25*D$25)+('Hypothetical SAR and RAR'!$C$18*$R25)+IF(R25>0,$F$12,0) -> 0 | G46: =IF($Q25>$I25,E$22*$I25+E$23*($Q25-$I25),$Q25*E$22)+('Hypothetical SAR and RAR'!$C$18*$Q25)+IF(Q25>0,$H$12,0) -> 0 | H46: =IF($R25>$J25,E$25*$J25+E$26*($R25-$J25),$R25*E$25)+('Hypothetical SAR and RAR'!$C$18*$R25)+IF(R25>0,$H$12,0) -> 0
B47: Total | C47: =SUMPRODUCT(C43:C46,$U$22:$U$25) -> 32.58814257 | D47: =SUMPRODUCT(D43:D46,$U$22:$U$25) -> 63.09007514 | E47: 39.30601277 | F47: 76.09125555 | G47: 39.30601277 | H47: 76.09125555
C50: ='Res Bill Impact'!C50 -> 2023 Recorded Average Basic Bundled CARE Customer Bill
C51: =C30 -> 2025-01-01 | E51: =D30 -> 2025-06-01 | G51: =E30 -> Proposed
C52: Summer | D52: Winter | E52: Summer | F52: Winter | G52: Summer | H52: Winter
B53: =Zones -> SDG&E | C53: =IF($S22>$I22,C$31*$I22+C$32*($S22-$I22),$S22*C$31)+('Hypothetical SAR and RAR'!$C$18*$S22)+IF(S22>0,$Q$12,0) -> 24.82922783 | D53: =IF($T22>$J22,C$34*$J22+C$35*($T22-$J22),$T22*C$34)+('Hypothetical SAR and RAR'!$C$18*$T22)+IF(T22>0,$Q$12,0) -> 42.87830616 | E53: =IF($S22>$I22,D$31*$I22+D$32*($S22-$I22),$S22*D$31)+('Hypothetical SAR and RAR'!$C$18*$S22)+IF(S22>0,$Q$12,0) -> 29.99197377 | F53: =IF($T22>$J22,D$34*$J22+D$35*($T22-$J22),$T22*D$34)+('Hypothetical SAR and RAR'!$C$18*$T22)+IF(T22>0,$Q$12,0) -> 51.79342664 | G53: =IF($S22>$I22,E$31*$I22+E$32*($S22-$I22),$S22*E$31)+('Hypothetical SAR and RAR'!$C$18*$S22)+IF(S22>0,$S$12,0) -> 29.99197377 | H53: =IF($T22>$J22,E$34*$J22+E$35*($T22-$J22),$T22*E$34)+('Hypothetical SAR and RAR'!$C$18*$T22)+IF(T22>0,$S$12,0) -> 51.79342664
B54: 0 | C54: =IF($S23>$I23,C$31*$I23+C$32*($S23-$I23),$S23*C$31)+('Hypothetical SAR and RAR'!$C$18*$S23)+IF(S23>0,$Q$12,0) -> 0 | D54: =IF($T23>$J23,C$34*$J23+C$35*($T23-$J23),$T23*C$34)+('Hypothetical SAR and RAR'!$C$18*$T23)+IF(T23>0,$Q$12,0) -> 0 | E54: =IF($S23>$I23,D$31*$I23+D$32*($S23-$I23),$S23*D$31)+('Hypothetical SAR and RAR'!$C$18*$S23)+IF(S23>0,$Q$12,0) -> 0 | F54: =IF($T23>$J23,D$34*$J23+D$35*($T23-$J23),$T23*D$34)+('Hypothetical SAR and RAR'!$C$18*$T23)+IF(T23>0,$Q$12,0) -> 0 | G54: =IF($S23>$I23,E$31*$I23+E$32*($S23-$I23),$S23*E$31)+('Hypothetical SAR and RAR'!$C$18*$S23)+IF(S23>0,$S$12,0) -> 0 | H54: =IF($T23>$J23,E$34*$J23+E$35*($T23-$J23),$T23*E$34)+('Hypothetical SAR and RAR'!$C$18*$T23)+IF(T23>0,$S$12,0) -> 0
B55: 0 | C55: =IF($S24>$I24,C$31*$I24+C$32*($S24-$I24),$S24*C$31)+('Hypothetical SAR and RAR'!$C$18*$S24)+IF(S24>0,$Q$12,0) -> 0 | D55: =IF($T24>$J24,C$34*$J24+C$35*($T24-$J24),$T24*C$34)+('Hypothetical SAR and RAR'!$C$18*$T24)+IF(T24>0,$Q$12,0) -> 0 | E55: =IF($S24>$I24,D$31*$I24+D$32*($S24-$I24),$S24*D$31)+('Hypothetical SAR and RAR'!$C$18*$S24)+IF(S24>0,$Q$12,0) -> 0 | F55: =IF($T24>$J24,D$34*$J24+D$35*($T24-$J24),$T24*D$34)+('Hypothetical SAR and RAR'!$C$18*$T24)+IF(T24>0,$Q$12,0) -> 0 | G55: =IF($S24>$I24,E$31*$I24+E$32*($S24-$I24),$S24*E$31)+('Hypothetical SAR and RAR'!$C$18*$S24)+IF(S24>0,$S$12,0) -> 0 | H55: =IF($T24>$J24,E$34*$J24+E$35*($T24-$J24),$T24*E$34)+('Hypothetical SAR and RAR'!$C$18*$T24)+IF(T24>0,$S$12,0) -> 0
B56: 0 | C56: =IF($S25>$I25,C$31*$I25+C$32*($S25-$I25),$S25*C$31)+('Hypothetical SAR and RAR'!$C$18*$S25)+IF(S25>0,$Q$12,0) -> 0 | D56: =IF($T25>$J25,C$34*$J25+C$35*($T25-$J25),$T25*C$34)+('Hypothetical SAR and RAR'!$C$18*$T25)+IF(T25>0,$Q$12,0) -> 0 | E56: =IF($S25>$I25,D$31*$I25+D$32*($S25-$I25),$S25*D$31)+('Hypothetical SAR and RAR'!$C$18*$S25)+IF(S25>0,$Q$12,0) -> 0 | F56: =IF($T25>$J25,D$34*$J25+D$35*($T25-$J25),$T25*D$34)+('Hypothetical SAR and RAR'!$C$18*$T25)+IF(T25>0,$Q$12,0) -> 0 | G56: =IF($S25>$I25,E$31*$I25+E$32*($S25-$I25),$S25*E$31)+('Hypothetical SAR and RAR'!$C$18*$S25)+IF(S25>0,$S$12,0) -> 0 | H56: =IF($T25>$J25,E$34*$J25+E$35*($T25-$J25),$T25*E$34)+('Hypothetical SAR and RAR'!$C$18*$T25)+IF(T25>0,$S$12,0) -> 0
B57: Total | C57: =SUMPRODUCT(C53:C56,$V$22:$V$25) -> 24.82922783 | D57: =SUMPRODUCT(D53:D56,$V$22:$V$25) -> 42.87830616 | E57: 29.99197377 | F57: 51.79342664 | G57: 29.99197377 | H57: 51.79342664
C60: Essential Usage Basic Bundled Non-CARE Customer
C61: =C51 -> 2025-01-01 | E61: =D30 -> 2025-06-01 | G61: =G51 -> Proposed
C62: Summer | D62: Winter | E62: Summer | F62: Winter | G62: Summer | H62: Winter
B63: =Zones -> SDG&E | C63: =($C$22*$I22)+('Hypothetical SAR and RAR'!$C$18*$I22)+IF(I22>0,$F$12,0) -> 22.73471604 | D63: =($C$25*$J22)+('Hypothetical SAR and RAR'!$C$18*$J22)+IF(J22>0,$F$12,0) -> 59.93697865 | E63: =($D$22*$I22)+('Hypothetical SAR and RAR'!$C$18*$I22)+IF(I22>0,$F$12,0) -> 27.41941311 | F63: =($D$25*$J22)+('Hypothetical SAR and RAR'!$C$18*$J22)+IF(J22>0,$F$12,0) -> 72.28754366 | G63: =($E$22*$I22)+('Hypothetical SAR and RAR'!$C$18*$I22)+IF(I22>0,$H$12,0) -> 27.41941311 | H63: =($E$25*$J22)+('Hypothetical SAR and RAR'!$C$18*$J22)+IF(J22>0,$H$12,0) -> 72.28754366
B64: 0 | C64: =($C$22*$I23)+('Hypothetical SAR and RAR'!$C$18*$I23)+IF(I23>0,$F$12,0) -> 0 | D64: =($C$25*$J23)+('Hypothetical SAR and RAR'!$C$18*$J23)+IF(J23>0,$F$12,0) -> 0 | E64: =($D$22*$I23)+('Hypothetical SAR and RAR'!$C$18*$I23)+IF(I23>0,$F$12,0) -> 0 | F64: =($D$25*$J23)+('Hypothetical SAR and RAR'!$C$18*$J23)+IF(J23>0,$F$12,0) -> 0 | G64: =($E$22*$I23)+('Hypothetical SAR and RAR'!$C$18*$I23)+IF(I23>0,$H$12,0) -> 0 | H64: =($E$25*$J23)+('Hypothetical SAR and RAR'!$C$18*$J23)+IF(J23>0,$H$12,0) -> 0
B65: 0 | C65: =($C$22*$I24)+('Hypothetical SAR and RAR'!$C$18*$I24)+IF(I24>0,$F$12,0) -> 0 | D65: =($C$25*$J24)+('Hypothetical SAR and RAR'!$C$18*$J24)+IF(J24>0,$F$12,0) -> 0 | E65: =($D$22*$I24)+('Hypothetical SAR and RAR'!$C$18*$I24)+IF(I24>0,$F$12,0) -> 0 | F65: =($D$25*$J24)+('Hypothetical SAR and RAR'!$C$18*$J24)+IF(J24>0,$F$12,0) -> 0 | G65: =($E$22*$I24)+('Hypothetical SAR and RAR'!$C$18*$I24)+IF(I24>0,$H$12,0) -> 0 | H65: =($E$25*$J24)+('Hypothetical SAR and RAR'!$C$18*$J24)+IF(J24>0,$H$12,0) -> 0
B66: 0 | C66: =($C$22*$I25)+('Hypothetical SAR and RAR'!$C$18*$I25)+IF(I25>0,$F$12,0) -> 0 | D66: =($C$25*$J25)+('Hypothetical SAR and RAR'!$C$18*$J25)+IF(J25>0,$F$12,0) -> 0 | E66: =($D$22*$I25)+('Hypothetical SAR and RAR'!$C$18*$I25)+IF(I25>0,$F$12,0) -> 0 | F66: =($D$25*$J25)+('Hypothetical SAR and RAR'!$C$18*$J25)+IF(J25>0,$F$12,0) -> 0 | G66: =($E$22*$I25)+('Hypothetical SAR and RAR'!$C$18*$I25)+IF(I25>0,$H$12,0) -> 0 | H66: =($E$25*$J25)+('Hypothetical SAR and RAR'!$C$18*$J25)+IF(J25>0,$H$12,0) -> 0
B67: Total | C67: =SUMPRODUCT(C63:C66,$U$22:$U$25) -> 22.73471604 | D67: =SUMPRODUCT(D63:D66,$U$22:$U$25) -> 59.93697865 | E67: =SUMPRODUCT(E63:E66,$U$22:$U$25) -> 27.41941311 | F67: 72.28754366 | G67: 27.41941311 | H67: 72.28754366
C70: Essential Usage Basic Bundled CARE Customer
C71: =C51 -> 2025-01-01 | E71: =E61 -> 2025-06-01 | G71: =G61 -> Proposed
C72: Summer | D72: Winter | E72: Summer | F72: Winter | G72: Summer | H72: Winter
B73: =Zones -> SDG&E | C73: =($C$31*$I22)+('Hypothetical SAR and RAR'!$C$18*$I22)+IF(I22>0,$Q$12,0) -> 18.0252752 | D73: =($C$34*$J22)+('Hypothetical SAR and RAR'!$C$18*$J22)+IF(J22>0,$Q$12,0) -> 47.52118007 | E73: =($D$31*$I22)+('Hypothetical SAR and RAR'!$C$18*$I22)+IF(I22>0,$Q$12,0) -> 21.77303286 | F73: =($D$34*$J22)+('Hypothetical SAR and RAR'!$C$18*$J22)+IF(J22>0,$Q$12,0) -> 57.40163208 | G73: =($E$31*$I22)+('Hypothetical SAR and RAR'!$C$18*$I22)+IF(I22>0,$S$12,0) -> 21.77303286 | H73: =($E$34*$J22)+('Hypothetical SAR and RAR'!$C$18*$J22)+IF(J22>0,$S$12,0) -> 57.40163208
B74: 0 | C74: =($C$31*$I23)+('Hypothetical SAR and RAR'!$C$18*$I23)+IF(I23>0,$Q$12,0) -> 0 | D74: =($C$34*$J23)+('Hypothetical SAR and RAR'!$C$18*$J23)+IF(J23>0,$Q$12,0) -> 0 | E74: =($D$31*$I23)+('Hypothetical SAR and RAR'!$C$18*$I23)+IF(I23>0,$Q$12,0) -> 0 | F74: =($D$34*$J23)+('Hypothetical SAR and RAR'!$C$18*$J23)+IF(J23>0,$Q$12,0) -> 0 | G74: =($E$31*$I23)+('Hypothetical SAR and RAR'!$C$18*$I23)+IF(I23>0,$S$12,0) -> 0 | H74: =($E$34*$J23)+('Hypothetical SAR and RAR'!$C$18*$J23)+IF(J23>0,$S$12,0) -> 0
B75: 0 | C75: =($C$31*$I24)+('Hypothetical SAR and RAR'!$C$18*$I24)+IF(I24>0,$Q$12,0) -> 0 | D75: =($C$34*$J24)+('Hypothetical SAR and RAR'!$C$18*$J24)+IF(J24>0,$Q$12,0) -> 0 | E75: =($D$31*$I24)+('Hypothetical SAR and RAR'!$C$18*$I24)+IF(I24>0,$Q$12,0) -> 0 | F75: =($D$34*$J24)+('Hypothetical SAR and RAR'!$C$18*$J24)+IF(J24>0,$Q$12,0) -> 0 | G75: =($E$31*$I24)+('Hypothetical SAR and RAR'!$C$18*$I24)+IF(I24>0,$S$12,0) -> 0 | H75: =($E$34*$J24)+('Hypothetical SAR and RAR'!$C$18*$J24)+IF(J24>0,$S$12,0) -> 0
B76: 0 | C76: =($C$31*$I25)+('Hypothetical SAR and RAR'!$C$18*$I25)+IF(I25>0,$Q$12,0) -> 0 | D76: =($C$34*$J25)+('Hypothetical SAR and RAR'!$C$18*$J25)+IF(J25>0,$Q$12,0) -> 0 | E76: =($D$31*$I25)+('Hypothetical SAR and RAR'!$C$18*$I25)+IF(I25>0,$Q$12,0) -> 0 | F76: =($D$34*$J25)+('Hypothetical SAR and RAR'!$C$18*$J25)+IF(J25>0,$Q$12,0) -> 0 | G76: =($E$31*$I25)+('Hypothetical SAR and RAR'!$C$18*$I25)+IF(I25>0,$S$12,0) -> 0 | H76: =($E$34*$J25)+('Hypothetical SAR and RAR'!$C$18*$J25)+IF(J25>0,$S$12,0) -> 0
B77: Total | C77: =SUMPRODUCT(C73:C76,$V$22:$V$25) -> 18.0252752 | D77: =SUMPRODUCT(D73:D76,$V$22:$V$25) -> 47.52118007 | E77: 21.77303286 | F77: 57.40163208 | G77: 21.77303286 | H77: 57.40163208
C80: Typical Monthly Usage Basic Bundled Non-CARE Customer
C81: =C71 -> 2025-01-01 | E81: =E71 -> 2025-06-01 | G81: =G71 -> Proposed
C82: Summer | D82: Winter | E82: Summer | F82: Winter | G82: Summer | H82: Winter
B83: =Zones -> SDG&E | C83: =IF($Q31>$I22,C$22*$I22+C$23*($Q31-$I22),$Q31*C$22)+('Hypothetical SAR and RAR'!$C$18*$Q31)+IF(Q31>0,$F$12,0) -> 33.50979143 | D83: =IF($R31>$J22,C$25*$J22+C$26*($R31-$J22),$R31*C$25)+('Hypothetical SAR and RAR'!$C$18*$R31)+IF(R31>0,$F$12,0) -> 69.79013615 | E83: =IF($Q31>$I22,D$22*$I22+D$23*($Q31-$I22),$Q31*D$22)+('Hypothetical SAR and RAR'!$C$18*$Q31)+IF(Q31>0,$F$12,0) -> 40.41783626 | F83: =IF($R31>$J22,D$25*$J22+D$26*($R31-$J22),$R31*D$25)+('Hypothetical SAR and RAR'!$C$18*$R31)+IF(R31>0,$F$12,0) -> 84.17381878 | G83: =IF($Q31>$I22,E$22*$I22+E$23*($Q31-$I22),$Q31*E$22)+('Hypothetical SAR and RAR'!$C$18*$Q31)+IF(Q31>0,$H$12,0) -> 40.41783626 | H83: =IF($R31>$J22,E$25*$J22+E$26*($R31-$J22),$R31*E$25)+('Hypothetical SAR and RAR'!$C$18*$R31)+IF(R31>0,$H$12,0) -> 84.17381878
B84: 0 | C84: =IF($Q32>$I23,C$22*$I23+C$23*($Q32-$I23),$Q32*C$22)+('Hypothetical SAR and RAR'!$C$18*$Q32)+IF(Q32>0,$F$12,0) -> 0 | D84: =IF($R32>$J23,C$25*$J23+C$26*($R32-$J23),$R32*C$25)+('Hypothetical SAR and RAR'!$C$18*$R32)+IF(R32>0,$F$12,0) -> 0 | E84: =IF($Q32>$I23,D$22*$I23+D$23*($Q32-$I23),$Q32*D$22)+('Hypothetical SAR and RAR'!$C$18*$Q32)+IF(Q32>0,$F$12,0) -> 0 | F84: =IF($R32>$J23,D$25*$J23+D$26*($R32-$J23),$R32*D$25)+('Hypothetical SAR and RAR'!$C$18*$R32)+IF(R32>0,$F$12,0) -> 0 | G84: =IF($Q32>$I23,E$22*$I23+E$23*($Q32-$I23),$Q32*E$22)+('Hypothetical SAR and RAR'!$C$18*$Q32)+IF(Q32>0,$H$12,0) -> 0 | H84: =IF($R32>$J23,E$25*$J23+E$26*($R32-$J23),$R32*E$25)+('Hypothetical SAR and RAR'!$C$18*$R32)+IF(R32>0,$H$12,0) -> 0
B85: 0 | C85: =IF($Q33>$I24,C$22*$I24+C$23*($Q33-$I24),$Q33*C$22)+('Hypothetical SAR and RAR'!$C$18*$Q33)+IF(Q33>0,$F$12,0) -> 0 | D85: =IF($R33>$J24,C$25*$J24+C$26*($R33-$J24),$R33*C$25)+('Hypothetical SAR and RAR'!$C$18*$R33)+IF(R33>0,$F$12,0) -> 0 | E85: =IF($Q33>$I24,D$22*$I24+D$23*($Q33-$I24),$Q33*D$22)+('Hypothetical SAR and RAR'!$C$18*$Q33)+IF(Q33>0,$F$12,0) -> 0 | F85: =IF($R33>$J24,D$25*$J24+D$26*($R33-$J24),$R33*D$25)+('Hypothetical SAR and RAR'!$C$18*$R33)+IF(R33>0,$F$12,0) -> 0 | G85: =IF($Q33>$I24,E$22*$I24+E$23*($Q33-$I24),$Q33*E$22)+('Hypothetical SAR and RAR'!$C$18*$Q33)+IF(Q33>0,$H$12,0) -> 0 | H85: =IF($R33>$J24,E$25*$J24+E$26*($R33-$J24),$R33*E$25)+('Hypothetical SAR and RAR'!$C$18*$R33)+IF(R33>0,$H$12,0) -> 0
B86: 0 | C86: =IF($Q34>$I25,C$22*$I25+C$23*($Q34-$I25),$Q34*C$22)+('Hypothetical SAR and RAR'!$C$18*$Q34)+IF(Q34>0,$F$12,0) -> 0 | D86: =IF($R34>$J25,C$25*$J25+C$26*($R34-$J25),$R34*C$25)+('Hypothetical SAR and RAR'!$C$18*$R34)+IF(R34>0,$F$12,0) -> 0 | E86: =IF($Q34>$I25,D$22*$I25+D$23*($Q34-$I25),$Q34*D$22)+('Hypothetical SAR and RAR'!$C$18*$Q34)+IF(Q34>0,$F$12,0) -> 0 | F86: =IF($R34>$J25,D$25*$J25+D$26*($R34-$J25),$R34*D$25)+('Hypothetical SAR and RAR'!$C$18*$R34)+IF(R34>0,$F$12,0) -> 0 | G86: =IF($Q34>$I25,E$22*$I25+E$23*($Q34-$I25),$Q34*E$22)+('Hypothetical SAR and RAR'!$C$18*$Q34)+IF(Q34>0,$H$12,0) -> 0 | H86: =IF($R34>$J25,E$25*$J25+E$26*($R34-$J25),$R34*E$25)+('Hypothetical SAR and RAR'!$C$18*$R34)+IF(R34>0,$H$12,0) -> 0
B87: Total | C87: =SUMPRODUCT(C83:C86,$U$22:$U$25) -> 33.50979143 | D87: =SUMPRODUCT(D83:D86,$U$22:$U$25) -> 69.79013615 | E87: 40.41783626 | F87: 84.17381878 | G87: 40.41783626 | H87: 84.17381878
C90: Typical Monthly Usage Basic Bundled CARE Customer
C91: =C81 -> 2025-01-01 | E91: =E81 -> 2025-06-01 | G91: =G81 -> Proposed
C92: Summer | D92: Winter | E92: Summer | F92: Winter | G92: Summer | H92: Winter
B93: =Zones -> SDG&E | C93: =IF($S31>$I22,C$31*$I22+C$32*($S31-$I22),$S31*C$31)+('Hypothetical SAR and RAR'!$C$18*$S31)+IF(S31>0,$Q$12,0) -> 24.82922783 | D93: =IF($T31>$J22,C$34*$J22+C$35*($T31-$J22),$T31*C$34)+('Hypothetical SAR and RAR'!$C$18*$T31)+IF(T31>0,$Q$12,0) -> 43.75338272 | E93: =IF($S31>$I22,D$31*$I22+D$32*($S31-$I22),$S31*D$31)+('Hypothetical SAR and RAR'!$C$18*$S31)+IF(S31>0,$Q$12,0) -> 29.99197377 | F93: =IF($T31>$J22,D$34*$J22+D$35*($T31-$J22),$T31*D$34)+('Hypothetical SAR and RAR'!$C$18*$T31)+IF(T31>0,$Q$12,0) -> 52.85044633 | G93: =IF($S31>$I22,E$31*$I22+E$32*($S31-$I22),$S31*E$31)+('Hypothetical SAR and RAR'!$C$18*$S31)+IF(S31>0,$S$12,0) -> 29.99197377 | H93: =IF($T31>$J22,E$34*$J22+E$35*($T31-$J22),$T31*E$34)+('Hypothetical SAR and RAR'!$C$18*$T31)+IF(T31>0,$S$12,0) -> 52.85044633
B94: 0 | C94: =IF($S32>$I23,C$31*$I23+C$32*($S32-$I23),$S32*C$31)+('Hypothetical SAR and RAR'!$C$18*$S32)+IF(S32>0,$Q$12,0) -> 0 | D94: =IF($T32>$J23,C$34*$J23+C$35*($T32-$J23),$T32*C$34)+('Hypothetical SAR and RAR'!$C$18*$T32)+IF(T32>0,$Q$12,0) -> 0 | E94: =IF($S32>$I23,D$31*$I23+D$32*($S32-$I23),$S32*D$31)+('Hypothetical SAR and RAR'!$C$18*$S32)+IF(S32>0,$Q$12,0) -> 0 | F94: =IF($T32>$J23,D$34*$J23+D$35*($T32-$J23),$T32*D$34)+('Hypothetical SAR and RAR'!$C$18*$T32)+IF(T32>0,$Q$12,0) -> 0 | G94: =IF($S32>$I23,E$31*$I23+E$32*($S32-$I23),$S32*E$31)+('Hypothetical SAR and RAR'!$C$18*$S32)+IF(S32>0,$S$12,0) -> 0 | H94: =IF($T32>$J23,E$34*$J23+E$35*($T32-$J23),$T32*E$34)+('Hypothetical SAR and RAR'!$C$18*$T32)+IF(T32>0,$S$12,0) -> 0
B95: 0 | C95: =IF($S33>$I24,C$31*$I24+C$32*($S33-$I24),$S33*C$31)+('Hypothetical SAR and RAR'!$C$18*$S33)+IF(S33>0,$Q$12,0) -> 0 | D95: =IF($T33>$J24,C$34*$J24+C$35*($T33-$J24),$T33*C$34)+('Hypothetical SAR and RAR'!$C$18*$T33)+IF(T33>0,$Q$12,0) -> 0 | E95: =IF($S33>$I24,D$31*$I24+D$32*($S33-$I24),$S33*D$31)+('Hypothetical SAR and RAR'!$C$18*$S33)+IF(S33>0,$Q$12,0) -> 0 | F95: =IF($T33>$J24,D$34*$J24+D$35*($T33-$J24),$T33*D$34)+('Hypothetical SAR and RAR'!$C$18*$T33)+IF(T33>0,$Q$12,0) -> 0 | G95: =IF($S33>$I24,E$31*$I24+E$32*($S33-$I24),$S33*E$31)+('Hypothetical SAR and RAR'!$C$18*$S33)+IF(S33>0,$S$12,0) -> 0 | H95: =IF($T33>$J24,E$34*$J24+E$35*($T33-$J24),$T33*E$34)+('Hypothetical SAR and RAR'!$C$18*$T33)+IF(T33>0,$S$12,0) -> 0
B96: 0 | C96: =IF($S34>$I25,C$31*$I25+C$32*($S34-$I25),$S34*C$31)+('Hypothetical SAR and RAR'!$C$18*$S34)+IF(S34>0,$Q$12,0) -> 0 | D96: =IF($T34>$J25,C$34*$J25+C$35*($T34-$J25),$T34*C$34)+('Hypothetical SAR and RAR'!$C$18*$T34)+IF(T34>0,$Q$12,0) -> 0 | E96: =IF($S34>$I25,D$31*$I25+D$32*($S34-$I25),$S34*D$31)+('Hypothetical SAR and RAR'!$C$18*$S34)+IF(S34>0,$Q$12,0) -> 0 | F96: =IF($T34>$J25,D$34*$J25+D$35*($T34-$J25),$T34*D$34)+('Hypothetical SAR and RAR'!$C$18*$T34)+IF(T34>0,$Q$12,0) -> 0 | G96: =IF($S34>$I25,E$31*$I25+E$32*($S34-$I25),$S34*E$31)+('Hypothetical SAR and RAR'!$C$18*$S34)+IF(S34>0,$S$12,0) -> 0 | H96: =IF($T34>$J25,E$34*$J25+E$35*($T34-$J25),$T34*E$34)+('Hypothetical SAR and RAR'!$C$18*$T34)+IF(T34>0,$S$12,0) -> 0
B97: Total | C97: =SUMPRODUCT(C93:C96,$V$22:$V$25) -> 24.82922783 | D97: =SUMPRODUCT(D93:D96,$V$22:$V$25) -> 43.75338272 | E97: 29.99197377 | F97: 52.85044633 | G97: 29.99197377 | H97: 52.85044633

Sheet SetUp
C4: Current Quarter Effective Rate Date | D4: 2025-06-01 | F4: Zones | H4: Revenue Recovery Mechanisms | J4: Years Available for Rate Impact | K4: Procurement Rate Assumption
C5: Beginning of Year Effecive Rate Date | D5: 2025-01-01 | F5: SDG&E | H5: Core Procurement | J5: 2025 | K5: 0.329088
C6: Care Discount % | D6: 0.2 | H6: Allocated Base Margin | J6: =J5+1 -> 2026 | K6: =K5*(1+L6) -> 0.3619968 | L6: 0.1
C7: Proposed Residential Fixed Charge | D7: 0 | H7: Distribution | J7: =J6+1 -> 2027 | K7: 0.39819648 | L7: 0.1
H8: All Residential | J8: 2028 | K8: 0.438016128 | L8: 0.1
F9: All | H9: Local Transmission | J9: 2029 | K9: 0.4818177408 | L9: 0.1
H10: Seasonal Storage
H11: GHG End User | J11: =J5-1 -> 2024 | K11: 0.3440527273
C12: Regulatory Fee | D12: 0.0025 | H12: Public Purpose Programs
H13: -
F14: Other Revenues | H14: 46% Res (LUAF, Other)
F15: and Balancing | H15: ECPT
F16: Accouns | H16: EPAM
H17: CFCA
H18: Non-Residential
H21: Procurement
H22: Customer Costs
H23: Medium Pressure Distribution
H24: High Pressure Distribution
H25: Local Transmission
H26: Storage
H27: GHG Revenue
H28: Other Balancing Acounts
H29: NGV Costs
H30: Backbone Transmisson
H31: Public Purpose Programs
